Workbook

Sheet Translations (hidden)
C4: English | D4: Français | E4: Português | F4: Español | G4: =Settings!D5 -> Español
C5: 1. SETTINGS | D5: 1. Paramètres | E5: 1. Configurações | F5: 1. AJUSTES | G5: =IFERROR(IF($G$4=$C$4,C5,IF($G$4=$D$4,D5,IF($G$4=$E$4,E5,IF(F5="",C5,IF($G$4=$F$4,F5))))),"") -> 1. AJUSTES
C6: - | D6: - | E6: - | F6: - | G6: =IFERROR(IF($G$4=$C$4,C6,IF($G$4=$D$4,D6,IF($G$4=$E$4,E6,IF(F6="",C6,IF($G$4=$F$4,F6))))),"") -> -
C7: Select Language: | D7: Sélectionnez la langue : | E7: Selecione Idioma: | F7: Seleccione el idioma: | G7: Seleccione el idioma:
C8: Start Month: | D8: Mois de début : | E8: Mês de Início: | F8: Mes de inicio: | G8: Mes de inicio:
C9: Current Year: | D9: Année actuelle : | E9: Ano Atual: | F9: Año corriente: | G9: Año corriente:
C10: Choose your target rules for selecting color icons | D10: Choisissez vos règles cibles pour sélectionner les icônes | E10: Escolha as regras das metas para selecão de ícones | F10: Elija sus reglas de destino para seleccionar iconos de color | G10: Elija sus reglas de destino para seleccionar iconos de color
C11: If value is | D11: Si la valeur est | E11: Se valor for | F11: Si el valor es | G11: Si el valor es
C12: If > | D12: Si > | E12: Se > | F12: Si > | G12: Si >
C13: If < | D13: Si < | E13: Se < | F13: Si < | G13: Si <
C14: And | D14: et | E14: e | F14: y | G14: y
C15: 2. CREATE INDICATORS | D15: 2. Entrer des données | E15: 2. Cadastro de indicadores | F15: 2. REGISTRO DE INDICADORES | G15: 2. REGISTRO DE INDICADORES
C16: Format | D16: Format | E16: Formato | F16: Formato | G16: Formato
C17: Best Direction | D17: Meilleure direction | E17: Melhor Direção | F17: Mejor dirección | G17: Mejor dirección
C18: Financial | D18: Financier | E18: Financeiro | F18: Financiero | G18: Financiero
C19: Customer | D19: Client | E19: Cliente | F19: Cliente | G19: Cliente
C20: Process | D20: Processus | E20: Processos | F20: Proceso | G20: Proceso
C21: Internal Business Process | D21: Processus Interne | E21: Processos Internos de Negócios | F21: Proceso de negocio interno | G21: Proceso de negocio interno
C22: Learning & Growth | D22: Apprentissage & croissance | E22: Aprendizado & Crescimento | F22: Aprendizaje y crecimiento | G22: Aprendizaje y crecimiento
C23: 3. ENTER DATA | D23: 3. Métriques | E23: 3. Dados Dos indicadores | F23: 3. MÉTRICAS | G23: 3. MÉTRICAS
C24: Actual / Target | D24: Actuel / Cible | E24: Real / Meta | F24: Real / Objetivo | G24: Real / Objetivo
C25: Actual vs Target | D25: Actuel vs Cible | E25: Real vs Meta | F25: Real vs Objetivo | G25: Real vs Objetivo
C26: Actual | D26: Actuel | E26: Real | F26: Actual | G26: Actual
C27: % Target | D27: % de la cible | E27: % da Meta | F27: % Objetivo | G27: % Objetivo
C28: Target | D28: Cible | E28: Meta | F28: Meta | G28: Meta
C29: Remaining | D29: Restant | E29: Restante | F29: Restante | G29: Restante
C30: Indicator Name | D30: Indicateur | E30: Indicador | F30: Nombre del indicador | G30: Nombre del indicador
C31: YTD | D31: Cumulées à ce jour | E31: Acumulado | F31: ACUM | G31: ACUM
C32: Total | D32: Total | E32: Total | F32: Total | G32: Total
C33: Month | D33: Mois | E33: Mês | F33: Mes | G33: Mes
C34: JAN | D34: JAN | E34: JAN | F34: ENE | G34: ENE
C35: FEB | D35: FÉV | E35: FEV | F35: FEB | G35: FEB
C36: MAR | D36: MAR | E36: MAR | F36: MAR | G36: MAR
C37: APR | D37: AVR | E37: ABR | F37: ABR | G37: ABR
C38: MAY | D38: MAI | E38: MAI | F38: MAY | G38: MAY
C39: JUN | D39: JUN | E39: JUN | F39: JUN | G39: JUN
C40: JUL | D40: JUL | E40: JUL | F40: JUL | G40: JUL
C41: AUG | D41: AOÛ | E41: AGO | F41: AGO | G41: AGO
C42: SEP | D42: SEP | E42: SET | F42: SEP | G42: SEP
C43: OCT | D43: OCT | E43: OUT | F43: OCT | G43: OCT
C44: NOV | D44: NOV | E44: NOV | F44: NOV | G44: NOV
C45: DEC | D45: DÉC | E45: DEZ | F45: DIC | G45: DIC
C46: January | D46: janvier | E46: Janeiro | F46: Enero | G46: Enero
C47: February | D47: février | E47: Fevereiro | F47: Febrero | G47: Febrero
C48: March | D48: mars | E48: Março | F48: Marzo | G48: Marzo
C49: April | D49: avril | E49: Abril | F49: Abril | G49: Abril
C50: May | D50: mai | E50: Maio | F50: Mayo | G50: Mayo
C51: June | D51: juin | E51: Junho | F51: Junio | G51: Junio
C52: July | D52: juillet | E52: Julho | F52: Julio | G52: Julio
C53: August | D53: août | E53: Agosto | F53: Agosto | G53: Agosto
C54: September | D54: septembre | E54: Setembro | F54: Septiembre | G54: Septiembre
C55: October | D55: octobre | E55: Outubro | F55: Octubre | G55: Octubre
C56: November | D56: novembre | E56: Novembro | F56: Noviembre | G56: Noviembre
C57: December | D57: décembre | E57: Dezembro | F57: Diciembre | G57: Diciembre
C58: Period | D58: Période | E58: Período | F58: Periodo | G58: Periodo
C59: Indicator | D59: Indicateur | E59: Indicador | F59: Indicador | G59: Indicador
C60: Result | D60: Résultat | E60: Resultado | F60: Resultado | G60: Resultado
C61: Status | D61: Statut | E61: Status | F61: Status | G61: Status
C62: Trend | D62: Tendance | E62: Tendência | F62: Tendencia | G62: Tendencia
C63: 6. STATUS VIEW | D63: 6. Vue d'état | E63: 6. Status | F63: 6. STATUS | G63: =IFERROR(IF($G$4=$C$4,C63,IF($G$4=$D$4,D63,IF($G$4=$E$4,E63,IF(F63="",C63,IF($G$4=$F$4,F63))))),"") -> 6. STATUS
C64: 4. DASHBOARD | D64: 4. Tableau de bord | E64: 4. Dashboard | F64: 4. DASHBOARD | G64: 4. DASHBOARD
C65: 5. OVERVIEW | D65: 5. Vue d'ensemble | E65: 5. Visão geral | F65: 5. RESUMEN | G65: =IFERROR(IF($G$4=$C$4,C65,IF($G$4=$D$4,D65,IF($G$4=$E$4,E65,IF(F65="",C65,IF($G$4=$F$4,F65))))),"") -> 5. RESUMEN
C66: Calculation | D66: Calcul | E66: Cálculo | F66: Cálculo | G66: =IFERROR(IF($G$4=$C$4,C66,IF($G$4=$D$4,D66,IF($G$4=$E$4,E66,IF(F66="",C66,IF($G$4=$F$4,F66))))),"") -> Cálculo
C67: Sum | D67: Somme | E67: Soma | F67: Suma | G67: =IFERROR(IF($G$4=$C$4,C67,IF($G$4=$D$4,D67,IF($G$4=$E$4,E67,IF(F67="",C67,IF($G$4=$F$4,F67))))),"") -> Suma
C68: Average | D68: Moyen | E68: Média | F68: Promedio | G68: Promedio
C69: Last Value | D69: Dernière valeur | E69: Último valor | F69: Último valor | G69: =IFERROR(IF($G$4=$C$4,C69,IF($G$4=$D$4,D69,IF($G$4=$E$4,E69,IF(F69="",C69,IF($G$4=$F$4,F69))))),"") -> Último valor

Sheet Settings
C5: =Translations!G7 -> Seleccione el idioma: | D5: Español
C7: =Translations!G8 -> Mes de inicio: | D7: ENE
C8: =Translations!G9 -> Año corriente: | D8: 2026
C10: =Translations!G10 -> Elija sus reglas de destino para seleccionar iconos de color
C11: • | D11: =Translations!G11 -> Si el valor es | E11: > = | F11: 1
C12: • | D12: =F11 -> 1 | E12: > = | F12: 0.8
C13: • | D13: =F12 -> 0.8

Sheet Indicators
C5: ID | D5: =Translations!G30 -> Nombre del indicador | G5: =Translations!G16 -> Formato | H5: =Translations!G17 -> Mejor dirección | I5: =Translations!G66 -> Cálculo
C6: 1 | D6: Tasa de ingreso por ventas | G6: 0% | H6: ↑ | I6: Promedio | J6: =VLOOKUP(G6,$K$6:$L$14,2,FALSE) -> 0% | K6: 0% | L6: 0%
C7: 2 | D7: Tasa de cumplimiento de presupuesto | G7: 0% | H7: ↑ | I7: Promedio | J7: =VLOOKUP(G7,$K$6:$L$14,2,FALSE) -> 0% | K7: 0,0% | L7: 0.0%
C8: 3 | D8: Tasa de endeudamiento | G8: 0% | H8: ↓ | I8: Promedio | J8: 0% | K8: 0 | L8: # ##0
C9: 4 | D9: Número de procesos de capacitación | G9: 0 | H9: ↑ | I9: Suma | J9: # ##0 | K9: 0 $ | L9: [$$-x-USD] # ##0
C10: 5 | D10: Eficiencia del ciclo de producción | G10: 0% | H10: ↑ | I10: Promedio | J10: 0% | K10: 0 € | L10: # ##0\ [$€-x-euro1]
C11: 6 | D11: Tiempo de inactividad no planificada por TI | G11: 0 | H11: ↓ | I11: Promedio | J11: # ##0 | K11: £ 0 | L11: [$£-en-GB]# ##0
C12: 7 | D12: Tasa de mantenimientos preventivos a los equipos | G12: 0% | H12: ↑ | I12: Promedio | J12: 0% | K12: R$ 0 | L12: [$R$-pt-BR]# ##0
C13: 8 | D13: Número de seguidores de FB | G13: 0 | H13: ↑ | I13: Último valor | J13: # ##0 | K13: 00:00:00 | L13: [h]:mm:ss
C14: 9 | D14: Tasa de conversión de leads a clientes | G14: 0% | H14: ↑ | I14: Suma | J14: 0% | K14: 0,0 | L14: #,##0.0
C15: 10 | D15: Tiempo de resolución de quejas | G15: 0 | H15: ↓ | I15: Suma | J15: # ##0
C16: 11 | D16: Tasa de litigios evitados | G16: 0% | H16: ↓ | I16: Suma | J16: 0%
C17: 12 | D17: Retorno de inversión de nuevos proyectos | G17: 0% | H17: ↑ | I17: Suma | J17: 0%
C20: Nota: Cuando termine de registrar sus indicadores, formato, mejor dirección y cálculo, es necesario hacer clic en el botón "Aplicar formatos" para guardar los cambios.

Sheet Data
C4: ID | D4: =Translations!G30 -> Nombre del indicador | G4: =Translations!G24 -> Real / Objetivo | H4: =Settings!D7 -> ENE | I4: =IF(H4=List!$A$2,List!$A$3,IF(Data!H4=List!$A$3,List!$A$4,IF(H4=List!$A$4,List!$A$5,IF(H4=List!$A$5,List!$A$6,IF(H4=List!$A$6,List!$A$7,IF(H4=List!$A$7,List!$A$8,IF(H4=List!$A$8,List!$A$9,IF(Data!H4=List!$A$9,List!$A$10,IF(H4=List!$A$10,List!$A$11,IF(Data!H4=List!$A$11,List!$A$12,IF(H4=List!$A$12,List!$A$13,IF(H4=List!$A$13,List!$A$2)))))))))))) -> FEB | J4: =IF(I4=List!$A$2,List!$A$3,IF(Data!I4=List!$A$3,List!$A$4,IF(I4=List!$A$4,List!$A$5,IF(I4=List!$A$5,List!$A$6,IF(I4=List!$A$6,List!$A$7,IF(I4=List!$A$7,List!$A$8,IF(I4=List!$A$8,List!$A$9,IF(Data!I4=List!$A$9,List!$A$10,IF(I4=List!$A$10,List!$A$11,IF(Data!I4=List!$A$11,List!$A$12,IF(I4=List!$A$12,List!$A$13,IF(I4=List!$A$13,List!$A$2)))))))))))) -> MAR | K4: =IF(J4=List!$A$2,List!$A$3,IF(Data!J4=List!$A$3,List!$A$4,IF(J4=List!$A$4,List!$A$5,IF(J4=List!$A$5,List!$A$6,IF(J4=List!$A$6,List!$A$7,IF(J4=List!$A$7,List!$A$8,IF(J4=List!$A$8,List!$A$9,IF(Data!J4=List!$A$9,List!$A$10,IF(J4=List!$A$10,List!$A$11,IF(Data!J4=List!$A$11,List!$A$12,IF(J4=List!$A$12,List!$A$13,IF(J4=List!$A$13,List!$A$2)))))))))))) -> ABR | L4: =IF(K4=List!$A$2,List!$A$3,IF(Data!K4=List!$A$3,List!$A$4,IF(K4=List!$A$4,List!$A$5,IF(K4=List!$A$5,List!$A$6,IF(K4=List!$A$6,List!$A$7,IF(K4=List!$A$7,List!$A$8,IF(K4=List!$A$8,List!$A$9,IF(Data!K4=List!$A$9,List!$A$10,IF(K4=List!$A$10,List!$A$11,IF(Data!K4=List!$A$11,List!$A$12,IF(K4=List!$A$12,List!$A$13,IF(K4=List!$A$13,List!$A$2)))))))))))) -> MAY | M4: =IF(L4=List!$A$2,List!$A$3,IF(Data!L4=List!$A$3,List!$A$4,IF(L4=List!$A$4,List!$A$5,IF(L4=List!$A$5,List!$A$6,IF(L4=List!$A$6,List!$A$7,IF(L4=List!$A$7,List!$A$8,IF(L4=List!$A$8,List!$A$9,IF(Data!L4=List!$A$9,List!$A$10,IF(L4=List!$A$10,List!$A$11,IF(Data!L4=List!$A$11,List!$A$12,IF(L4=List!$A$12,List!$A$13,IF(L4=List!$A$13,List!$A$2)))))))))))) -> JUN | N4: =IF(M4=List!$A$2,List!$A$3,IF(Data!M4=List!$A$3,List!$A$4,IF(M4=List!$A$4,List!$A$5,IF(M4=List!$A$5,List!$A$6,IF(M4=List!$A$6,List!$A$7,IF(M4=List!$A$7,List!$A$8,IF(M4=List!$A$8,List!$A$9,IF(Data!M4=List!$A$9,List!$A$10,IF(M4=List!$A$10,List!$A$11,IF(Data!M4=List!$A$11,List!$A$12,IF(M4=List!$A$12,List!$A$13,IF(M4=List!$A$13,List!$A$2)))))))))))) -> JUL | O4: =IF(N4=List!$A$2,List!$A$3,IF(Data!N4=List!$A$3,List!$A$4,IF(N4=List!$A$4,List!$A$5,IF(N4=List!$A$5,List!$A$6,IF(N4=List!$A$6,List!$A$7,IF(N4=List!$A$7,List!$A$8,IF(N4=List!$A$8,List!$A$9,IF(Data!N4=List!$A$9,List!$A$10,IF(N4=List!$A$10,List!$A$11,IF(Data!N4=List!$A$11,List!$A$12,IF(N4=List!$A$12,List!$A$13,IF(N4=List!$A$13,List!$A$2)))))))))))) -> AGO | P4: =IF(O4=List!$A$2,List!$A$3,IF(Data!O4=List!$A$3,List!$A$4,IF(O4=List!$A$4,List!$A$5,IF(O4=List!$A$5,List!$A$6,IF(O4=List!$A$6,List!$A$7,IF(O4=List!$A$7,List!$A$8,IF(O4=List!$A$8,List!$A$9,IF(Data!O4=List!$A$9,List!$A$10,IF(O4=List!$A$10,List!$A$11,IF(Data!O4=List!$A$11,List!$A$12,IF(O4=List!$A$12,List!$A$13,IF(O4=List!$A$13,List!$A$2)))))))))))) -> SEP | Q4: =IF(P4=List!$A$2,List!$A$3,IF(Data!P4=List!$A$3,List!$A$4,IF(P4=List!$A$4,List!$A$5,IF(P4=List!$A$5,List!$A$6,IF(P4=List!$A$6,List!$A$7,IF(P4=List!$A$7,List!$A$8,IF(P4=List!$A$8,List!$A$9,IF(Data!P4=List!$A$9,List!$A$10,IF(P4=List!$A$10,List!$A$11,IF(Data!P4=List!$A$11,List!$A$12,IF(P4=List!$A$12,List!$A$13,IF(P4=List!$A$13,List!$A$2)))))))))))) -> OCT | R4: =IF(Q4=List!$A$2,List!$A$3,IF(Data!Q4=List!$A$3,List!$A$4,IF(Q4=List!$A$4,List!$A$5,IF(Q4=List!$A$5,List!$A$6,IF(Q4=List!$A$6,List!$A$7,IF(Q4=List!$A$7,List!$A$8,IF(Q4=List!$A$8,List!$A$9,IF(Data!Q4=List!$A$9,List!$A$10,IF(Q4=List!$A$10,List!$A$11,IF(Data!Q4=List!$A$11,List!$A$12,IF(Q4=List!$A$12,List!$A$13,IF(Q4=List!$A$13,List!$A$2)))))))))))) -> NOV | S4: =IF(R4=List!$A$2,List!$A$3,IF(Data!R4=List!$A$3,List!$A$4,IF(R4=List!$A$4,List!$A$5,IF(R4=List!$A$5,List!$A$6,IF(R4=List!$A$6,List!$A$7,IF(R4=List!$A$7,List!$A$8,IF(R4=List!$A$8,List!$A$9,IF(Data!R4=List!$A$9,List!$A$10,IF(R4=List!$A$10,List!$A$11,IF(Data!R4=List!$A$11,List!$A$12,IF(R4=List!$A$12,List!$A$13,IF(R4=List!$A$13,List!$A$2)))))))))))) -> DIC | T4: =Translations!G31 -> ACUM | U4: =Translations!G32 -> Total
C5: 1 | D5: =IF(Indicators!D6="","",Indicators!D6) -> Tasa de ingreso por ventas | G5: =Translations!G26 -> Actual | H5: 0.16 | I5: 0.03 | J5: 0.13 | K5: 0.11 | L5: 0.25 | M5: 0.1 | N5: 0.1 | O5: 0.06 | T5: =IFERROR(IF(Indicators!$I$6=List!$H$4,INDEX(H5:S5,COUNT(H5:S5)),IF(Indicators!$I$6=List!$H$2,SUM(Data!$H5:$S5),IF(Indicators!$I$6=List!$H$3,AVERAGEIF(H5:S5,"<>",H5:S5)))),0) -> 0.1175 | U5: =IFERROR(IF(Indicators!$I$6=List!$H$4,INDEX(H5:S5,COUNT(H5:S5)),IF(Indicators!$I$6=List!$H$2,SUM(Data!$H5:$S5),IF(Indicators!$I$6=List!$H$3,AVERAGEIF(H5:S5,"<>",H5:S5)))),0) -> 0.1175
G6: =Translations!G28 -> Meta | H6: 0.2 | I6: 0.2 | J6: 0.2 | K6: 0.2 | L6: 0.2 | M6: 0.2 | N6: 0.2 | O6: 0.2 | P6: 0.2 | Q6: 0.2 | R6: 0.2 | S6: 0.2 | T6: =IFERROR(IF(Indicators!$I$6=List!$H$4,V6,IF(Indicators!$I$6=List!$H$2,SUMIF(H5:S5,"<>",H6:S6),IF(Indicators!$I$6=List!$H$3,AVERAGEIF($H$5:$S$5,"<>",H6:S6)))),0) -> 0.2 | U6: =IFERROR(IF(Indicators!$I$6=List!$H$4,INDEX(H6:S6,COUNT(H6:S6)),IF(Indicators!$I$6=List!$H$2,SUM(Data!$H6:$S6),IF(Indicators!$I$6=List!$H$3,AVERAGE(H6:S6)))),0) -> 0.2 | V6: =IF(S5<>"",S6,IF(R5<>"",R6,IF(Q5<>"",Q6,IF(P5<>"",P6,IF(O5<>"",O6,IF(N5<>"",N6,IF(M5<>"",M6,IF(L5<>"",L6,IF(K5<>"",K6,IF(J5<>"",J6,IF(I5<>"",I6,IF(H5<>"",H6,0)))))))))))) -> 0.2
G7: % Target | H7: =IFERROR(H5/H6,0) -> 0.8 | I7: =IFERROR(I5/I6,0) -> 0.15 | J7: =IFERROR(J5/J6,0) -> 0.65 | K7: 0.55 | L7: 1.25 | M7: 0.5 | N7: 0.5 | O7: 0.3 | P7: =IFERROR(P5/P6,0) -> 0 | Q7: 0 | R7: 0 | S7: 0 | T7: =IFERROR(T5/T6,0) -> 0.5875 | U7: =IFERROR(U5/U6,0) -> 0.5875
C8: =C5+1 -> 2 | D8: =IF(Indicators!D7="","",Indicators!D7) -> Tasa de cumplimiento de presupuesto | G8: =G5 -> Actual | T8: =IFERROR(IF(Indicators!$I$7=List!$H$4,INDEX(H8:S8,COUNT(H8:S8)),IF(Indicators!$I$7=List!$H$2,SUM(Data!$H8:$S8),IF(Indicators!$I$7=List!$H$3,AVERAGEIF(H8:S8,"<>",H8:S8)))),0) -> 0 | U8: =IFERROR(IF(Indicators!$I$7=List!$H$4,INDEX(H8:S8,COUNT(H8:S8)),IF(Indicators!$I$7=List!$H$2,SUM(Data!$H8:$S8),IF(Indicators!$I$7=List!$H$3,AVERAGEIF(H8:S8,"<>",H8:S8)))),0) -> 0
G9: =G6 -> Meta | T9: =IFERROR(IF(Indicators!$I$7=List!$H$4,V9,IF(Indicators!$I$7=List!$H$2,SUMIF(H8:S8,"<>",H9:S9),IF(Indicators!$I$7=List!$H$3,AVERAGEIF($H$8:$S$8,"<>",H9:S9)))),0) -> 0 | U9: =IFERROR(IF(Indicators!$I$7=List!$H$4,INDEX(H9:S9,COUNT(H9:S9)),IF(Indicators!$I$7=List!$H$2,SUM(Data!$H9:$S9),IF(Indicators!$I$7=List!$H$3,AVERAGE(H9:S9)))),0) -> 0 | V9: =IF(S8<>"",S9,IF(R8<>"",R9,IF(Q8<>"",Q9,IF(P8<>"",P9,IF(O8<>"",O9,IF(N8<>"",N9,IF(M8<>"",M9,IF(L8<>"",L9,IF(K8<>"",K9,IF(J8<>"",J9,IF(I8<>"",I9,IF(H8<>"",H9,0)))))))))))) -> 0
G10: % Target | H10: =IFERROR(H8/H9,0) -> 0 | I10: =IFERROR(I8/I9,0) -> 0 | J10: 0 | K10: 0 | L10: 0 | M10: 0 | N10: 0 | O10: 0 | P10: =IFERROR(P8/P9,0) -> 0 | Q10: 0 | R10: 0 | S10: 0 | T10: =IFERROR(T8/T9,0) -> 0 | U10: =IFERROR(U8/U9,0) -> 0
C11: =C8+1 -> 3 | D11: =IF(Indicators!D8="","",Indicators!D8) -> Tasa de endeudamiento | G11: =G8 -> Actual | T11: =IFERROR(IF(Indicators!$I$8=List!$H$4,INDEX(H11:S11,COUNT(H11:S11)),IF(Indicators!$I$8=List!$H$2,SUM(Data!$H11:$S11),IF(Indicators!$I$8=List!$H$3,AVERAGEIF(H11:S11,"<>",H11:S11)))),0) -> 0 | U11: =IFERROR(IF(Indicators!$I$8=List!$H$4,INDEX(H11:S11,COUNT(H11:S11)),IF(Indicators!$I$8=List!$H$2,SUM(Data!$H11:$S11),IF(Indicators!$I$8=List!$H$3,AVERAGEIF(H11:S11,"<>",H11:S11)))),0) -> 0
G12: =G9 -> Meta | T12: =IFERROR(IF(Indicators!$I$8=List!$H$4,V12,IF(Indicators!$I$8=List!$H$2,SUMIF(H11:S11,"<>",H12:S12),IF(Indicators!$I$8=List!$H$3,AVERAGEIF($H$11:$S$11,"<>",H12:S12)))),0) -> 0 | U12: =IFERROR(IF(Indicators!$I$8=List!$H$4,INDEX(H12:S12,COUNT(H12:S12)),IF(Indicators!$I$8=List!$H$2,SUM(Data!$H12:$S12),IF(Indicators!$I$8=List!$H$3,AVERAGE(H12:S12)))),0) -> 0 | V12: =IF(S11<>"",S12,IF(R11<>"",R12,IF(Q11<>"",Q12,IF(P11<>"",P12,IF(O11<>"",O12,IF(N11<>"",N12,IF(M11<>"",M12,IF(L11<>"",L12,IF(K11<>"",K12,IF(J11<>"",J12,IF(I11<>"",I12,IF(H11<>"",H12,0)))))))))))) -> 0
G13: % Target | H13: =IFERROR(H11/H12,0) -> 0 | I13: =IFERROR(I11/I12,0) -> 0 | J13: 0 | K13: 0 | L13: 0 | M13: 0 | N13: 0 | O13: 0 | P13: =IFERROR(P11/P12,0) -> 0 | Q13: 0 | R13: 0 | S13: 0 | T13: =IFERROR(T11/T12,0) -> 0 | U13: =IFERROR(U11/U12,0) -> 0
C14: =C11+1 -> 4 | D14: =IF(Indicators!D9="","",Indicators!D9) -> Número de procesos de capacitación | G14: =G11 -> Actual | H14: 1 | I14: 2 | J14: 1 | T14: =IFERROR(IF(Indicators!$I$9=List!$H$4,INDEX(H14:S14,COUNT(H14:S14)),IF(Indicators!$I$9=List!$H$2,SUM(Data!$H14:$S14),IF(Indicators!$I$9=List!$H$3,AVERAGEIF(H14:S14,"<>",H14:S14)))),0) -> 4 | U14: =IFERROR(IF(Indicators!$I$9=List!$H$4,INDEX(H14:S14,COUNT(H14:S14)),IF(Indicators!$I$9=List!$H$2,SUM(Data!$H14:$S14),IF(Indicators!$I$9=List!$H$3,AVERAGEIF(H14:S14,"<>",H14:S14)))),0) -> 4
G15: =G12 -> Meta | H15: 1 | I15: 2 | J15: 2 | T15: =IFERROR(IF(Indicators!$I$9=List!$H$4,V15,IF(Indicators!$I$9=List!$H$2,SUMIF(H14:S14,"<>",H15:S15),IF(Indicators!$I$9=List!$H$3,AVERAGEIF($H$14:$S$14,"<>",H15:S15)))),0) -> 5 | U15: =IFERROR(IF(Indicators!$I$9=List!$H$4,INDEX(H15:S15,COUNT(H15:S15)),IF(Indicators!$I$9=List!$H$2,SUM(Data!$H15:$S15),IF(Indicators!$I$9=List!$H$3,AVERAGE(H15:S15)))),0) -> 5 | V15: =IF(S14<>"",S15,IF(R14<>"",R15,IF(Q14<>"",Q15,IF(P14<>"",P15,IF(O14<>"",O15,IF(N14<>"",N15,IF(M14<>"",M15,IF(L14<>"",L15,IF(K14<>"",K15,IF(J14<>"",J15,IF(I14<>"",I15,IF(H14<>"",H15,0)))))))))))) -> 2
G16: % Target | H16: =IFERROR(H14/H15,0) -> 1 | I16: =IFERROR(I14/I15,0) -> 1 | J16: 0.5 | K16: 0 | L16: 0 | M16: 0 | N16: 0 | O16: 0 | P16: =IFERROR(P14/P15,0) -> 0 | Q16: 0 | R16: 0 | S16: 0 | T16: =IFERROR(T14/T15,0) -> 0.8 | U16: =IFERROR(U14/U15,0) -> 0.8
C17: =C14+1 -> 5 | D17: =IF(Indicators!D10="","",Indicators!D10) -> Eficiencia del ciclo de producción | G17: =G14 -> Actual | T17: =IFERROR(IF(Indicators!$I$10=List!$H$4,INDEX(H17:S17,COUNT(H17:S17)),IF(Indicators!$I$10=List!$H$2,SUM(Data!$H17:$S17),IF(Indicators!$I$10=List!$H$3,AVERAGEIF(H17:S17,"<>",H17:S17)))),0) -> 0 | U17: =IFERROR(IF(Indicators!$I$10=List!$H$4,INDEX(H17:S17,COUNT(H17:S17)),IF(Indicators!$I$10=List!$H$2,SUM(Data!$H17:$S17),IF(Indicators!$I$10=List!$H$3,AVERAGEIF(H17:S17,"<>",H17:S17)))),0) -> 0
G18: =G15 -> Meta | T18: =IFERROR(IF(Indicators!$I$10=List!$H$4,V18,IF(Indicators!$I$10=List!$H$2,SUMIF(H17:S17,"<>",H18:S18),IF(Indicators!$I$10=List!$H$3,AVERAGEIF($H$17:$S$17,"<>",H18:S18)))),0) -> 0 | U18: =IFERROR(IF(Indicators!$I$10=List!$H$4,INDEX(H18:S18,COUNT(H18:S18)),IF(Indicators!$I$10=List!$H$2,SUM(Data!$H18:$S18),IF(Indicators!$I$10=List!$H$3,AVERAGE(H18:S18)))),0) -> 0 | V18: =IF(S17<>"",S18,IF(R17<>"",R18,IF(Q17<>"",Q18,IF(P17<>"",P18,IF(O17<>"",O18,IF(N17<>"",N18,IF(M17<>"",M18,IF(L17<>"",L18,IF(K17<>"",K18,IF(J17<>"",J18,IF(I17<>"",I18,IF(H17<>"",H18,0)))))))))))) -> 0
G19: % Target | H19: =IFERROR(H17/H18,0) -> 0 | I19: =IFERROR(I17/I18,0) -> 0 | J19: 0 | K19: 0 | L19: 0 | M19: 0 | N19: 0 | O19: 0 | P19: =IFERROR(P17/P18,0) -> 0 | Q19: 0 | R19: 0 | S19: 0 | T19: =IFERROR(T17/T18,0) -> 0 | U19: =IFERROR(U17/U18,0) -> 0
C20: =C17+1 -> 6 | D20: =IF(Indicators!D11="","",Indicators!D11) -> Tiempo de inactividad no planificada por TI | G20: =G17 -> Actual | T20: =IFERROR(IF(Indicators!$I$11=List!$H$4,INDEX(H20:S20,COUNT(H20:S20)),IF(Indicators!$I$11=List!$H$2,SUM(Data!$H20:$S20),IF(Indicators!$I$11=List!$H$3,AVERAGEIF(H20:S20,"<>",H20:S20)))),0) -> 0 | U20: =IFERROR(IF(Indicators!$I$11=List!$H$4,INDEX(H20:S20,COUNT(H20:S20)),IF(Indicators!$I$11=List!$H$2,SUM(Data!$H20:$S20),IF(Indicators!$I$11=List!$H$3,AVERAGEIF(H20:S20,"<>",H20:S20)))),0) -> 0
G21: =G18 -> Meta | T21: =IFERROR(IF(Indicators!$I$11=List!$H$4,V21,IF(Indicators!$I$11=List!$H$2,SUMIF(H20:S20,"<>",H21:S21),IF(Indicators!$I$11=List!$H$3,AVERAGEIF($H$20:$S$20,"<>",H21:S21)))),0) -> 0 | U21: =IFERROR(IF(Indicators!$I$11=List!$H$4,INDEX(H21:S21,COUNT(H21:S21)),IF(Indicators!$I$11=List!$H$2,SUM(Data!$H21:$S21),IF(Indicators!$I$11=List!$H$3,AVERAGE(H21:S21)))),0) -> 0 | V21: =IF(S20<>"",S21,IF(R20<>"",R21,IF(Q20<>"",Q21,IF(P20<>"",P21,IF(O20<>"",O21,IF(N20<>"",N21,IF(M20<>"",M21,IF(L20<>"",L21,IF(K20<>"",K21,IF(J20<>"",J21,IF(I20<>"",I21,IF(H20<>"",H21,0)))))))))))) -> 0
G22: % Target | H22: =IFERROR(H20/H21,0) -> 0 | I22: =IFERROR(I20/I21,0) -> 0 | J22: 0 | K22: 0 | L22: 0 | M22: 0 | N22: 0 | O22: 0 | P22: =IFERROR(P20/P21,0) -> 0 | Q22: 0 | R22: 0 | S22: 0 | T22: =IFERROR(T20/T21,0) -> 0 | U22: =IFERROR(U20/U21,0) -> 0
C23: =C20+1 -> 7 | D23: =IF(Indicators!D12="","",Indicators!D12) -> Tasa de mantenimientos preventivos a los equipos | G23: =G20 -> Actual | T23: =IFERROR(IF(Indicators!$I$12=List!$H$4,INDEX(H23:S23,COUNT(H23:S23)),IF(Indicators!$I$12=List!$H$2,SUM(Data!$H23:$S23),IF(Indicators!$I$12=List!$H$3,AVERAGEIF(H23:S23,"<>",H23:S23)))),0) -> 0 | U23: =IFERROR(IF(Indicators!$I$12=List!$H$4,INDEX(H23:S23,COUNT(H23:S23)),IF(Indicators!$I$12=List!$H$2,SUM(Data!$H23:$S23),IF(Indicators!$I$12=List!$H$3,AVERAGEIF(H23:S23,"<>",H23:S23)))),0) -> 0
G24: =G21 -> Meta | T24: =IFERROR(IF(Indicators!$I$12=List!$H$4,V24,IF(Indicators!$I$12=List!$H$2,SUMIF(H23:S23,"<>",H24:S24),IF(Indicators!$I$12=List!$H$3,AVERAGEIF($H$23:$S$23,"<>",H24:S24)))),0) -> 0 | U24: =IFERROR(IF(Indicators!$I$12=List!$H$4,INDEX(H24:S24,COUNT(H24:S24)),IF(Indicators!$I$12=List!$H$2,SUM(Data!$H24:$S24),IF(Indicators!$I$12=List!$H$3,AVERAGE(H24:S24)))),0) -> 0 | V24: =IF(S23<>"",S24,IF(R23<>"",R24,IF(Q23<>"",Q24,IF(P23<>"",P24,IF(O23<>"",O24,IF(N23<>"",N24,IF(M23<>"",M24,IF(L23<>"",L24,IF(K23<>"",K24,IF(J23<>"",J24,IF(I23<>"",I24,IF(H23<>"",H24,0)))))))))))) -> 0
G25: % Target | H25: =IFERROR(H23/H24,0) -> 0 | I25: =IFERROR(I23/I24,0) -> 0 | J25: 0 | K25: 0 | L25: 0 | M25: 0 | N25: 0 | O25: 0 | P25: =IFERROR(P23/P24,0) -> 0 | Q25: 0 | R25: 0 | S25: 0 | T25: =IFERROR(T23/T24,0) -> 0 | U25: =IFERROR(U23/U24,0) -> 0
C26: =C23+1 -> 8 | D26: =IF(Indicators!D13="","",Indicators!D13) -> Número de seguidores de FB | G26: =G23 -> Actual | H26: 15000 | I26: 15348 | T26: =IFERROR(IF(Indicators!$I$13=List!$H$4,INDEX(H26:S26,COUNT(H26:S26)),IF(Indicators!$I$13=List!$H$2,SUM(Data!$H26:$S26),IF(Indicators!$I$13=List!$H$3,AVERAGEIF(H26:S26,"<>",H26:S26)))),0) -> 15348 | U26: =IFERROR(IF(Indicators!$I$13=List!$H$4,INDEX(H26:S26,COUNT(H26:S26)),IF(Indicators!$I$13=List!$H$2,SUM(Data!$H26:$S26),IF(Indicators!$I$13=List!$H$3,AVERAGEIF(H26:S26,"<>",H26:S26)))),0) -> 15348
G27: =G24 -> Meta | H27: 15500 | I27: 16000 | T27: =IFERROR(IF(Indicators!$I$13=List!$H$4,V27,IF(Indicators!$I$13=List!$H$2,SUMIF(H26:S26,"<>",H27:S27),IF(Indicators!$I$13=List!$H$3,AVERAGEIF($H$26:$S$26,"<>",H27:S27)))),0) -> 16000 | U27: =IFERROR(IF(Indicators!$I$13=List!$H$4,INDEX(H27:S27,COUNT(H27:S27)),IF(Indicators!$I$13=List!$H$2,SUM(Data!$H27:$S27),IF(Indicators!$I$13=List!$H$3,AVERAGE(H27:S27)))),0) -> 16000 | V27: =IF(S26<>"",S27,IF(R26<>"",R27,IF(Q26<>"",Q27,IF(P26<>"",P27,IF(O26<>"",O27,IF(N26<>"",N27,IF(M26<>"",M27,IF(L26<>"",L27,IF(K26<>"",K27,IF(J26<>"",J27,IF(I26<>"",I27,IF(H26<>"",H27,0)))))))))))) -> 16000
G28: % Target | H28: =IFERROR(H26/H27,0) -> 0.9677419355 | I28: =IFERROR(I26/I27,0) -> 0.95925 | J28: 0 | K28: 0 | L28: 0 | M28: 0 | N28: 0 | O28: 0 | P28: =IFERROR(P26/P27,0) -> 0 | Q28: 0 | R28: 0 | S28: 0 | T28: 0.95925 | U28: 0.95925
C29: =C26+1 -> 9 | D29: =IF(Indicators!D14="","",Indicators!D14) -> Tasa de conversión de leads a clientes | G29: =G26 -> Actual | T29: =IFERROR(IF(Indicators!$I$14=List!$H$4,INDEX(H29:S29,COUNT(H29:S29)),IF(Indicators!$I$14=List!$H$2,SUM(Data!$H29:$S29),IF(Indicators!$I$14=List!$H$3,AVERAGEIF(H29:S29,"<>",H29:S29)))),0) -> 0 | U29: =IFERROR(IF(Indicators!$I$14=List!$H$4,INDEX(H29:S29,COUNT(H29:S29)),IF(Indicators!$I$14=List!$H$2,SUM(Data!$H29:$S29),IF(Indicators!$I$14=List!$H$3,AVERAGEIF(H29:S29,"<>",H29:S29)))),0) -> 0
G30: =G27 -> Meta | T30: =IFERROR(IF(Indicators!$I$14=List!$H$4,V30,IF(Indicators!$I$14=List!$H$2,SUMIF(H29:S29,"<>",H30:S30),IF(Indicators!$I$14=List!$H$3,AVERAGEIF($H$29:$S$29,"<>",H30:S30)))),0) -> 0 | U30: =IFERROR(IF(Indicators!$I$14=List!$H$4,INDEX(H30:S30,COUNT(H30:S30)),IF(Indicators!$I$14=List!$H$2,SUM(Data!$H30:$S30),IF(Indicators!$I$14=List!$H$3,AVERAGE(H30:S30)))),0) -> 0 | V30: =IF(S29<>"",S30,IF(R29<>"",R30,IF(Q29<>"",Q30,IF(P29<>"",P30,IF(O29<>"",O30,IF(N29<>"",N30,IF(M29<>"",M30,IF(L29<>"",L30,IF(K29<>"",K30,IF(J29<>"",J30,IF(I29<>"",I30,IF(H29<>"",H30,0)))))))))))) -> 0
G31: % Target | H31: =IFERROR(H29/H30,0) -> 0 | I31: =IFERROR(I29/I30,0) -> 0 | J31: 0 | K31: 0 | L31: 0 | M31: 0 | N31: 0 | O31: 0 | P31: =IFERROR(P29/P30,0) -> 0 | Q31: 0 | R31: 0 | S31: 0 | T31: 0 | U31: 0
C32: =C29+1 -> 10 | D32: =IF(Indicators!D15="","",Indicators!D15) -> Tiempo de resolución de quejas | G32: =G29 -> Actual | T32: =IFERROR(IF(Indicators!$I$15=List!$H$4,INDEX(H32:S32,COUNT(H32:S32)),IF(Indicators!$I$15=List!$H$2,SUM(Data!$H32:$S32),IF(Indicators!$I$15=List!$H$3,AVERAGEIF(H32:S32,"<>",H32:S32)))),0) -> 0 | U32: =IFERROR(IF(Indicators!$I$15=List!$H$4,INDEX(H32:S32,COUNT(H32:S32)),IF(Indicators!$I$15=List!$H$2,SUM(Data!$H32:$S32),IF(Indicators!$I$15=List!$H$3,AVERAGEIF(H32:S32,"<>",H32:S32)))),0) -> 0
G33: =G30 -> Meta | T33: =IFERROR(IF(Indicators!$I$15=List!$H$4,V33,IF(Indicators!$I$15=List!$H$2,SUMIF(H32:S32,"<>",H33:S33),IF(Indicators!$I$15=List!$H$3,AVERAGEIF($H$32:$S$32,"<>",H33:S33)))),0) -> 0 | U33: =IFERROR(IF(Indicators!$I$15=List!$H$4,INDEX(H33:S33,COUNT(H33:S33)),IF(Indicators!$I$15=List!$H$2,SUM(Data!$H33:$S33),IF(Indicators!$I$15=List!$H$3,AVERAGE(H33:S33)))),0) -> 0 | V33: =IF(S32<>"",S33,IF(R32<>"",R33,IF(Q32<>"",Q33,IF(P32<>"",P33,IF(O32<>"",O33,IF(N32<>"",N33,IF(M32<>"",M33,IF(L32<>"",L33,IF(K32<>"",K33,IF(J32<>"",J33,IF(I32<>"",I33,IF(H32<>"",H33,0)))))))))))) -> 0
G34: % Target | H34: =IFERROR(H32/H33,0) -> 0 | I34: =IFERROR(I32/I33,0) -> 0 | J34: 0 | K34: 0 | L34: 0 | M34: 0 | N34: 0 | O34: 0 | P34: =IFERROR(P32/P33,0) -> 0 | Q34: 0 | R34: 0 | S34: 0 | T34: 0 | U34: 0
C35: =C32+1 -> 11 | D35: =IF(Indicators!D16="","",Indicators!D16) -> Tasa de litigios evitados | G35: =G32 -> Actual | T35: =IFERROR(IF(Indicators!$I$16=List!$H$4,INDEX(H35:S35,COUNT(H35:S35)),IF(Indicators!$I$16=List!$H$2,SUM(Data!$H35:$S35),IF(Indicators!$I$16=List!$H$3,AVERAGEIF(H35:S35,"<>",H35:S35)))),0) -> 0 | U35: =IFERROR(IF(Indicators!$I$16=List!$H$4,INDEX(H35:S35,COUNT(H35:S35)),IF(Indicators!$I$16=List!$H$2,SUM(Data!$H35:$S35),IF(Indicators!$I$16=List!$H$3,AVERAGEIF(H35:S35,"<>",H35:S35)))),0) -> 0
G36: =G33 -> Meta | T36: =IFERROR(IF(Indicators!$I$16=List!$H$4,V36,IF(Indicators!$I$16=List!$H$2,SUMIF(H35:S35,"<>",H36:S36),IF(Indicators!$I$16=List!$H$3,AVERAGEIF($H$35:$S$35,"<>",H36:S36)))),0) -> 0 | U36: =IFERROR(IF(Indicators!$I$16=List!$H$4,INDEX(H36:S36,COUNT(H36:S36)),IF(Indicators!$I$16=List!$H$2,SUM(Data!$H36:$S36),IF(Indicators!$I$16=List!$H$3,AVERAGE(H36:S36)))),0) -> 0 | V36: =IF(S35<>"",S36,IF(R35<>"",R36,IF(Q35<>"",Q36,IF(P35<>"",P36,IF(O35<>"",O36,IF(N35<>"",N36,IF(M35<>"",M36,IF(L35<>"",L36,IF(K35<>"",K36,IF(J35<>"",J36,IF(I35<>"",I36,IF(H35<>"",H36,0)))))))))))) -> 0
G37: % Target | H37: =IFERROR(H35/H36,0) -> 0 | I37: =IFERROR(I35/I36,0) -> 0 | J37: 0 | K37: 0 | L37: 0 | M37: 0 | N37: 0 | O37: 0 | P37: =IFERROR(P35/P36,0) -> 0 | Q37: 0 | R37: 0 | S37: 0 | T37: 0 | U37: 0
C38: =C35+1 -> 12 | D38: =IF(Indicators!D17="","",Indicators!D17) -> Retorno de inversión de nuevos proyectos | G38: =G35 -> Actual | T38: =IFERROR(IF(Indicators!$I$17=List!$H$4,INDEX(H38:S38,COUNT(H38:S38)),IF(Indicators!$I$17=List!$H$2,SUM(Data!$H38:$S38),IF(Indicators!$I$17=List!$H$3,AVERAGEIF(H38:S38,"<>",H38:S38)))),0) -> 0 | U38: =IFERROR(IF(Indicators!$I$17=List!$H$4,INDEX(H38:S38,COUNT(H38:S38)),IF(Indicators!$I$17=List!$H$2,SUM(Data!$H38:$S38),IF(Indicators!$I$17=List!$H$3,AVERAGEIF(H38:S38,"<>",H38:S38)))),0) -> 0
G39: =G36 -> Meta | T39: =IFERROR(IF(Indicators!$I$17=List!$H$4,V39,IF(Indicators!$I$17=List!$H$2,SUMIF(H38:S38,"<>",H39:S39),IF(Indicators!$I$17=List!$H$3,AVERAGEIF($H$38:$S$38,"<>",H39:S39)))),0) -> 0 | U39: =IFERROR(IF(Indicators!$I$17=List!$H$4,INDEX(H39:S39,COUNT(H39:S39)),IF(Indicators!$I$17=List!$H$2,SUM(Data!$H39:$S39),IF(Indicators!$I$17=List!$H$3,AVERAGE(H39:S39)))),0) -> 0 | V39: =IF(S38<>"",S39,IF(R38<>"",R39,IF(Q38<>"",Q39,IF(P38<>"",P39,IF(O38<>"",O39,IF(N38<>"",N39,IF(M38<>"",M39,IF(L38<>"",L39,IF(K38<>"",K39,IF(J38<>"",J39,IF(I38<>"",I39,IF(H38<>"",H39,0)))))))))))) -> 0
G40: % Target | H40: =IFERROR(H38/H39,0) -> 0 | I40: =IFERROR(I38/I39,0) -> 0 | J40: 0 | K40: 0 | L40: 0 | M40: 0 | N40: 0 | O40: 0 | P40: =IFERROR(P38/P39,0) -> 0 | Q40: 0 | R40: 0 | S40: 0 | T40: 0 | U40: 0

Sheet Dashboard
C4: =Translations!G58 -> Periodo | D4: TOTAL | F4: ← | U4: =Data!G6 -> Meta | W4: FALSE
C5: =IF(Indicators!$D$6="","",Indicators!$D$6) -> Tasa de ingreso por ventas | H5: =IF(Indicators!$D$7="","",Indicators!$D$7) -> Tasa de cumplimiento de presupuesto | M5: =IF(Indicators!$D$8="","",Indicators!$D$8) -> Tasa de endeudamiento | R5: =IF(Indicators!$D$9="","",Indicators!$D$9) -> Número de procesos de capacitación | W5: =HLOOKUP($D$4,Status!$Q$4:$R$27,2,FALSE) -> -1
C6: =IF(C5="","",HLOOKUP($D$4,Data!$H$4:$U$40,2,FALSE)) -> 0.1175 | H6: =IF(H5="","",HLOOKUP($D$4,Data!$H$4:$U$40,5,FALSE)) -> 0 | M6: =IF(M5="","",HLOOKUP($D$4,Data!$H$4:$U$40,8,FALSE)) -> 0 | R6: =IF(R5="","",HLOOKUP($D$4,Data!$H$4:$U$40,11,FALSE)) -> 4 | W6: =HLOOKUP($D$4,Status!$Q$4:$R$27,4,FALSE) -> -1
C7: =IF(C5="","",Data!$G$6) -> Meta | E7: =IF(C5="","",HLOOKUP($D$4,Data!$H$4:$U$40,3,FALSE)) -> 0.2 | H7: =IF(H5="","",Data!$G$6) -> Meta | J7: =IF(H5="","",HLOOKUP($D$4,Data!$H$4:$U$40,6,FALSE)) -> 0 | M7: =IF(M5="","",Data!$G$6) -> Meta | O7: =IF(M5="","",HLOOKUP($D$4,Data!$H$4:$U$40,9,FALSE)) -> 0 | R7: =IF(R5="","",Data!$G$6) -> Meta | T7: =IF(R5="","",HLOOKUP($D$4,Data!$H$4:$U$40,12,FALSE)) -> 5 | W7: =HLOOKUP($D$4,Status!$Q$4:$R$27,6,FALSE) -> 1
W8: =HLOOKUP($D$4,Status!$Q$4:$R$27,8,FALSE) -> 0
W9: =HLOOKUP($D$4,Status!$Q$4:$R$27,10,FALSE) -> -1
W10: =HLOOKUP($D$4,Status!$Q$4:$R$27,12,FALSE) -> 1
W11: =HLOOKUP($D$4,Status!$Q$4:$R$27,14,FALSE) -> -1
C12: =IF(Indicators!$D$10="","",Indicators!$D$10) -> Eficiencia del ciclo de producción | H12: =IF(Indicators!$D$11="","",Indicators!$D$11) -> Tiempo de inactividad no planificada por TI | M12: =IF(Indicators!$D$12="","",Indicators!$D$12) -> Tasa de mantenimientos preventivos a los equipos | R12: =IF(Indicators!$D$13="","",Indicators!$D$13) -> Número de seguidores de FB | W12: =HLOOKUP($D$4,Status!$Q$4:$R$27,16,FALSE) -> 0
C13: =IF(C12="","",HLOOKUP($D$4,Data!$H$4:$U$40,14,FALSE)) -> 0 | H13: =IF(H12="","",HLOOKUP($D$4,Data!$H$4:$U$40,17,FALSE)) -> 0 | M13: =IF(M12="","",HLOOKUP($D$4,Data!$H$4:$U$40,20,FALSE)) -> 0 | R13: =IF(R12="","",HLOOKUP($D$4,Data!$H$4:$U$40,23,FALSE)) -> 15348 | W13: =HLOOKUP($D$4,Status!$Q$4:$R$27,18,FALSE) -> -1
C14: =IF(C12="","",Data!$G$6) -> Meta | E14: =IF(C12="","",HLOOKUP($D$4,Data!$H$4:$U$40,15,FALSE)) -> 0 | H14: =IF(H12="","",Data!$G$6) -> Meta | J14: =IF(H12="","",HLOOKUP($D$4,Data!$H$4:$U$40,18,FALSE)) -> 0 | M14: =IF(M12="","",Data!$G$6) -> Meta | O14: =IF(M12="","",HLOOKUP($D$4,Data!$H$4:$U$40,21,FALSE)) -> 0 | R14: =IF(R12="","",Data!$G$6) -> Meta | T14: =IF(R12="","",HLOOKUP($D$4,Data!$H$4:$U$40,24,FALSE)) -> 16000 | W14: =HLOOKUP($D$4,Status!$Q$4:$R$27,20,FALSE) -> 1
W15: =HLOOKUP($D$4,Status!$Q$4:$R$27,22,FALSE) -> 1
W16: =HLOOKUP($D$4,Status!$Q$4:$R$27,24,FALSE) -> -1
C19: =IF(Indicators!$D$14="","",Indicators!$D$14) -> Tasa de conversión de leads a clientes | H19: =IF(Indicators!$D$15="","",Indicators!$D$15) -> Tiempo de resolución de quejas | M19: =IF(Indicators!$D$16="","",Indicators!$D$16) -> Tasa de litigios evitados | R19: =IF(Indicators!$D$17="","",Indicators!$D$17) -> Retorno de inversión de nuevos proyectos
C20: =IF(C19="","",HLOOKUP($D$4,Data!$H$4:$U$40,26,FALSE)) -> 0 | H20: =IF(H19="","",HLOOKUP($D$4,Data!$H$4:$U$40,29,FALSE)) -> 0 | M20: =IF(M19="","",HLOOKUP($D$4,Data!$H$4:$U$40,32,FALSE)) -> 0 | R20: =IF(R19="","",HLOOKUP($D$4,Data!$H$4:$U$40,35,FALSE)) -> 0
C21: =IF(C19="","",Data!$G$6) -> Meta | E21: =IF(C19="","",HLOOKUP($D$4,Data!$H$4:$U$40,27,FALSE)) -> 0 | H21: =IF(H19="","",Data!$G$6) -> Meta | J21: =IF(H19="","",HLOOKUP($D$4,Data!$H$4:$U$40,30,FALSE)) -> 0 | M21: =IF(M19="","",Data!$G$6) -> Meta | O21: =IF(M19="","",HLOOKUP($D$4,Data!$H$4:$U$40,33,FALSE)) -> 0 | R21: =IF(R19="","",Data!$G$6) -> Meta | T21: =IF(R19="","",HLOOKUP($D$4,Data!$H$4:$U$40,36,FALSE)) -> 0

Sheet Overview
F4: =Translations!G58 -> Periodo | H4: TOTAL | I4: ←
C5: =Data!D4 -> Nombre del indicador | D5: =Translations!G26 -> Actual | E5: =Translations!G28 -> Meta | F5: =Translations!G27 -> % Objetivo | G5: =Translations!G61 -> Status | H5: =Translations!G62 -> Tendencia
C6: =IF(Indicators!D6="","",Indicators!D6) -> Tasa de ingreso por ventas | D6: =IF(C6="","",HLOOKUP($H$4,Data!$H$4:$U$40,2,FALSE)) -> 0.1175 | E6: =IF(D6="","",HLOOKUP($H$4,Data!$H$4:$U$40,3,FALSE)) -> 0.2 | F6: =IFERROR(IF(C6="","",D6/E6),0) -> 0.5875 | G6: =IF(C6="","",HLOOKUP($H$4,Status!$D$4:$R$28,2,FALSE)) -> -1
C8: =IF(Indicators!D7="","",Indicators!D7) -> Tasa de cumplimiento de presupuesto | D8: =IF(C8="","",HLOOKUP($H$4,Data!$H$4:$U$40,5,FALSE)) -> 0 | E8: =IF(D8="","",HLOOKUP($H$4,Data!$H$4:$U$40,6,FALSE)) -> 0 | F8: =IFERROR(IF(C8="","",D8/E8),0) -> 0 | G8: =IF(C8="","",HLOOKUP($H$4,Status!$D$4:$R$28,4,FALSE)) -> -1
C10: =IF(Indicators!D8="","",Indicators!D8) -> Tasa de endeudamiento | D10: =IF(C10="","",HLOOKUP($H$4,Data!$H$4:$U$40,8,FALSE)) -> 0 | E10: =IF(D10="","",HLOOKUP($H$4,Data!$H$4:$U$40,9,FALSE)) -> 0 | F10: =IFERROR(IF(C10="","",D10/E10),0) -> 0 | G10: =IF(C10="","",HLOOKUP($H$4,Status!$D$4:$R$28,6,FALSE)) -> 1
C12: =IF(Indicators!D9="","",Indicators!D9) -> Número de procesos de capacitación | D12: =IF(C12="","",HLOOKUP($H$4,Data!$H$4:$U$40,11,FALSE)) -> 4 | E12: =IF(D12="","",HLOOKUP($H$4,Data!$H$4:$U$40,12,FALSE)) -> 5 | F12: =IFERROR(IF(C12="","",D12/E12),0) -> 0.8 | G12: =IF(C12="","",HLOOKUP($H$4,Status!$D$4:$R$28,8,FALSE)) -> 0
C14: =IF(Indicators!D10="","",Indicators!D10) -> Eficiencia del ciclo de producción | D14: =IF(C14="","",HLOOKUP($H$4,Data!$H$4:$U$40,14,FALSE)) -> 0 | E14: =IF(D14="","",HLOOKUP($H$4,Data!$H$4:$U$40,15,FALSE)) -> 0 | F14: =IFERROR(IF(C14="","",D14/E14),0) -> 0 | G14: =IF(C14="","",HLOOKUP($H$4,Status!$D$4:$R$28,10,FALSE)) -> -1
C16: =IF(Indicators!D11="","",Indicators!D11) -> Tiempo de inactividad no planificada por TI | D16: =IF(C16="","",HLOOKUP($H$4,Data!$H$4:$U$40,17,FALSE)) -> 0 | E16: =IF(D16="","",HLOOKUP($H$4,Data!$H$4:$U$40,18,FALSE)) -> 0 | F16: =IFERROR(IF(C16="","",D16/E16),0) -> 0 | G16: =IF(C16="","",HLOOKUP($H$4,Status!$D$4:$R$28,12,FALSE)) -> 1
C18: =IF(Indicators!D12="","",Indicators!D12) -> Tasa de mantenimientos preventivos a los equipos | D18: =IF(C18="","",HLOOKUP($H$4,Data!$H$4:$U$40,20,FALSE)) -> 0 | E18: =IF(D18="","",HLOOKUP($H$4,Data!$H$4:$U$40,21,FALSE)) -> 0 | F18: =IFERROR(IF(C18="","",D18/E18),0) -> 0 | G18: =IF(C18="","",HLOOKUP($H$4,Status!$D$4:$R$28,14,FALSE)) -> -1
C20: =IF(Indicators!D13="","",Indicators!D13) -> Número de seguidores de FB | D20: =IF(C20="","",HLOOKUP($H$4,Data!$H$4:$U$40,23,FALSE)) -> 15348 | E20: =IF(D20="","",HLOOKUP($H$4,Data!$H$4:$U$40,24,FALSE)) -> 16000 | F20: =IFERROR(IF(C20="","",D20/E20),0) -> 0.95925 | G20: =IF(C20="","",HLOOKUP($H$4,Status!$D$4:$R$28,16,FALSE)) -> 0
C22: =IF(Indicators!D14="","",Indicators!D14) -> Tasa de conversión de leads a clientes | D22: =IF(C22="","",HLOOKUP($H$4,Data!$H$4:$U$40,26,FALSE)) -> 0 | E22: =IF(D22="","",HLOOKUP($H$4,Data!$H$4:$U$40,27,FALSE)) -> 0 | F22: =IFERROR(IF(C22="","",D22/E22),0) -> 0 | G22: =IF(C22="","",HLOOKUP($H$4,Status!$D$4:$R$28,18,FALSE)) -> -1
C24: =IF(Indicators!D15="","",Indicators!D15) -> Tiempo de resolución de quejas | D24: =IF(C24="","",HLOOKUP($H$4,Data!$H$4:$U$40,29,FALSE)) -> 0 | E24: =IF(D24="","",HLOOKUP($H$4,Data!$H$4:$U$40,30,FALSE)) -> 0 | F24: =IFERROR(IF(C24="","",D24/E24),0) -> 0 | G24: =IF(C24="","",HLOOKUP($H$4,Status!$D$4:$R$28,20,FALSE)) -> 1
C26: =IF(Indicators!D16="","",Indicators!D16) -> Tasa de litigios evitados | D26: =IF(C26="","",HLOOKUP($H$4,Data!$H$4:$U$40,32,FALSE)) -> 0 | E26: =IF(D26="","",HLOOKUP($H$4,Data!$H$4:$U$40,33,FALSE)) -> 0 | F26: =IFERROR(IF(C26="","",D26/E26),0) -> 0 | G26: =IF(C26="","",HLOOKUP($H$4,Status!$D$4:$R$28,22,FALSE)) -> 1
C28: =IF(Indicators!D17="","",Indicators!D17) -> Retorno de inversión de nuevos proyectos | D28: =IF(C28="","",HLOOKUP($H$4,Data!$H$4:$U$40,35,FALSE)) -> 0 | E28: =IF(D28="","",HLOOKUP($H$4,Data!$H$4:$U$40,36,FALSE)) -> 0 | F28: =IFERROR(IF(C28="","",D28/E28),0) -> 0 | G28: =IF(C28="","",HLOOKUP($H$4,Status!$D$4:$R$28,24,FALSE)) -> -1

Sheet Status
T2: =Settings!$F$11 -> 1
T3: =Settings!$F$12 -> 0.8
C4: =Indicators!D5 -> Nombre del indicador | D4: =Data!H4 -> ENE | E4: =Data!I4 -> FEB | F4: =Data!J4 -> MAR | G4: =Data!K4 -> ABR | H4: =Data!L4 -> MAY | I4: =Data!M4 -> JUN | J4: =Data!N4 -> JUL | K4: =Data!O4 -> AGO | L4: =Data!P4 -> SEP | M4: =Data!Q4 -> OCT | N4: =Data!R4 -> NOV | O4: =Data!S4 -> DIC | Q4: =Data!T4 -> ACUM | R4: =Data!U4 -> Total
C5: =IF(Indicators!D6="","",Indicators!D6) -> Tasa de ingreso por ventas | D5: =IF($C5="","",IF(Data!H5="","",IF(AND(Data!H7<Status!$T$3,Status!$T5="↑"),-1,IF(AND(Data!H7<Status!$T$2,Status!$T5="↑"),0,IF(AND(Data!H7>=Status!$T$2,Status!$T5="↑"),1,IF(AND(Data!H7>Status!$T$1,Status!$T5="↓"),-1,IF(AND(Data!H7>=Status!$T$2,Status!$T5="↓"),0,IF(AND(Data!H7<=Status!$T$2,Status!$T5="↓"),1)))))))) -> 0 | E5: =IF($C5="","",IF(Data!I5="","",IF(AND(Data!I7<Status!$T$3,Status!$T5="↑"),-1,IF(AND(Data!I7<Status!$T$2,Status!$T5="↑"),0,IF(AND(Data!I7>=Status!$T$2,Status!$T5="↑"),1,IF(AND(Data!I7>Status!$T$1,Status!$T5="↓"),-1,IF(AND(Data!I7>=Status!$T$2,Status!$T5="↓"),0,IF(AND(Data!I7<=Status!$T$2,Status!$T5="↓"),1)))))))) -> -1 | F5: =IF($C5="","",IF(Data!J5="","",IF(AND(Data!J7<Status!$T$3,Status!$T5="↑"),-1,IF(AND(Data!J7<Status!$T$2,Status!$T5="↑"),0,IF(AND(Data!J7>=Status!$T$2,Status!$T5="↑"),1,IF(AND(Data!J7>Status!$T$1,Status!$T5="↓"),-1,IF(AND(Data!J7>=Status!$T$2,Status!$T5="↓"),0,IF(AND(Data!J7<=Status!$T$2,Status!$T5="↓"),1)))))))) -> -1 | G5: =IF($C5="","",IF(Data!K5="","",IF(AND(Data!K7<Status!$T$3,Status!$T5="↑"),-1,IF(AND(Data!K7<Status!$T$2,Status!$T5="↑"),0,IF(AND(Data!K7>=Status!$T$2,Status!$T5="↑"),1,IF(AND(Data!K7>Status!$T$1,Status!$T5="↓"),-1,IF(AND(Data!K7>=Status!$T$2,Status!$T5="↓"),0,IF(AND(Data!K7<=Status!$T$2,Status!$T5="↓"),1)))))))) -> -1 | H5: =IF($C5="","",IF(Data!L5="","",IF(AND(Data!L7<Status!$T$3,Status!$T5="↑"),-1,IF(AND(Data!L7<Status!$T$2,Status!$T5="↑"),0,IF(AND(Data!L7>=Status!$T$2,Status!$T5="↑"),1,IF(AND(Data!L7>Status!$T$1,Status!$T5="↓"),-1,IF(AND(Data!L7>=Status!$T$2,Status!$T5="↓"),0,IF(AND(Data!L7<=Status!$T$2,Status!$T5="↓"),1)))))))) -> 1 | I5: =IF($C5="","",IF(Data!M5="","",IF(AND(Data!M7<Status!$T$3,Status!$T5="↑"),-1,IF(AND(Data!M7<Status!$T$2,Status!$T5="↑"),0,IF(AND(Data!M7>=Status!$T$2,Status!$T5="↑"),1,IF(AND(Data!M7>Status!$T$1,Status!$T5="↓"),-1,IF(AND(Data!M7>=Status!$T$2,Status!$T5="↓"),0,IF(AND(Data!M7<=Status!$T$2,Status!$T5="↓"),1)))))))) -> -1 | J5: =IF($C5="","",IF(Data!N5="","",IF(AND(Data!N7<Status!$T$3,Status!$T5="↑"),-1,IF(AND(Data!N7<Status!$T$2,Status!$T5="↑"),0,IF(AND(Data!N7>=Status!$T$2,Status!$T5="↑"),1,IF(AND(Data!N7>Status!$T$1,Status!$T5="↓"),-1,IF(AND(Data!N7>=Status!$T$2,Status!$T5="↓"),0,IF(AND(Data!N7<=Status!$T$2,Status!$T5="↓"),1)))))))) -> -1 | K5: =IF($C5="","",IF(Data!O5="","",IF(AND(Data!O7<Status!$T$3,Status!$T5="↑"),-1,IF(AND(Data!O7<Status!$T$2,Status!$T5="↑"),0,IF(AND(Data!O7>=Status!$T$2,Status!$T5="↑"),1,IF(AND(Data!O7>Status!$T$1,Status!$T5="↓"),-1,IF(AND(Data!O7>=Status!$T$2,Status!$T5="↓"),0,IF(AND(Data!O7<=Status!$T$2,Status!$T5="↓"),1)))))))) -> -1 | L5: =IF($C5="","",IF(Data!P5="","",IF(AND(Data!P7<Status!$T$3,Status!$T5="↑"),-1,IF(AND(Data!P7<Status!$T$2,Status!$T5="↑"),0,IF(AND(Data!P7>=Status!$T$2,Status!$T5="↑"),1,IF(AND(Data!P7>Status!$T$1,Status!$T5="↓"),-1,IF(AND(Data!P7>=Status!$T$2,Status!$T5="↓"),0,IF(AND(Data!P7<=Status!$T$2,Status!$T5="↓"),1)))))))) ->  | M5: =IF($C5="","",IF(Data!Q5="","",IF(AND(Data!Q7<Status!$T$3,Status!$T5="↑"),-1,IF(AND(Data!Q7<Status!$T$2,Status!$T5="↑"),0,IF(AND(Data!Q7>=Status!$T$2,Status!$T5="↑"),1,IF(AND(Data!Q7>Status!$T$1,Status!$T5="↓"),-1,IF(AND(Data!Q7>=Status!$T$2,Status!$T5="↓"),0,IF(AND(Data!Q7<=Status!$T$2,Status!$T5="↓"),1)))))))) ->  | N5: =IF($C5="","",IF(Data!R5="","",IF(AND(Data!R7<Status!$T$3,Status!$T5="↑"),-1,IF(AND(Data!R7<Status!$T$2,Status!$T5="↑"),0,IF(AND(Data!R7>=Status!$T$2,Status!$T5="↑"),1,IF(AND(Data!R7>Status!$T$1,Status!$T5="↓"),-1,IF(AND(Data!R7>=Status!$T$2,Status!$T5="↓"),0,IF(AND(Data!R7<=Status!$T$2,Status!$T5="↓"),1)))))))) ->  | O5: =IF($C5="","",IF(Data!S5="","",IF(AND(Data!S7<Status!$T$3,Status!$T5="↑"),-1,IF(AND(Data!S7<Status!$T$2,Status!$T5="↑"),0,IF(AND(Data!S7>=Status!$T$2,Status!$T5="↑"),1,IF(AND(Data!S7>Status!$T$1,Status!$T5="↓"),-1,IF(AND(Data!S7>=Status!$T$2,Status!$T5="↓"),0,IF(AND(Data!S7<=Status!$T$2,Status!$T5="↓"),1)))))))) ->  | Q5: =IF($C5="","",IF(Data!T5="","",IF(AND(Data!T7<Status!$T$3,Status!$T5="↑"),-1,IF(AND(Data!T7<Status!$T$2,Status!$T5="↑"),0,IF(AND(Data!T7>=Status!$T$2,Status!$T5="↑"),1,IF(AND(Data!T7>Status!$T$1,Status!$T5="↓"),-1,IF(AND(Data!T7>=Status!$T$2,Status!$T5="↓"),0,IF(AND(Data!T7<=Status!$T$2,Status!$T5="↓"),1)))))))) -> -1 | R5: =IF($C5="","",IF(Data!U5="","",IF(AND(Data!U7<Status!$T$3,Status!$T5="↑"),-1,IF(AND(Data!U7<Status!$T$2,Status!$T5="↑"),0,IF(AND(Data!U7>=Status!$T$2,Status!$T5="↑"),1,IF(AND(Data!U7>Status!$T$1,Status!$T5="↓"),-1,IF(AND(Data!U7>=Status!$T$2,Status!$T5="↓"),0,IF(AND(Data!U7<=Status!$T$2,Status!$T5="↓"),1)))))))) -> -1 | T5: =Indicators!H6 -> ↑
C7: =IF(Indicators!D7="","",Indicators!D7) -> Tasa de cumplimiento de presupuesto | D7: =IF($C7="","",IF(Data!H8="","",IF(AND(Data!H10<Status!$T$3,Status!$T7="↑"),-1,IF(AND(Data!H10<Status!$T$2,Status!$T7="↑"),0,IF(AND(Data!H10>=Status!$T$2,Status!$T7="↑"),1,IF(AND(Data!H10>Status!$T$1,Status!$T7="↓"),-1,IF(AND(Data!H10>=Status!$T$2,Status!$T7="↓"),0,IF(AND(Data!H10<=Status!$T$2,Status!$T7="↓"),1)))))))) ->  | E7: =IF($C7="","",IF(Data!I8="","",IF(AND(Data!I10<Status!$T$3,Status!$T7="↑"),-1,IF(AND(Data!I10<Status!$T$2,Status!$T7="↑"),0,IF(AND(Data!I10>=Status!$T$2,Status!$T7="↑"),1,IF(AND(Data!I10>Status!$T$1,Status!$T7="↓"),-1,IF(AND(Data!I10>=Status!$T$2,Status!$T7="↓"),0,IF(AND(Data!I10<=Status!$T$2,Status!$T7="↓"),1)))))))) ->  | F7: =IF($C7="","",IF(Data!J8="","",IF(AND(Data!J10<Status!$T$3,Status!$T7="↑"),-1,IF(AND(Data!J10<Status!$T$2,Status!$T7="↑"),0,IF(AND(Data!J10>=Status!$T$2,Status!$T7="↑"),1,IF(AND(Data!J10>Status!$T$1,Status!$T7="↓"),-1,IF(AND(Data!J10>=Status!$T$2,Status!$T7="↓"),0,IF(AND(Data!J10<=Status!$T$2,Status!$T7="↓"),1)))))))) ->  | G7: =IF($C7="","",IF(Data!K8="","",IF(AND(Data!K10<Status!$T$3,Status!$T7="↑"),-1,IF(AND(Data!K10<Status!$T$2,Status!$T7="↑"),0,IF(AND(Data!K10>=Status!$T$2,Status!$T7="↑"),1,IF(AND(Data!K10>Status!$T$1,Status!$T7="↓"),-1,IF(AND(Data!K10>=Status!$T$2,Status!$T7="↓"),0,IF(AND(Data!K10<=Status!$T$2,Status!$T7="↓"),1)))))))) ->  | H7: =IF($C7="","",IF(Data!L8="","",IF(AND(Data!L10<Status!$T$3,Status!$T7="↑"),-1,IF(AND(Data!L10<Status!$T$2,Status!$T7="↑"),0,IF(AND(Data!L10>=Status!$T$2,Status!$T7="↑"),1,IF(AND(Data!L10>Status!$T$1,Status!$T7="↓"),-1,IF(AND(Data!L10>=Status!$T$2,Status!$T7="↓"),0,IF(AND(Data!L10<=Status!$T$2,Status!$T7="↓"),1)))))))) ->  | I7: =IF($C7="","",IF(Data!M8="","",IF(AND(Data!M10<Status!$T$3,Status!$T7="↑"),-1,IF(AND(Data!M10<Status!$T$2,Status!$T7="↑"),0,IF(AND(Data!M10>=Status!$T$2,Status!$T7="↑"),1,IF(AND(Data!M10>Status!$T$1,Status!$T7="↓"),-1,IF(AND(Data!M10>=Status!$T$2,Status!$T7="↓"),0,IF(AND(Data!M10<=Status!$T$2,Status!$T7="↓"),1)))))))) ->  | J7: =IF($C7="","",IF(Data!N8="","",IF(AND(Data!N10<Status!$T$3,Status!$T7="↑"),-1,IF(AND(Data!N10<Status!$T$2,Status!$T7="↑"),0,IF(AND(Data!N10>=Status!$T$2,Status!$T7="↑"),1,IF(AND(Data!N10>Status!$T$1,Status!$T7="↓"),-1,IF(AND(Data!N10>=Status!$T$2,Status!$T7="↓"),0,IF(AND(Data!N10<=Status!$T$2,Status!$T7="↓"),1)))))))) ->  | K7: =IF($C7="","",IF(Data!O8="","",IF(AND(Data!O10<Status!$T$3,Status!$T7="↑"),-1,IF(AND(Data!O10<Status!$T$2,Status!$T7="↑"),0,IF(AND(Data!O10>=Status!$T$2,Status!$T7="↑"),1,IF(AND(Data!O10>Status!$T$1,Status!$T7="↓"),-1,IF(AND(Data!O10>=Status!$T$2,Status!$T7="↓"),0,IF(AND(Data!O10<=Status!$T$2,Status!$T7="↓"),1)))))))) ->  | L7: =IF($C7="","",IF(Data!P8="","",IF(AND(Data!P10<Status!$T$3,Status!$T7="↑"),-1,IF(AND(Data!P10<Status!$T$2,Status!$T7="↑"),0,IF(AND(Data!P10>=Status!$T$2,Status!$T7="↑"),1,IF(AND(Data!P10>Status!$T$1,Status!$T7="↓"),-1,IF(AND(Data!P10>=Status!$T$2,Status!$T7="↓"),0,IF(AND(Data!P10<=Status!$T$2,Status!$T7="↓"),1)))))))) ->  | M7: =IF($C7="","",IF(Data!Q8="","",IF(AND(Data!Q10<Status!$T$3,Status!$T7="↑"),-1,IF(AND(Data!Q10<Status!$T$2,Status!$T7="↑"),0,IF(AND(Data!Q10>=Status!$T$2,Status!$T7="↑"),1,IF(AND(Data!Q10>Status!$T$1,Status!$T7="↓"),-1,IF(AND(Data!Q10>=Status!$T$2,Status!$T7="↓"),0,IF(AND(Data!Q10<=Status!$T$2,Status!$T7="↓"),1)))))))) ->  | N7: =IF($C7="","",IF(Data!R8="","",IF(AND(Data!R10<Status!$T$3,Status!$T7="↑"),-1,IF(AND(Data!R10<Status!$T$2,Status!$T7="↑"),0,IF(AND(Data!R10>=Status!$T$2,Status!$T7="↑"),1,IF(AND(Data!R10>Status!$T$1,Status!$T7="↓"),-1,IF(AND(Data!R10>=Status!$T$2,Status!$T7="↓"),0,IF(AND(Data!R10<=Status!$T$2,Status!$T7="↓"),1)))))))) ->  | O7: =IF($C7="","",IF(Data!S8="","",IF(AND(Data!S10<Status!$T$3,Status!$T7="↑"),-1,IF(AND(Data!S10<Status!$T$2,Status!$T7="↑"),0,IF(AND(Data!S10>=Status!$T$2,Status!$T7="↑"),1,IF(AND(Data!S10>Status!$T$1,Status!$T7="↓"),-1,IF(AND(Data!S10>=Status!$T$2,Status!$T7="↓"),0,IF(AND(Data!S10<=Status!$T$2,Status!$T7="↓"),1)))))))) ->  | Q7: =IF($C7="","",IF(Data!T8="","",IF(AND(Data!T10<Status!$T$3,Status!$T7="↑"),-1,IF(AND(Data!T10<Status!$T$2,Status!$T7="↑"),0,IF(AND(Data!T10>=Status!$T$2,Status!$T7="↑"),1,IF(AND(Data!T10>Status!$T$1,Status!$T7="↓"),-1,IF(AND(Data!T10>=Status!$T$2,Status!$T7="↓"),0,IF(AND(Data!T10<=Status!$T$2,Status!$T7="↓"),1)))))))) -> -1 | R7: =IF($C7="","",IF(Data!U8="","",IF(AND(Data!U10<Status!$T$3,Status!$T7="↑"),-1,IF(AND(Data!U10<Status!$T$2,Status!$T7="↑"),0,IF(AND(Data!U10>=Status!$T$2,Status!$T7="↑"),1,IF(AND(Data!U10>Status!$T$1,Status!$T7="↓"),-1,IF(AND(Data!U10>=Status!$T$2,Status!$T7="↓"),0,IF(AND(Data!U10<=Status!$T$2,Status!$T7="↓"),1)))))))) -> -1 | T7: =Indicators!H7 -> ↑
C9: =IF(Indicators!D8="","",Indicators!D8) -> Tasa de endeudamiento | D9: =IF($C9="","",IF(Data!H11="","",IF(AND(Data!H13<Status!$T$3,Status!$T9="↑"),-1,IF(AND(Data!H13<Status!$T$2,Status!$T9="↑"),0,IF(AND(Data!H13>=Status!$T$2,Status!$T9="↑"),1,IF(AND(Data!H13>Status!$T$1,Status!$T9="↓"),-1,IF(AND(Data!H13>=Status!$T$2,Status!$T9="↓"),0,IF(AND(Data!H13<=Status!$T$2,Status!$T9="↓"),1)))))))) ->  | E9: =IF($C9="","",IF(Data!I11="","",IF(AND(Data!I13<Status!$T$3,Status!$T9="↑"),-1,IF(AND(Data!I13<Status!$T$2,Status!$T9="↑"),0,IF(AND(Data!I13>=Status!$T$2,Status!$T9="↑"),1,IF(AND(Data!I13>Status!$T$1,Status!$T9="↓"),-1,IF(AND(Data!I13>=Status!$T$2,Status!$T9="↓"),0,IF(AND(Data!I13<=Status!$T$2,Status!$T9="↓"),1)))))))) ->  | F9: =IF($C9="","",IF(Data!J11="","",IF(AND(Data!J13<Status!$T$3,Status!$T9="↑"),-1,IF(AND(Data!J13<Status!$T$2,Status!$T9="↑"),0,IF(AND(Data!J13>=Status!$T$2,Status!$T9="↑"),1,IF(AND(Data!J13>Status!$T$1,Status!$T9="↓"),-1,IF(AND(Data!J13>=Status!$T$2,Status!$T9="↓"),0,IF(AND(Data!J13<=Status!$T$2,Status!$T9="↓"),1)))))))) ->  | G9: =IF($C9="","",IF(Data!K11="","",IF(AND(Data!K13<Status!$T$3,Status!$T9="↑"),-1,IF(AND(Data!K13<Status!$T$2,Status!$T9="↑"),0,IF(AND(Data!K13>=Status!$T$2,Status!$T9="↑"),1,IF(AND(Data!K13>Status!$T$1,Status!$T9="↓"),-1,IF(AND(Data!K13>=Status!$T$2,Status!$T9="↓"),0,IF(AND(Data!K13<=Status!$T$2,Status!$T9="↓"),1)))))))) ->  | H9: =IF($C9="","",IF(Data!L11="","",IF(AND(Data!L13<Status!$T$3,Status!$T9="↑"),-1,IF(AND(Data!L13<Status!$T$2,Status!$T9="↑"),0,IF(AND(Data!L13>=Status!$T$2,Status!$T9="↑"),1,IF(AND(Data!L13>Status!$T$1,Status!$T9="↓"),-1,IF(AND(Data!L13>=Status!$T$2,Status!$T9="↓"),0,IF(AND(Data!L13<=Status!$T$2,Status!$T9="↓"),1)))))))) ->  | I9: =IF($C9="","",IF(Data!M11="","",IF(AND(Data!M13<Status!$T$3,Status!$T9="↑"),-1,IF(AND(Data!M13<Status!$T$2,Status!$T9="↑"),0,IF(AND(Data!M13>=Status!$T$2,Status!$T9="↑"),1,IF(AND(Data!M13>Status!$T$1,Status!$T9="↓"),-1,IF(AND(Data!M13>=Status!$T$2,Status!$T9="↓"),0,IF(AND(Data!M13<=Status!$T$2,Status!$T9="↓"),1)))))))) ->  | J9: =IF($C9="","",IF(Data!N11="","",IF(AND(Data!N13<Status!$T$3,Status!$T9="↑"),-1,IF(AND(Data!N13<Status!$T$2,Status!$T9="↑"),0,IF(AND(Data!N13>=Status!$T$2,Status!$T9="↑"),1,IF(AND(Data!N13>Status!$T$1,Status!$T9="↓"),-1,IF(AND(Data!N13>=Status!$T$2,Status!$T9="↓"),0,IF(AND(Data!N13<=Status!$T$2,Status!$T9="↓"),1)))))))) ->  | K9: =IF($C9="","",IF(Data!O11="","",IF(AND(Data!O13<Status!$T$3,Status!$T9="↑"),-1,IF(AND(Data!O13<Status!$T$2,Status!$T9="↑"),0,IF(AND(Data!O13>=Status!$T$2,Status!$T9="↑"),1,IF(AND(Data!O13>Status!$T$1,Status!$T9="↓"),-1,IF(AND(Data!O13>=Status!$T$2,Status!$T9="↓"),0,IF(AND(Data!O13<=Status!$T$2,Status!$T9="↓"),1)))))))) ->  | L9: =IF($C9="","",IF(Data!P11="","",IF(AND(Data!P13<Status!$T$3,Status!$T9="↑"),-1,IF(AND(Data!P13<Status!$T$2,Status!$T9="↑"),0,IF(AND(Data!P13>=Status!$T$2,Status!$T9="↑"),1,IF(AND(Data!P13>Status!$T$1,Status!$T9="↓"),-1,IF(AND(Data!P13>=Status!$T$2,Status!$T9="↓"),0,IF(AND(Data!P13<=Status!$T$2,Status!$T9="↓"),1)))))))) ->  | M9: =IF($C9="","",IF(Data!Q11="","",IF(AND(Data!Q13<Status!$T$3,Status!$T9="↑"),-1,IF(AND(Data!Q13<Status!$T$2,Status!$T9="↑"),0,IF(AND(Data!Q13>=Status!$T$2,Status!$T9="↑"),1,IF(AND(Data!Q13>Status!$T$1,Status!$T9="↓"),-1,IF(AND(Data!Q13>=Status!$T$2,Status!$T9="↓"),0,IF(AND(Data!Q13<=Status!$T$2,Status!$T9="↓"),1)))))))) ->  | N9: =IF($C9="","",IF(Data!R11="","",IF(AND(Data!R13<Status!$T$3,Status!$T9="↑"),-1,IF(AND(Data!R13<Status!$T$2,Status!$T9="↑"),0,IF(AND(Data!R13>=Status!$T$2,Status!$T9="↑"),1,IF(AND(Data!R13>Status!$T$1,Status!$T9="↓"),-1,IF(AND(Data!R13>=Status!$T$2,Status!$T9="↓"),0,IF(AND(Data!R13<=Status!$T$2,Status!$T9="↓"),1)))))))) ->  | O9: =IF($C9="","",IF(Data!S11="","",IF(AND(Data!S13<Status!$T$3,Status!$T9="↑"),-1,IF(AND(Data!S13<Status!$T$2,Status!$T9="↑"),0,IF(AND(Data!S13>=Status!$T$2,Status!$T9="↑"),1,IF(AND(Data!S13>Status!$T$1,Status!$T9="↓"),-1,IF(AND(Data!S13>=Status!$T$2,Status!$T9="↓"),0,IF(AND(Data!S13<=Status!$T$2,Status!$T9="↓"),1)))))))) ->  | Q9: =IF($C9="","",IF(Data!T11="","",IF(AND(Data!T13<Status!$T$3,Status!$T9="↑"),-1,IF(AND(Data!T13<Status!$T$2,Status!$T9="↑"),0,IF(AND(Data!T13>=Status!$T$2,Status!$T9="↑"),1,IF(AND(Data!T13>Status!$T$1,Status!$T9="↓"),-1,IF(AND(Data!T13>=Status!$T$2,Status!$T9="↓"),0,IF(AND(Data!T13<=Status!$T$2,Status!$T9="↓"),1)))))))) -> 1 | R9: =IF($C9="","",IF(Data!U11="","",IF(AND(Data!U13<Status!$T$3,Status!$T9="↑"),-1,IF(AND(Data!U13<Status!$T$2,Status!$T9="↑"),0,IF(AND(Data!U13>=Status!$T$2,Status!$T9="↑"),1,IF(AND(Data!U13>Status!$T$1,Status!$T9="↓"),-1,IF(AND(Data!U13>=Status!$T$2,Status!$T9="↓"),0,IF(AND(Data!U13<=Status!$T$2,Status!$T9="↓"),1)))))))) -> 1 | T9: =Indicators!H8 -> ↓
C11: =IF(Indicators!D9="","",Indicators!D9) -> Número de procesos de capacitación | D11: =IF($C11="","",IF(Data!H14="","",IF(AND(Data!H16<Status!$T$3,Status!$T11="↑"),-1,IF(AND(Data!H16<Status!$T$2,Status!$T11="↑"),0,IF(AND(Data!H16>=Status!$T$2,Status!$T11="↑"),1,IF(AND(Data!H16>Status!$T$1,Status!$T11="↓"),-1,IF(AND(Data!H16>=Status!$T$2,Status!$T11="↓"),0,IF(AND(Data!H16<=Status!$T$2,Status!$T11="↓"),1)))))))) -> 1 | E11: =IF($C11="","",IF(Data!I14="","",IF(AND(Data!I16<Status!$T$3,Status!$T11="↑"),-1,IF(AND(Data!I16<Status!$T$2,Status!$T11="↑"),0,IF(AND(Data!I16>=Status!$T$2,Status!$T11="↑"),1,IF(AND(Data!I16>Status!$T$1,Status!$T11="↓"),-1,IF(AND(Data!I16>=Status!$T$2,Status!$T11="↓"),0,IF(AND(Data!I16<=Status!$T$2,Status!$T11="↓"),1)))))))) -> 1 | F11: =IF($C11="","",IF(Data!J14="","",IF(AND(Data!J16<Status!$T$3,Status!$T11="↑"),-1,IF(AND(Data!J16<Status!$T$2,Status!$T11="↑"),0,IF(AND(Data!J16>=Status!$T$2,Status!$T11="↑"),1,IF(AND(Data!J16>Status!$T$1,Status!$T11="↓"),-1,IF(AND(Data!J16>=Status!$T$2,Status!$T11="↓"),0,IF(AND(Data!J16<=Status!$T$2,Status!$T11="↓"),1)))))))) -> -1 | G11: =IF($C11="","",IF(Data!K14="","",IF(AND(Data!K16<Status!$T$3,Status!$T11="↑"),-1,IF(AND(Data!K16<Status!$T$2,Status!$T11="↑"),0,IF(AND(Data!K16>=Status!$T$2,Status!$T11="↑"),1,IF(AND(Data!K16>Status!$T$1,Status!$T11="↓"),-1,IF(AND(Data!K16>=Status!$T$2,Status!$T11="↓"),0,IF(AND(Data!K16<=Status!$T$2,Status!$T11="↓"),1)))))))) ->  | H11: =IF($C11="","",IF(Data!L14="","",IF(AND(Data!L16<Status!$T$3,Status!$T11="↑"),-1,IF(AND(Data!L16<Status!$T$2,Status!$T11="↑"),0,IF(AND(Data!L16>=Status!$T$2,Status!$T11="↑"),1,IF(AND(Data!L16>Status!$T$1,Status!$T11="↓"),-1,IF(AND(Data!L16>=Status!$T$2,Status!$T11="↓"),0,IF(AND(Data!L16<=Status!$T$2,Status!$T11="↓"),1)))))))) ->  | I11: =IF($C11="","",IF(Data!M14="","",IF(AND(Data!M16<Status!$T$3,Status!$T11="↑"),-1,IF(AND(Data!M16<Status!$T$2,Status!$T11="↑"),0,IF(AND(Data!M16>=Status!$T$2,Status!$T11="↑"),1,IF(AND(Data!M16>Status!$T$1,Status!$T11="↓"),-1,IF(AND(Data!M16>=Status!$T$2,Status!$T11="↓"),0,IF(AND(Data!M16<=Status!$T$2,Status!$T11="↓"),1)))))))) ->  | J11: =IF($C11="","",IF(Data!N14="","",IF(AND(Data!N16<Status!$T$3,Status!$T11="↑"),-1,IF(AND(Data!N16<Status!$T$2,Status!$T11="↑"),0,IF(AND(Data!N16>=Status!$T$2,Status!$T11="↑"),1,IF(AND(Data!N16>Status!$T$1,Status!$T11="↓"),-1,IF(AND(Data!N16>=Status!$T$2,Status!$T11="↓"),0,IF(AND(Data!N16<=Status!$T$2,Status!$T11="↓"),1)))))))) ->  | K11: =IF($C11="","",IF(Data!O14="","",IF(AND(Data!O16<Status!$T$3,Status!$T11="↑"),-1,IF(AND(Data!O16<Status!$T$2,Status!$T11="↑"),0,IF(AND(Data!O16>=Status!$T$2,Status!$T11="↑"),1,IF(AND(Data!O16>Status!$T$1,Status!$T11="↓"),-1,IF(AND(Data!O16>=Status!$T$2,Status!$T11="↓"),0,IF(AND(Data!O16<=Status!$T$2,Status!$T11="↓"),1)))))))) ->  | L11: =IF($C11="","",IF(Data!P14="","",IF(AND(Data!P16<Status!$T$3,Status!$T11="↑"),-1,IF(AND(Data!P16<Status!$T$2,Status!$T11="↑"),0,IF(AND(Data!P16>=Status!$T$2,Status!$T11="↑"),1,IF(AND(Data!P16>Status!$T$1,Status!$T11="↓"),-1,IF(AND(Data!P16>=Status!$T$2,Status!$T11="↓"),0,IF(AND(Data!P16<=Status!$T$2,Status!$T11="↓"),1)))))))) ->  | M11: =IF($C11="","",IF(Data!Q14="","",IF(AND(Data!Q16<Status!$T$3,Status!$T11="↑"),-1,IF(AND(Data!Q16<Status!$T$2,Status!$T11="↑"),0,IF(AND(Data!Q16>=Status!$T$2,Status!$T11="↑"),1,IF(AND(Data!Q16>Status!$T$1,Status!$T11="↓"),-1,IF(AND(Data!Q16>=Status!$T$2,Status!$T11="↓"),0,IF(AND(Data!Q16<=Status!$T$2,Status!$T11="↓"),1)))))))) ->  | N11: =IF($C11="","",IF(Data!R14="","",IF(AND(Data!R16<Status!$T$3,Status!$T11="↑"),-1,IF(AND(Data!R16<Status!$T$2,Status!$T11="↑"),0,IF(AND(Data!R16>=Status!$T$2,Status!$T11="↑"),1,IF(AND(Data!R16>Status!$T$1,Status!$T11="↓"),-1,IF(AND(Data!R16>=Status!$T$2,Status!$T11="↓"),0,IF(AND(Data!R16<=Status!$T$2,Status!$T11="↓"),1)))))))) ->  | O11: =IF($C11="","",IF(Data!S14="","",IF(AND(Data!S16<Status!$T$3,Status!$T11="↑"),-1,IF(AND(Data!S16<Status!$T$2,Status!$T11="↑"),0,IF(AND(Data!S16>=Status!$T$2,Status!$T11="↑"),1,IF(AND(Data!S16>Status!$T$1,Status!$T11="↓"),-1,IF(AND(Data!S16>=Status!$T$2,Status!$T11="↓"),0,IF(AND(Data!S16<=Status!$T$2,Status!$T11="↓"),1)))))))) ->  | Q11: =IF($C11="","",IF(Data!T14="","",IF(AND(Data!T16<Status!$T$3,Status!$T11="↑"),-1,IF(AND(Data!T16<Status!$T$2,Status!$T11="↑"),0,IF(AND(Data!T16>=Status!$T$2,Status!$T11="↑"),1,IF(AND(Data!T16>Status!$T$1,Status!$T11="↓"),-1,IF(AND(Data!T16>=Status!$T$2,Status!$T11="↓"),0,IF(AND(Data!T16<=Status!$T$2,Status!$T11="↓"),1)))))))) -> 0 | R11: =IF($C11="","",IF(Data!U14="","",IF(AND(Data!U16<Status!$T$3,Status!$T11="↑"),-1,IF(AND(Data!U16<Status!$T$2,Status!$T11="↑"),0,IF(AND(Data!U16>=Status!$T$2,Status!$T11="↑"),1,IF(AND(Data!U16>Status!$T$1,Status!$T11="↓"),-1,IF(AND(Data!U16>=Status!$T$2,Status!$T11="↓"),0,IF(AND(Data!U16<=Status!$T$2,Status!$T11="↓"),1)))))))) -> 0 | T11: =Indicators!H9 -> ↑
C13: =IF(Indicators!D10="","",Indicators!D10) -> Eficiencia del ciclo de producción | D13: =IF($C13="","",IF(Data!H17="","",IF(AND(Data!H19<Status!$T$3,Status!$T13="↑"),-1,IF(AND(Data!H19<Status!$T$2,Status!$T13="↑"),0,IF(AND(Data!H19>=Status!$T$2,Status!$T13="↑"),1,IF(AND(Data!H19>Status!$T$1,Status!$T13="↓"),-1,IF(AND(Data!H19>=Status!$T$2,Status!$T13="↓"),0,IF(AND(Data!H19<=Status!$T$2,Status!$T13="↓"),1)))))))) ->  | E13: =IF($C13="","",IF(Data!I17="","",IF(AND(Data!I19<Status!$T$3,Status!$T13="↑"),-1,IF(AND(Data!I19<Status!$T$2,Status!$T13="↑"),0,IF(AND(Data!I19>=Status!$T$2,Status!$T13="↑"),1,IF(AND(Data!I19>Status!$T$1,Status!$T13="↓"),-1,IF(AND(Data!I19>=Status!$T$2,Status!$T13="↓"),0,IF(AND(Data!I19<=Status!$T$2,Status!$T13="↓"),1)))))))) ->  | F13: =IF($C13="","",IF(Data!J17="","",IF(AND(Data!J19<Status!$T$3,Status!$T13="↑"),-1,IF(AND(Data!J19<Status!$T$2,Status!$T13="↑"),0,IF(AND(Data!J19>=Status!$T$2,Status!$T13="↑"),1,IF(AND(Data!J19>Status!$T$1,Status!$T13="↓"),-1,IF(AND(Data!J19>=Status!$T$2,Status!$T13="↓"),0,IF(AND(Data!J19<=Status!$T$2,Status!$T13="↓"),1)))))))) ->  | G13: =IF($C13="","",IF(Data!K17="","",IF(AND(Data!K19<Status!$T$3,Status!$T13="↑"),-1,IF(AND(Data!K19<Status!$T$2,Status!$T13="↑"),0,IF(AND(Data!K19>=Status!$T$2,Status!$T13="↑"),1,IF(AND(Data!K19>Status!$T$1,Status!$T13="↓"),-1,IF(AND(Data!K19>=Status!$T$2,Status!$T13="↓"),0,IF(AND(Data!K19<=Status!$T$2,Status!$T13="↓"),1)))))))) ->  | H13: =IF($C13="","",IF(Data!L17="","",IF(AND(Data!L19<Status!$T$3,Status!$T13="↑"),-1,IF(AND(Data!L19<Status!$T$2,Status!$T13="↑"),0,IF(AND(Data!L19>=Status!$T$2,Status!$T13="↑"),1,IF(AND(Data!L19>Status!$T$1,Status!$T13="↓"),-1,IF(AND(Data!L19>=Status!$T$2,Status!$T13="↓"),0,IF(AND(Data!L19<=Status!$T$2,Status!$T13="↓"),1)))))))) ->  | I13: =IF($C13="","",IF(Data!M17="","",IF(AND(Data!M19<Status!$T$3,Status!$T13="↑"),-1,IF(AND(Data!M19<Status!$T$2,Status!$T13="↑"),0,IF(AND(Data!M19>=Status!$T$2,Status!$T13="↑"),1,IF(AND(Data!M19>Status!$T$1,Status!$T13="↓"),-1,IF(AND(Data!M19>=Status!$T$2,Status!$T13="↓"),0,IF(AND(Data!M19<=Status!$T$2,Status!$T13="↓"),1)))))))) ->  | J13: =IF($C13="","",IF(Data!N17="","",IF(AND(Data!N19<Status!$T$3,Status!$T13="↑"),-1,IF(AND(Data!N19<Status!$T$2,Status!$T13="↑"),0,IF(AND(Data!N19>=Status!$T$2,Status!$T13="↑"),1,IF(AND(Data!N19>Status!$T$1,Status!$T13="↓"),-1,IF(AND(Data!N19>=Status!$T$2,Status!$T13="↓"),0,IF(AND(Data!N19<=Status!$T$2,Status!$T13="↓"),1)))))))) ->  | K13: =IF($C13="","",IF(Data!O17="","",IF(AND(Data!O19<Status!$T$3,Status!$T13="↑"),-1,IF(AND(Data!O19<Status!$T$2,Status!$T13="↑"),0,IF(AND(Data!O19>=Status!$T$2,Status!$T13="↑"),1,IF(AND(Data!O19>Status!$T$1,Status!$T13="↓"),-1,IF(AND(Data!O19>=Status!$T$2,Status!$T13="↓"),0,IF(AND(Data!O19<=Status!$T$2,Status!$T13="↓"),1)))))))) ->  | L13: =IF($C13="","",IF(Data!P17="","",IF(AND(Data!P19<Status!$T$3,Status!$T13="↑"),-1,IF(AND(Data!P19<Status!$T$2,Status!$T13="↑"),0,IF(AND(Data!P19>=Status!$T$2,Status!$T13="↑"),1,IF(AND(Data!P19>Status!$T$1,Status!$T13="↓"),-1,IF(AND(Data!P19>=Status!$T$2,Status!$T13="↓"),0,IF(AND(Data!P19<=Status!$T$2,Status!$T13="↓"),1)))))))) ->  | M13: =IF($C13="","",IF(Data!Q17="","",IF(AND(Data!Q19<Status!$T$3,Status!$T13="↑"),-1,IF(AND(Data!Q19<Status!$T$2,Status!$T13="↑"),0,IF(AND(Data!Q19>=Status!$T$2,Status!$T13="↑"),1,IF(AND(Data!Q19>Status!$T$1,Status!$T13="↓"),-1,IF(AND(Data!Q19>=Status!$T$2,Status!$T13="↓"),0,IF(AND(Data!Q19<=Status!$T$2,Status!$T13="↓"),1)))))))) ->  | N13: =IF($C13="","",IF(Data!R17="","",IF(AND(Data!R19<Status!$T$3,Status!$T13="↑"),-1,IF(AND(Data!R19<Status!$T$2,Status!$T13="↑"),0,IF(AND(Data!R19>=Status!$T$2,Status!$T13="↑"),1,IF(AND(Data!R19>Status!$T$1,Status!$T13="↓"),-1,IF(AND(Data!R19>=Status!$T$2,Status!$T13="↓"),0,IF(AND(Data!R19<=Status!$T$2,Status!$T13="↓"),1)))))))) ->  | O13: =IF($C13="","",IF(Data!S17="","",IF(AND(Data!S19<Status!$T$3,Status!$T13="↑"),-1,IF(AND(Data!S19<Status!$T$2,Status!$T13="↑"),0,IF(AND(Data!S19>=Status!$T$2,Status!$T13="↑"),1,IF(AND(Data!S19>Status!$T$1,Status!$T13="↓"),-1,IF(AND(Data!S19>=Status!$T$2,Status!$T13="↓"),0,IF(AND(Data!S19<=Status!$T$2,Status!$T13="↓"),1)))))))) ->  | Q13: =IF($C13="","",IF(Data!T17="","",IF(AND(Data!T19<Status!$T$3,Status!$T13="↑"),-1,IF(AND(Data!T19<Status!$T$2,Status!$T13="↑"),0,IF(AND(Data!T19>=Status!$T$2,Status!$T13="↑"),1,IF(AND(Data!T19>Status!$T$1,Status!$T13="↓"),-1,IF(AND(Data!T19>=Status!$T$2,Status!$T13="↓"),0,IF(AND(Data!T19<=Status!$T$2,Status!$T13="↓"),1)))))))) -> -1 | R13: =IF($C13="","",IF(Data!U17="","",IF(AND(Data!U19<Status!$T$3,Status!$T13="↑"),-1,IF(AND(Data!U19<Status!$T$2,Status!$T13="↑"),0,IF(AND(Data!U19>=Status!$T$2,Status!$T13="↑"),1,IF(AND(Data!U19>Status!$T$1,Status!$T13="↓"),-1,IF(AND(Data!U19>=Status!$T$2,Status!$T13="↓"),0,IF(AND(Data!U19<=Status!$T$2,Status!$T13="↓"),1)))))))) -> -1 | T13: =Indicators!H10 -> ↑
C15: =IF(Indicators!D11="","",Indicators!D11) -> Tiempo de inactividad no planificada por TI | D15: =IF($C15="","",IF(Data!H20="","",IF(AND(Data!H22<Status!$T$3,Status!$T15="↑"),-1,IF(AND(Data!H22<Status!$T$2,Status!$T15="↑"),0,IF(AND(Data!H22>=Status!$T$2,Status!$T15="↑"),1,IF(AND(Data!H22>Status!$T$1,Status!$T15="↓"),-1,IF(AND(Data!H22>=Status!$T$2,Status!$T15="↓"),0,IF(AND(Data!H22<=Status!$T$2,Status!$T15="↓"),1)))))))) ->  | E15: =IF($C15="","",IF(Data!I20="","",IF(AND(Data!I22<Status!$T$3,Status!$T15="↑"),-1,IF(AND(Data!I22<Status!$T$2,Status!$T15="↑"),0,IF(AND(Data!I22>=Status!$T$2,Status!$T15="↑"),1,IF(AND(Data!I22>Status!$T$1,Status!$T15="↓"),-1,IF(AND(Data!I22>=Status!$T$2,Status!$T15="↓"),0,IF(AND(Data!I22<=Status!$T$2,Status!$T15="↓"),1)))))))) ->  | F15: =IF($C15="","",IF(Data!J20="","",IF(AND(Data!J22<Status!$T$3,Status!$T15="↑"),-1,IF(AND(Data!J22<Status!$T$2,Status!$T15="↑"),0,IF(AND(Data!J22>=Status!$T$2,Status!$T15="↑"),1,IF(AND(Data!J22>Status!$T$1,Status!$T15="↓"),-1,IF(AND(Data!J22>=Status!$T$2,Status!$T15="↓"),0,IF(AND(Data!J22<=Status!$T$2,Status!$T15="↓"),1)))))))) ->  | G15: =IF($C15="","",IF(Data!K20="","",IF(AND(Data!K22<Status!$T$3,Status!$T15="↑"),-1,IF(AND(Data!K22<Status!$T$2,Status!$T15="↑"),0,IF(AND(Data!K22>=Status!$T$2,Status!$T15="↑"),1,IF(AND(Data!K22>Status!$T$1,Status!$T15="↓"),-1,IF(AND(Data!K22>=Status!$T$2,Status!$T15="↓"),0,IF(AND(Data!K22<=Status!$T$2,Status!$T15="↓"),1)))))))) ->  | H15: =IF($C15="","",IF(Data!L20="","",IF(AND(Data!L22<Status!$T$3,Status!$T15="↑"),-1,IF(AND(Data!L22<Status!$T$2,Status!$T15="↑"),0,IF(AND(Data!L22>=Status!$T$2,Status!$T15="↑"),1,IF(AND(Data!L22>Status!$T$1,Status!$T15="↓"),-1,IF(AND(Data!L22>=Status!$T$2,Status!$T15="↓"),0,IF(AND(Data!L22<=Status!$T$2,Status!$T15="↓"),1)))))))) ->  | I15: =IF($C15="","",IF(Data!M20="","",IF(AND(Data!M22<Status!$T$3,Status!$T15="↑"),-1,IF(AND(Data!M22<Status!$T$2,Status!$T15="↑"),0,IF(AND(Data!M22>=Status!$T$2,Status!$T15="↑"),1,IF(AND(Data!M22>Status!$T$1,Status!$T15="↓"),-1,IF(AND(Data!M22>=Status!$T$2,Status!$T15="↓"),0,IF(AND(Data!M22<=Status!$T$2,Status!$T15="↓"),1)))))))) ->  | J15: =IF($C15="","",IF(Data!N20="","",IF(AND(Data!N22<Status!$T$3,Status!$T15="↑"),-1,IF(AND(Data!N22<Status!$T$2,Status!$T15="↑"),0,IF(AND(Data!N22>=Status!$T$2,Status!$T15="↑"),1,IF(AND(Data!N22>Status!$T$1,Status!$T15="↓"),-1,IF(AND(Data!N22>=Status!$T$2,Status!$T15="↓"),0,IF(AND(Data!N22<=Status!$T$2,Status!$T15="↓"),1)))))))) ->  | K15: =IF($C15="","",IF(Data!O20="","",IF(AND(Data!O22<Status!$T$3,Status!$T15="↑"),-1,IF(AND(Data!O22<Status!$T$2,Status!$T15="↑"),0,IF(AND(Data!O22>=Status!$T$2,Status!$T15="↑"),1,IF(AND(Data!O22>Status!$T$1,Status!$T15="↓"),-1,IF(AND(Data!O22>=Status!$T$2,Status!$T15="↓"),0,IF(AND(Data!O22<=Status!$T$2,Status!$T15="↓"),1)))))))) ->  | L15: =IF($C15="","",IF(Data!P20="","",IF(AND(Data!P22<Status!$T$3,Status!$T15="↑"),-1,IF(AND(Data!P22<Status!$T$2,Status!$T15="↑"),0,IF(AND(Data!P22>=Status!$T$2,Status!$T15="↑"),1,IF(AND(Data!P22>Status!$T$1,Status!$T15="↓"),-1,IF(AND(Data!P22>=Status!$T$2,Status!$T15="↓"),0,IF(AND(Data!P22<=Status!$T$2,Status!$T15="↓"),1)))))))) ->  | M15: =IF($C15="","",IF(Data!Q20="","",IF(AND(Data!Q22<Status!$T$3,Status!$T15="↑"),-1,IF(AND(Data!Q22<Status!$T$2,Status!$T15="↑"),0,IF(AND(Data!Q22>=Status!$T$2,Status!$T15="↑"),1,IF(AND(Data!Q22>Status!$T$1,Status!$T15="↓"),-1,IF(AND(Data!Q22>=Status!$T$2,Status!$T15="↓"),0,IF(AND(Data!Q22<=Status!$T$2,Status!$T15="↓"),1)))))))) ->  | N15: =IF($C15="","",IF(Data!R20="","",IF(AND(Data!R22<Status!$T$3,Status!$T15="↑"),-1,IF(AND(Data!R22<Status!$T$2,Status!$T15="↑"),0,IF(AND(Data!R22>=Status!$T$2,Status!$T15="↑"),1,IF(AND(Data!R22>Status!$T$1,Status!$T15="↓"),-1,IF(AND(Data!R22>=Status!$T$2,Status!$T15="↓"),0,IF(AND(Data!R22<=Status!$T$2,Status!$T15="↓"),1)))))))) ->  | O15: =IF($C15="","",IF(Data!S20="","",IF(AND(Data!S22<Status!$T$3,Status!$T15="↑"),-1,IF(AND(Data!S22<Status!$T$2,Status!$T15="↑"),0,IF(AND(Data!S22>=Status!$T$2,Status!$T15="↑"),1,IF(AND(Data!S22>Status!$T$1,Status!$T15="↓"),-1,IF(AND(Data!S22>=Status!$T$2,Status!$T15="↓"),0,IF(AND(Data!S22<=Status!$T$2,Status!$T15="↓"),1)))))))) ->  | Q15: =IF($C15="","",IF(Data!T20="","",IF(AND(Data!T22<Status!$T$3,Status!$T15="↑"),-1,IF(AND(Data!T22<Status!$T$2,Status!$T15="↑"),0,IF(AND(Data!T22>=Status!$T$2,Status!$T15="↑"),1,IF(AND(Data!T22>Status!$T$1,Status!$T15="↓"),-1,IF(AND(Data!T22>=Status!$T$2,Status!$T15="↓"),0,IF(AND(Data!T22<=Status!$T$2,Status!$T15="↓"),1)))))))) -> 1 | R15: =IF($C15="","",IF(Data!U20="","",IF(AND(Data!U22<Status!$T$3,Status!$T15="↑"),-1,IF(AND(Data!U22<Status!$T$2,Status!$T15="↑"),0,IF(AND(Data!U22>=Status!$T$2,Status!$T15="↑"),1,IF(AND(Data!U22>Status!$T$1,Status!$T15="↓"),-1,IF(AND(Data!U22>=Status!$T$2,Status!$T15="↓"),0,IF(AND(Data!U22<=Status!$T$2,Status!$T15="↓"),1)))))))) -> 1 | T15: =Indicators!H11 -> ↓
C17: =IF(Indicators!D12="","",Indicators!D12) -> Tasa de mantenimientos preventivos a los equipos | D17: =IF($C17="","",IF(Data!H23="","",IF(AND(Data!H25<Status!$T$3,Status!$T17="↑"),-1,IF(AND(Data!H25<Status!$T$2,Status!$T17="↑"),0,IF(AND(Data!H25>=Status!$T$2,Status!$T17="↑"),1,IF(AND(Data!H25>Status!$T$1,Status!$T17="↓"),-1,IF(AND(Data!H25>=Status!$T$2,Status!$T17="↓"),0,IF(AND(Data!H25<=Status!$T$2,Status!$T17="↓"),1)))))))) ->  | E17: =IF($C17="","",IF(Data!I23="","",IF(AND(Data!I25<Status!$T$3,Status!$T17="↑"),-1,IF(AND(Data!I25<Status!$T$2,Status!$T17="↑"),0,IF(AND(Data!I25>=Status!$T$2,Status!$T17="↑"),1,IF(AND(Data!I25>Status!$T$1,Status!$T17="↓"),-1,IF(AND(Data!I25>=Status!$T$2,Status!$T17="↓"),0,IF(AND(Data!I25<=Status!$T$2,Status!$T17="↓"),1)))))))) ->  | F17: =IF($C17="","",IF(Data!J23="","",IF(AND(Data!J25<Status!$T$3,Status!$T17="↑"),-1,IF(AND(Data!J25<Status!$T$2,Status!$T17="↑"),0,IF(AND(Data!J25>=Status!$T$2,Status!$T17="↑"),1,IF(AND(Data!J25>Status!$T$1,Status!$T17="↓"),-1,IF(AND(Data!J25>=Status!$T$2,Status!$T17="↓"),0,IF(AND(Data!J25<=Status!$T$2,Status!$T17="↓"),1)))))))) ->  | G17: =IF($C17="","",IF(Data!K23="","",IF(AND(Data!K25<Status!$T$3,Status!$T17="↑"),-1,IF(AND(Data!K25<Status!$T$2,Status!$T17="↑"),0,IF(AND(Data!K25>=Status!$T$2,Status!$T17="↑"),1,IF(AND(Data!K25>Status!$T$1,Status!$T17="↓"),-1,IF(AND(Data!K25>=Status!$T$2,Status!$T17="↓"),0,IF(AND(Data!K25<=Status!$T$2,Status!$T17="↓"),1)))))))) ->  | H17: =IF($C17="","",IF(Data!L23="","",IF(AND(Data!L25<Status!$T$3,Status!$T17="↑"),-1,IF(AND(Data!L25<Status!$T$2,Status!$T17="↑"),0,IF(AND(Data!L25>=Status!$T$2,Status!$T17="↑"),1,IF(AND(Data!L25>Status!$T$1,Status!$T17="↓"),-1,IF(AND(Data!L25>=Status!$T$2,Status!$T17="↓"),0,IF(AND(Data!L25<=Status!$T$2,Status!$T17="↓"),1)))))))) ->  | I17: =IF($C17="","",IF(Data!M23="","",IF(AND(Data!M25<Status!$T$3,Status!$T17="↑"),-1,IF(AND(Data!M25<Status!$T$2,Status!$T17="↑"),0,IF(AND(Data!M25>=Status!$T$2,Status!$T17="↑"),1,IF(AND(Data!M25>Status!$T$1,Status!$T17="↓"),-1,IF(AND(Data!M25>=Status!$T$2,Status!$T17="↓"),0,IF(AND(Data!M25<=Status!$T$2,Status!$T17="↓"),1)))))))) ->  | J17: =IF($C17="","",IF(Data!N23="","",IF(AND(Data!N25<Status!$T$3,Status!$T17="↑"),-1,IF(AND(Data!N25<Status!$T$2,Status!$T17="↑"),0,IF(AND(Data!N25>=Status!$T$2,Status!$T17="↑"),1,IF(AND(Data!N25>Status!$T$1,Status!$T17="↓"),-1,IF(AND(Data!N25>=Status!$T$2,Status!$T17="↓"),0,IF(AND(Data!N25<=Status!$T$2,Status!$T17="↓"),1)))))))) ->  | K17: =IF($C17="","",IF(Data!O23="","",IF(AND(Data!O25<Status!$T$3,Status!$T17="↑"),-1,IF(AND(Data!O25<Status!$T$2,Status!$T17="↑"),0,IF(AND(Data!O25>=Status!$T$2,Status!$T17="↑"),1,IF(AND(Data!O25>Status!$T$1,Status!$T17="↓"),-1,IF(AND(Data!O25>=Status!$T$2,Status!$T17="↓"),0,IF(AND(Data!O25<=Status!$T$2,Status!$T17="↓"),1)))))))) ->  | L17: =IF($C17="","",IF(Data!P23="","",IF(AND(Data!P25<Status!$T$3,Status!$T17="↑"),-1,IF(AND(Data!P25<Status!$T$2,Status!$T17="↑"),0,IF(AND(Data!P25>=Status!$T$2,Status!$T17="↑"),1,IF(AND(Data!P25>Status!$T$1,Status!$T17="↓"),-1,IF(AND(Data!P25>=Status!$T$2,Status!$T17="↓"),0,IF(AND(Data!P25<=Status!$T$2,Status!$T17="↓"),1)))))))) ->  | M17: =IF($C17="","",IF(Data!Q23="","",IF(AND(Data!Q25<Status!$T$3,Status!$T17="↑"),-1,IF(AND(Data!Q25<Status!$T$2,Status!$T17="↑"),0,IF(AND(Data!Q25>=Status!$T$2,Status!$T17="↑"),1,IF(AND(Data!Q25>Status!$T$1,Status!$T17="↓"),-1,IF(AND(Data!Q25>=Status!$T$2,Status!$T17="↓"),0,IF(AND(Data!Q25<=Status!$T$2,Status!$T17="↓"),1)))))))) ->  | N17: =IF($C17="","",IF(Data!R23="","",IF(AND(Data!R25<Status!$T$3,Status!$T17="↑"),-1,IF(AND(Data!R25<Status!$T$2,Status!$T17="↑"),0,IF(AND(Data!R25>=Status!$T$2,Status!$T17="↑"),1,IF(AND(Data!R25>Status!$T$1,Status!$T17="↓"),-1,IF(AND(Data!R25>=Status!$T$2,Status!$T17="↓"),0,IF(AND(Data!R25<=Status!$T$2,Status!$T17="↓"),1)))))))) ->  | O17: =IF($C17="","",IF(Data!S23="","",IF(AND(Data!S25<Status!$T$3,Status!$T17="↑"),-1,IF(AND(Data!S25<Status!$T$2,Status!$T17="↑"),0,IF(AND(Data!S25>=Status!$T$2,Status!$T17="↑"),1,IF(AND(Data!S25>Status!$T$1,Status!$T17="↓"),-1,IF(AND(Data!S25>=Status!$T$2,Status!$T17="↓"),0,IF(AND(Data!S25<=Status!$T$2,Status!$T17="↓"),1)))))))) ->  | Q17: =IF($C17="","",IF(Data!T23="","",IF(AND(Data!T25<Status!$T$3,Status!$T17="↑"),-1,IF(AND(Data!T25<Status!$T$2,Status!$T17="↑"),0,IF(AND(Data!T25>=Status!$T$2,Status!$T17="↑"),1,IF(AND(Data!T25>Status!$T$1,Status!$T17="↓"),-1,IF(AND(Data!T25>=Status!$T$2,Status!$T17="↓"),0,IF(AND(Data!T25<=Status!$T$2,Status!$T17="↓"),1)))))))) -> -1 | R17: =IF($C17="","",IF(Data!U23="","",IF(AND(Data!U25<Status!$T$3,Status!$T17="↑"),-1,IF(AND(Data!U25<Status!$T$2,Status!$T17="↑"),0,IF(AND(Data!U25>=Status!$T$2,Status!$T17="↑"),1,IF(AND(Data!U25>Status!$T$1,Status!$T17="↓"),-1,IF(AND(Data!U25>=Status!$T$2,Status!$T17="↓"),0,IF(AND(Data!U25<=Status!$T$2,Status!$T17="↓"),1)))))))) -> -1 | T17: =Indicators!H12 -> ↑
C19: =IF(Indicators!D13="","",Indicators!D13) -> Número de seguidores de FB | D19: =IF($C19="","",IF(Data!H26="","",IF(AND(Data!H28<Status!$T$3,Status!$T19="↑"),-1,IF(AND(Data!H28<Status!$T$2,Status!$T19="↑"),0,IF(AND(Data!H28>=Status!$T$2,Status!$T19="↑"),1,IF(AND(Data!H28>Status!$T$1,Status!$T19="↓"),-1,IF(AND(Data!H28>=Status!$T$2,Status!$T19="↓"),0,IF(AND(Data!H28<=Status!$T$2,Status!$T19="↓"),1)))))))) -> 0 | E19: =IF($C19="","",IF(Data!I26="","",IF(AND(Data!I28<Status!$T$3,Status!$T19="↑"),-1,IF(AND(Data!I28<Status!$T$2,Status!$T19="↑"),0,IF(AND(Data!I28>=Status!$T$2,Status!$T19="↑"),1,IF(AND(Data!I28>Status!$T$1,Status!$T19="↓"),-1,IF(AND(Data!I28>=Status!$T$2,Status!$T19="↓"),0,IF(AND(Data!I28<=Status!$T$2,Status!$T19="↓"),1)))))))) -> 0 | F19: =IF($C19="","",IF(Data!J26="","",IF(AND(Data!J28<Status!$T$3,Status!$T19="↑"),-1,IF(AND(Data!J28<Status!$T$2,Status!$T19="↑"),0,IF(AND(Data!J28>=Status!$T$2,Status!$T19="↑"),1,IF(AND(Data!J28>Status!$T$1,Status!$T19="↓"),-1,IF(AND(Data!J28>=Status!$T$2,Status!$T19="↓"),0,IF(AND(Data!J28<=Status!$T$2,Status!$T19="↓"),1)))))))) ->  | G19: =IF($C19="","",IF(Data!K26="","",IF(AND(Data!K28<Status!$T$3,Status!$T19="↑"),-1,IF(AND(Data!K28<Status!$T$2,Status!$T19="↑"),0,IF(AND(Data!K28>=Status!$T$2,Status!$T19="↑"),1,IF(AND(Data!K28>Status!$T$1,Status!$T19="↓"),-1,IF(AND(Data!K28>=Status!$T$2,Status!$T19="↓"),0,IF(AND(Data!K28<=Status!$T$2,Status!$T19="↓"),1)))))))) ->  | H19: =IF($C19="","",IF(Data!L26="","",IF(AND(Data!L28<Status!$T$3,Status!$T19="↑"),-1,IF(AND(Data!L28<Status!$T$2,Status!$T19="↑"),0,IF(AND(Data!L28>=Status!$T$2,Status!$T19="↑"),1,IF(AND(Data!L28>Status!$T$1,Status!$T19="↓"),-1,IF(AND(Data!L28>=Status!$T$2,Status!$T19="↓"),0,IF(AND(Data!L28<=Status!$T$2,Status!$T19="↓"),1)))))))) ->  | I19: =IF($C19="","",IF(Data!M26="","",IF(AND(Data!M28<Status!$T$3,Status!$T19="↑"),-1,IF(AND(Data!M28<Status!$T$2,Status!$T19="↑"),0,IF(AND(Data!M28>=Status!$T$2,Status!$T19="↑"),1,IF(AND(Data!M28>Status!$T$1,Status!$T19="↓"),-1,IF(AND(Data!M28>=Status!$T$2,Status!$T19="↓"),0,IF(AND(Data!M28<=Status!$T$2,Status!$T19="↓"),1)))))))) ->  | J19: =IF($C19="","",IF(Data!N26="","",IF(AND(Data!N28<Status!$T$3,Status!$T19="↑"),-1,IF(AND(Data!N28<Status!$T$2,Status!$T19="↑"),0,IF(AND(Data!N28>=Status!$T$2,Status!$T19="↑"),1,IF(AND(Data!N28>Status!$T$1,Status!$T19="↓"),-1,IF(AND(Data!N28>=Status!$T$2,Status!$T19="↓"),0,IF(AND(Data!N28<=Status!$T$2,Status!$T19="↓"),1)))))))) ->  | K19: =IF($C19="","",IF(Data!O26="","",IF(AND(Data!O28<Status!$T$3,Status!$T19="↑"),-1,IF(AND(Data!O28<Status!$T$2,Status!$T19="↑"),0,IF(AND(Data!O28>=Status!$T$2,Status!$T19="↑"),1,IF(AND(Data!O28>Status!$T$1,Status!$T19="↓"),-1,IF(AND(Data!O28>=Status!$T$2,Status!$T19="↓"),0,IF(AND(Data!O28<=Status!$T$2,Status!$T19="↓"),1)))))))) ->  | L19: =IF($C19="","",IF(Data!P26="","",IF(AND(Data!P28<Status!$T$3,Status!$T19="↑"),-1,IF(AND(Data!P28<Status!$T$2,Status!$T19="↑"),0,IF(AND(Data!P28>=Status!$T$2,Status!$T19="↑"),1,IF(AND(Data!P28>Status!$T$1,Status!$T19="↓"),-1,IF(AND(Data!P28>=Status!$T$2,Status!$T19="↓"),0,IF(AND(Data!P28<=Status!$T$2,Status!$T19="↓"),1)))))))) ->  | M19: =IF($C19="","",IF(Data!Q26="","",IF(AND(Data!Q28<Status!$T$3,Status!$T19="↑"),-1,IF(AND(Data!Q28<Status!$T$2,Status!$T19="↑"),0,IF(AND(Data!Q28>=Status!$T$2,Status!$T19="↑"),1,IF(AND(Data!Q28>Status!$T$1,Status!$T19="↓"),-1,IF(AND(Data!Q28>=Status!$T$2,Status!$T19="↓"),0,IF(AND(Data!Q28<=Status!$T$2,Status!$T19="↓"),1)))))))) ->  | N19: =IF($C19="","",IF(Data!R26="","",IF(AND(Data!R28<Status!$T$3,Status!$T19="↑"),-1,IF(AND(Data!R28<Status!$T$2,Status!$T19="↑"),0,IF(AND(Data!R28>=Status!$T$2,Status!$T19="↑"),1,IF(AND(Data!R28>Status!$T$1,Status!$T19="↓"),-1,IF(AND(Data!R28>=Status!$T$2,Status!$T19="↓"),0,IF(AND(Data!R28<=Status!$T$2,Status!$T19="↓"),1)))))))) ->  | O19: =IF($C19="","",IF(Data!S26="","",IF(AND(Data!S28<Status!$T$3,Status!$T19="↑"),-1,IF(AND(Data!S28<Status!$T$2,Status!$T19="↑"),0,IF(AND(Data!S28>=Status!$T$2,Status!$T19="↑"),1,IF(AND(Data!S28>Status!$T$1,Status!$T19="↓"),-1,IF(AND(Data!S28>=Status!$T$2,Status!$T19="↓"),0,IF(AND(Data!S28<=Status!$T$2,Status!$T19="↓"),1)))))))) ->  | Q19: =IF($C19="","",IF(Data!T26="","",IF(AND(Data!T28<Status!$T$3,Status!$T19="↑"),-1,IF(AND(Data!T28<Status!$T$2,Status!$T19="↑"),0,IF(AND(Data!T28>=Status!$T$2,Status!$T19="↑"),1,IF(AND(Data!T28>Status!$T$1,Status!$T19="↓"),-1,IF(AND(Data!T28>=Status!$T$2,Status!$T19="↓"),0,IF(AND(Data!T28<=Status!$T$2,Status!$T19="↓"),1)))))))) -> 0 | R19: =IF($C19="","",IF(Data!U26="","",IF(AND(Data!U28<Status!$T$3,Status!$T19="↑"),-1,IF(AND(Data!U28<Status!$T$2,Status!$T19="↑"),0,IF(AND(Data!U28>=Status!$T$2,Status!$T19="↑"),1,IF(AND(Data!U28>Status!$T$1,Status!$T19="↓"),-1,IF(AND(Data!U28>=Status!$T$2,Status!$T19="↓"),0,IF(AND(Data!U28<=Status!$T$2,Status!$T19="↓"),1)))))))) -> 0 | T19: =Indicators!H13 -> ↑
C21: =IF(Indicators!D14="","",Indicators!D14) -> Tasa de conversión de leads a clientes | D21: =IF($C21="","",IF(Data!H29="","",IF(AND(Data!H31<Status!$T$3,Status!$T21="↑"),-1,IF(AND(Data!H31<Status!$T$2,Status!$T21="↑"),0,IF(AND(Data!H31>=Status!$T$2,Status!$T21="↑"),1,IF(AND(Data!H31>Status!$T$1,Status!$T21="↓"),-1,IF(AND(Data!H31>=Status!$T$2,Status!$T21="↓"),0,IF(AND(Data!H31<=Status!$T$2,Status!$T21="↓"),1)))))))) ->  | E21: =IF($C21="","",IF(Data!I29="","",IF(AND(Data!I31<Status!$T$3,Status!$T21="↑"),-1,IF(AND(Data!I31<Status!$T$2,Status!$T21="↑"),0,IF(AND(Data!I31>=Status!$T$2,Status!$T21="↑"),1,IF(AND(Data!I31>Status!$T$1,Status!$T21="↓"),-1,IF(AND(Data!I31>=Status!$T$2,Status!$T21="↓"),0,IF(AND(Data!I31<=Status!$T$2,Status!$T21="↓"),1)))))))) ->  | F21: =IF($C21="","",IF(Data!J29="","",IF(AND(Data!J31<Status!$T$3,Status!$T21="↑"),-1,IF(AND(Data!J31<Status!$T$2,Status!$T21="↑"),0,IF(AND(Data!J31>=Status!$T$2,Status!$T21="↑"),1,IF(AND(Data!J31>Status!$T$1,Status!$T21="↓"),-1,IF(AND(Data!J31>=Status!$T$2,Status!$T21="↓"),0,IF(AND(Data!J31<=Status!$T$2,Status!$T21="↓"),1)))))))) ->  | G21: =IF($C21="","",IF(Data!K29="","",IF(AND(Data!K31<Status!$T$3,Status!$T21="↑"),-1,IF(AND(Data!K31<Status!$T$2,Status!$T21="↑"),0,IF(AND(Data!K31>=Status!$T$2,Status!$T21="↑"),1,IF(AND(Data!K31>Status!$T$1,Status!$T21="↓"),-1,IF(AND(Data!K31>=Status!$T$2,Status!$T21="↓"),0,IF(AND(Data!K31<=Status!$T$2,Status!$T21="↓"),1)))))))) ->  | H21: =IF($C21="","",IF(Data!L29="","",IF(AND(Data!L31<Status!$T$3,Status!$T21="↑"),-1,IF(AND(Data!L31<Status!$T$2,Status!$T21="↑"),0,IF(AND(Data!L31>=Status!$T$2,Status!$T21="↑"),1,IF(AND(Data!L31>Status!$T$1,Status!$T21="↓"),-1,IF(AND(Data!L31>=Status!$T$2,Status!$T21="↓"),0,IF(AND(Data!L31<=Status!$T$2,Status!$T21="↓"),1)))))))) ->  | I21: =IF($C21="","",IF(Data!M29="","",IF(AND(Data!M31<Status!$T$3,Status!$T21="↑"),-1,IF(AND(Data!M31<Status!$T$2,Status!$T21="↑"),0,IF(AND(Data!M31>=Status!$T$2,Status!$T21="↑"),1,IF(AND(Data!M31>Status!$T$1,Status!$T21="↓"),-1,IF(AND(Data!M31>=Status!$T$2,Status!$T21="↓"),0,IF(AND(Data!M31<=Status!$T$2,Status!$T21="↓"),1)))))))) ->  | J21: =IF($C21="","",IF(Data!N29="","",IF(AND(Data!N31<Status!$T$3,Status!$T21="↑"),-1,IF(AND(Data!N31<Status!$T$2,Status!$T21="↑"),0,IF(AND(Data!N31>=Status!$T$2,Status!$T21="↑"),1,IF(AND(Data!N31>Status!$T$1,Status!$T21="↓"),-1,IF(AND(Data!N31>=Status!$T$2,Status!$T21="↓"),0,IF(AND(Data!N31<=Status!$T$2,Status!$T21="↓"),1)))))))) ->  | K21: =IF($C21="","",IF(Data!O29="","",IF(AND(Data!O31<Status!$T$3,Status!$T21="↑"),-1,IF(AND(Data!O31<Status!$T$2,Status!$T21="↑"),0,IF(AND(Data!O31>=Status!$T$2,Status!$T21="↑"),1,IF(AND(Data!O31>Status!$T$1,Status!$T21="↓"),-1,IF(AND(Data!O31>=Status!$T$2,Status!$T21="↓"),0,IF(AND(Data!O31<=Status!$T$2,Status!$T21="↓"),1)))))))) ->  | L21: =IF($C21="","",IF(Data!P29="","",IF(AND(Data!P31<Status!$T$3,Status!$T21="↑"),-1,IF(AND(Data!P31<Status!$T$2,Status!$T21="↑"),0,IF(AND(Data!P31>=Status!$T$2,Status!$T21="↑"),1,IF(AND(Data!P31>Status!$T$1,Status!$T21="↓"),-1,IF(AND(Data!P31>=Status!$T$2,Status!$T21="↓"),0,IF(AND(Data!P31<=Status!$T$2,Status!$T21="↓"),1)))))))) ->  | M21: =IF($C21="","",IF(Data!Q29="","",IF(AND(Data!Q31<Status!$T$3,Status!$T21="↑"),-1,IF(AND(Data!Q31<Status!$T$2,Status!$T21="↑"),0,IF(AND(Data!Q31>=Status!$T$2,Status!$T21="↑"),1,IF(AND(Data!Q31>Status!$T$1,Status!$T21="↓"),-1,IF(AND(Data!Q31>=Status!$T$2,Status!$T21="↓"),0,IF(AND(Data!Q31<=Status!$T$2,Status!$T21="↓"),1)))))))) ->  | N21: =IF($C21="","",IF(Data!R29="","",IF(AND(Data!R31<Status!$T$3,Status!$T21="↑"),-1,IF(AND(Data!R31<Status!$T$2,Status!$T21="↑"),0,IF(AND(Data!R31>=Status!$T$2,Status!$T21="↑"),1,IF(AND(Data!R31>Status!$T$1,Status!$T21="↓"),-1,IF(AND(Data!R31>=Status!$T$2,Status!$T21="↓"),0,IF(AND(Data!R31<=Status!$T$2,Status!$T21="↓"),1)))))))) ->  | O21: =IF($C21="","",IF(Data!S29="","",IF(AND(Data!S31<Status!$T$3,Status!$T21="↑"),-1,IF(AND(Data!S31<Status!$T$2,Status!$T21="↑"),0,IF(AND(Data!S31>=Status!$T$2,Status!$T21="↑"),1,IF(AND(Data!S31>Status!$T$1,Status!$T21="↓"),-1,IF(AND(Data!S31>=Status!$T$2,Status!$T21="↓"),0,IF(AND(Data!S31<=Status!$T$2,Status!$T21="↓"),1)))))))) ->  | Q21: =IF($C21="","",IF(Data!T29="","",IF(AND(Data!T31<Status!$T$3,Status!$T21="↑"),-1,IF(AND(Data!T31<Status!$T$2,Status!$T21="↑"),0,IF(AND(Data!T31>=Status!$T$2,Status!$T21="↑"),1,IF(AND(Data!T31>Status!$T$1,Status!$T21="↓"),-1,IF(AND(Data!T31>=Status!$T$2,Status!$T21="↓"),0,IF(AND(Data!T31<=Status!$T$2,Status!$T21="↓"),1)))))))) -> -1 | R21: =IF($C21="","",IF(Data!U29="","",IF(AND(Data!U31<Status!$T$3,Status!$T21="↑"),-1,IF(AND(Data!U31<Status!$T$2,Status!$T21="↑"),0,IF(AND(Data!U31>=Status!$T$2,Status!$T21="↑"),1,IF(AND(Data!U31>Status!$T$1,Status!$T21="↓"),-1,IF(AND(Data!U31>=Status!$T$2,Status!$T21="↓"),0,IF(AND(Data!U31<=Status!$T$2,Status!$T21="↓"),1)))))))) -> -1 | T21: =Indicators!H14 -> ↑
C23: =IF(Indicators!D15="","",Indicators!D15) -> Tiempo de resolución de quejas | D23: =IF($C23="","",IF(Data!H32="","",IF(AND(Data!H34<Status!$T$3,Status!$T23="↑"),-1,IF(AND(Data!H34<Status!$T$2,Status!$T23="↑"),0,IF(AND(Data!H34>=Status!$T$2,Status!$T23="↑"),1,IF(AND(Data!H34>Status!$T$1,Status!$T23="↓"),-1,IF(AND(Data!H34>=Status!$T$2,Status!$T23="↓"),0,IF(AND(Data!H34<=Status!$T$2,Status!$T23="↓"),1)))))))) ->  | E23: =IF($C23="","",IF(Data!I32="","",IF(AND(Data!I34<Status!$T$3,Status!$T23="↑"),-1,IF(AND(Data!I34<Status!$T$2,Status!$T23="↑"),0,IF(AND(Data!I34>=Status!$T$2,Status!$T23="↑"),1,IF(AND(Data!I34>Status!$T$1,Status!$T23="↓"),-1,IF(AND(Data!I34>=Status!$T$2,Status!$T23="↓"),0,IF(AND(Data!I34<=Status!$T$2,Status!$T23="↓"),1)))))))) ->  | F23: =IF($C23="","",IF(Data!J32="","",IF(AND(Data!J34<Status!$T$3,Status!$T23="↑"),-1,IF(AND(Data!J34<Status!$T$2,Status!$T23="↑"),0,IF(AND(Data!J34>=Status!$T$2,Status!$T23="↑"),1,IF(AND(Data!J34>Status!$T$1,Status!$T23="↓"),-1,IF(AND(Data!J34>=Status!$T$2,Status!$T23="↓"),0,IF(AND(Data!J34<=Status!$T$2,Status!$T23="↓"),1)))))))) ->  | G23: =IF($C23="","",IF(Data!K32="","",IF(AND(Data!K34<Status!$T$3,Status!$T23="↑"),-1,IF(AND(Data!K34<Status!$T$2,Status!$T23="↑"),0,IF(AND(Data!K34>=Status!$T$2,Status!$T23="↑"),1,IF(AND(Data!K34>Status!$T$1,Status!$T23="↓"),-1,IF(AND(Data!K34>=Status!$T$2,Status!$T23="↓"),0,IF(AND(Data!K34<=Status!$T$2,Status!$T23="↓"),1)))))))) ->  | H23: =IF($C23="","",IF(Data!L32="","",IF(AND(Data!L34<Status!$T$3,Status!$T23="↑"),-1,IF(AND(Data!L34<Status!$T$2,Status!$T23="↑"),0,IF(AND(Data!L34>=Status!$T$2,Status!$T23="↑"),1,IF(AND(Data!L34>Status!$T$1,Status!$T23="↓"),-1,IF(AND(Data!L34>=Status!$T$2,Status!$T23="↓"),0,IF(AND(Data!L34<=Status!$T$2,Status!$T23="↓"),1)))))))) ->  | I23: =IF($C23="","",IF(Data!M32="","",IF(AND(Data!M34<Status!$T$3,Status!$T23="↑"),-1,IF(AND(Data!M34<Status!$T$2,Status!$T23="↑"),0,IF(AND(Data!M34>=Status!$T$2,Status!$T23="↑"),1,IF(AND(Data!M34>Status!$T$1,Status!$T23="↓"),-1,IF(AND(Data!M34>=Status!$T$2,Status!$T23="↓"),0,IF(AND(Data!M34<=Status!$T$2,Status!$T23="↓"),1)))))))) ->  | J23: =IF($C23="","",IF(Data!N32="","",IF(AND(Data!N34<Status!$T$3,Status!$T23="↑"),-1,IF(AND(Data!N34<Status!$T$2,Status!$T23="↑"),0,IF(AND(Data!N34>=Status!$T$2,Status!$T23="↑"),1,IF(AND(Data!N34>Status!$T$1,Status!$T23="↓"),-1,IF(AND(Data!N34>=Status!$T$2,Status!$T23="↓"),0,IF(AND(Data!N34<=Status!$T$2,Status!$T23="↓"),1)))))))) ->  | K23: =IF($C23="","",IF(Data!O32="","",IF(AND(Data!O34<Status!$T$3,Status!$T23="↑"),-1,IF(AND(Data!O34<Status!$T$2,Status!$T23="↑"),0,IF(AND(Data!O34>=Status!$T$2,Status!$T23="↑"),1,IF(AND(Data!O34>Status!$T$1,Status!$T23="↓"),-1,IF(AND(Data!O34>=Status!$T$2,Status!$T23="↓"),0,IF(AND(Data!O34<=Status!$T$2,Status!$T23="↓"),1)))))))) ->  | L23: =IF($C23="","",IF(Data!P32="","",IF(AND(Data!P34<Status!$T$3,Status!$T23="↑"),-1,IF(AND(Data!P34<Status!$T$2,Status!$T23="↑"),0,IF(AND(Data!P34>=Status!$T$2,Status!$T23="↑"),1,IF(AND(Data!P34>Status!$T$1,Status!$T23="↓"),-1,IF(AND(Data!P34>=Status!$T$2,Status!$T23="↓"),0,IF(AND(Data!P34<=Status!$T$2,Status!$T23="↓"),1)))))))) ->  | M23: =IF($C23="","",IF(Data!Q32="","",IF(AND(Data!Q34<Status!$T$3,Status!$T23="↑"),-1,IF(AND(Data!Q34<Status!$T$2,Status!$T23="↑"),0,IF(AND(Data!Q34>=Status!$T$2,Status!$T23="↑"),1,IF(AND(Data!Q34>Status!$T$1,Status!$T23="↓"),-1,IF(AND(Data!Q34>=Status!$T$2,Status!$T23="↓"),0,IF(AND(Data!Q34<=Status!$T$2,Status!$T23="↓"),1)))))))) ->  | N23: =IF($C23="","",IF(Data!R32="","",IF(AND(Data!R34<Status!$T$3,Status!$T23="↑"),-1,IF(AND(Data!R34<Status!$T$2,Status!$T23="↑"),0,IF(AND(Data!R34>=Status!$T$2,Status!$T23="↑"),1,IF(AND(Data!R34>Status!$T$1,Status!$T23="↓"),-1,IF(AND(Data!R34>=Status!$T$2,Status!$T23="↓"),0,IF(AND(Data!R34<=Status!$T$2,Status!$T23="↓"),1)))))))) ->  | O23: =IF($C23="","",IF(Data!S32="","",IF(AND(Data!S34<Status!$T$3,Status!$T23="↑"),-1,IF(AND(Data!S34<Status!$T$2,Status!$T23="↑"),0,IF(AND(Data!S34>=Status!$T$2,Status!$T23="↑"),1,IF(AND(Data!S34>Status!$T$1,Status!$T23="↓"),-1,IF(AND(Data!S34>=Status!$T$2,Status!$T23="↓"),0,IF(AND(Data!S34<=Status!$T$2,Status!$T23="↓"),1)))))))) ->  | Q23: =IF($C23="","",IF(Data!T32="","",IF(AND(Data!T34<Status!$T$3,Status!$T23="↑"),-1,IF(AND(Data!T34<Status!$T$2,Status!$T23="↑"),0,IF(AND(Data!T34>=Status!$T$2,Status!$T23="↑"),1,IF(AND(Data!T34>Status!$T$1,Status!$T23="↓"),-1,IF(AND(Data!T34>=Status!$T$2,Status!$T23="↓"),0,IF(AND(Data!T34<=Status!$T$2,Status!$T23="↓"),1)))))))) -> 1 | R23: =IF($C23="","",IF(Data!U32="","",IF(AND(Data!U34<Status!$T$3,Status!$T23="↑"),-1,IF(AND(Data!U34<Status!$T$2,Status!$T23="↑"),0,IF(AND(Data!U34>=Status!$T$2,Status!$T23="↑"),1,IF(AND(Data!U34>Status!$T$1,Status!$T23="↓"),-1,IF(AND(Data!U34>=Status!$T$2,Status!$T23="↓"),0,IF(AND(Data!U34<=Status!$T$2,Status!$T23="↓"),1)))))))) -> 1 | T23: =Indicators!H15 -> ↓
C25: =IF(Indicators!D16="","",Indicators!D16) -> Tasa de litigios evitados | D25: =IF($C25="","",IF(Data!H35="","",IF(AND(Data!H37<Status!$T$3,Status!$T25="↑"),-1,IF(AND(Data!H37<Status!$T$2,Status!$T25="↑"),0,IF(AND(Data!H37>=Status!$T$2,Status!$T25="↑"),1,IF(AND(Data!H37>Status!$T$1,Status!$T25="↓"),-1,IF(AND(Data!H37>=Status!$T$2,Status!$T25="↓"),0,IF(AND(Data!H37<=Status!$T$2,Status!$T25="↓"),1)))))))) ->  | E25: =IF($C25="","",IF(Data!I35="","",IF(AND(Data!I37<Status!$T$3,Status!$T25="↑"),-1,IF(AND(Data!I37<Status!$T$2,Status!$T25="↑"),0,IF(AND(Data!I37>=Status!$T$2,Status!$T25="↑"),1,IF(AND(Data!I37>Status!$T$1,Status!$T25="↓"),-1,IF(AND(Data!I37>=Status!$T$2,Status!$T25="↓"),0,IF(AND(Data!I37<=Status!$T$2,Status!$T25="↓"),1)))))))) ->  | F25: =IF($C25="","",IF(Data!J35="","",IF(AND(Data!J37<Status!$T$3,Status!$T25="↑"),-1,IF(AND(Data!J37<Status!$T$2,Status!$T25="↑"),0,IF(AND(Data!J37>=Status!$T$2,Status!$T25="↑"),1,IF(AND(Data!J37>Status!$T$1,Status!$T25="↓"),-1,IF(AND(Data!J37>=Status!$T$2,Status!$T25="↓"),0,IF(AND(Data!J37<=Status!$T$2,Status!$T25="↓"),1)))))))) ->  | G25: =IF($C25="","",IF(Data!K35="","",IF(AND(Data!K37<Status!$T$3,Status!$T25="↑"),-1,IF(AND(Data!K37<Status!$T$2,Status!$T25="↑"),0,IF(AND(Data!K37>=Status!$T$2,Status!$T25="↑"),1,IF(AND(Data!K37>Status!$T$1,Status!$T25="↓"),-1,IF(AND(Data!K37>=Status!$T$2,Status!$T25="↓"),0,IF(AND(Data!K37<=Status!$T$2,Status!$T25="↓"),1)))))))) ->  | H25: =IF($C25="","",IF(Data!L35="","",IF(AND(Data!L37<Status!$T$3,Status!$T25="↑"),-1,IF(AND(Data!L37<Status!$T$2,Status!$T25="↑"),0,IF(AND(Data!L37>=Status!$T$2,Status!$T25="↑"),1,IF(AND(Data!L37>Status!$T$1,Status!$T25="↓"),-1,IF(AND(Data!L37>=Status!$T$2,Status!$T25="↓"),0,IF(AND(Data!L37<=Status!$T$2,Status!$T25="↓"),1)))))))) ->  | I25: =IF($C25="","",IF(Data!M35="","",IF(AND(Data!M37<Status!$T$3,Status!$T25="↑"),-1,IF(AND(Data!M37<Status!$T$2,Status!$T25="↑"),0,IF(AND(Data!M37>=Status!$T$2,Status!$T25="↑"),1,IF(AND(Data!M37>Status!$T$1,Status!$T25="↓"),-1,IF(AND(Data!M37>=Status!$T$2,Status!$T25="↓"),0,IF(AND(Data!M37<=Status!$T$2,Status!$T25="↓"),1)))))))) ->  | J25: =IF($C25="","",IF(Data!N35="","",IF(AND(Data!N37<Status!$T$3,Status!$T25="↑"),-1,IF(AND(Data!N37<Status!$T$2,Status!$T25="↑"),0,IF(AND(Data!N37>=Status!$T$2,Status!$T25="↑"),1,IF(AND(Data!N37>Status!$T$1,Status!$T25="↓"),-1,IF(AND(Data!N37>=Status!$T$2,Status!$T25="↓"),0,IF(AND(Data!N37<=Status!$T$2,Status!$T25="↓"),1)))))))) ->  | K25: =IF($C25="","",IF(Data!O35="","",IF(AND(Data!O37<Status!$T$3,Status!$T25="↑"),-1,IF(AND(Data!O37<Status!$T$2,Status!$T25="↑"),0,IF(AND(Data!O37>=Status!$T$2,Status!$T25="↑"),1,IF(AND(Data!O37>Status!$T$1,Status!$T25="↓"),-1,IF(AND(Data!O37>=Status!$T$2,Status!$T25="↓"),0,IF(AND(Data!O37<=Status!$T$2,Status!$T25="↓"),1)))))))) ->  | L25: =IF($C25="","",IF(Data!P35="","",IF(AND(Data!P37<Status!$T$3,Status!$T25="↑"),-1,IF(AND(Data!P37<Status!$T$2,Status!$T25="↑"),0,IF(AND(Data!P37>=Status!$T$2,Status!$T25="↑"),1,IF(AND(Data!P37>Status!$T$1,Status!$T25="↓"),-1,IF(AND(Data!P37>=Status!$T$2,Status!$T25="↓"),0,IF(AND(Data!P37<=Status!$T$2,Status!$T25="↓"),1)))))))) ->  | M25: =IF($C25="","",IF(Data!Q35="","",IF(AND(Data!Q37<Status!$T$3,Status!$T25="↑"),-1,IF(AND(Data!Q37<Status!$T$2,Status!$T25="↑"),0,IF(AND(Data!Q37>=Status!$T$2,Status!$T25="↑"),1,IF(AND(Data!Q37>Status!$T$1,Status!$T25="↓"),-1,IF(AND(Data!Q37>=Status!$T$2,Status!$T25="↓"),0,IF(AND(Data!Q37<=Status!$T$2,Status!$T25="↓"),1)))))))) ->  | N25: =IF($C25="","",IF(Data!R35="","",IF(AND(Data!R37<Status!$T$3,Status!$T25="↑"),-1,IF(AND(Data!R37<Status!$T$2,Status!$T25="↑"),0,IF(AND(Data!R37>=Status!$T$2,Status!$T25="↑"),1,IF(AND(Data!R37>Status!$T$1,Status!$T25="↓"),-1,IF(AND(Data!R37>=Status!$T$2,Status!$T25="↓"),0,IF(AND(Data!R37<=Status!$T$2,Status!$T25="↓"),1)))))))) ->  | O25: =IF($C25="","",IF(Data!S35="","",IF(AND(Data!S37<Status!$T$3,Status!$T25="↑"),-1,IF(AND(Data!S37<Status!$T$2,Status!$T25="↑"),0,IF(AND(Data!S37>=Status!$T$2,Status!$T25="↑"),1,IF(AND(Data!S37>Status!$T$1,Status!$T25="↓"),-1,IF(AND(Data!S37>=Status!$T$2,Status!$T25="↓"),0,IF(AND(Data!S37<=Status!$T$2,Status!$T25="↓"),1)))))))) ->  | Q25: =IF($C25="","",IF(Data!T35="","",IF(AND(Data!T37<Status!$T$3,Status!$T25="↑"),-1,IF(AND(Data!T37<Status!$T$2,Status!$T25="↑"),0,IF(AND(Data!T37>=Status!$T$2,Status!$T25="↑"),1,IF(AND(Data!T37>Status!$T$1,Status!$T25="↓"),-1,IF(AND(Data!T37>=Status!$T$2,Status!$T25="↓"),0,IF(AND(Data!T37<=Status!$T$2,Status!$T25="↓"),1)))))))) -> 1 | R25: =IF($C25="","",IF(Data!U35="","",IF(AND(Data!U37<Status!$T$3,Status!$T25="↑"),-1,IF(AND(Data!U37<Status!$T$2,Status!$T25="↑"),0,IF(AND(Data!U37>=Status!$T$2,Status!$T25="↑"),1,IF(AND(Data!U37>Status!$T$1,Status!$T25="↓"),-1,IF(AND(Data!U37>=Status!$T$2,Status!$T25="↓"),0,IF(AND(Data!U37<=Status!$T$2,Status!$T25="↓"),1)))))))) -> 1 | T25: =Indicators!H16 -> ↓
C27: =IF(Indicators!D17="","",Indicators!D17) -> Retorno de inversión de nuevos proyectos | D27: =IF($C27="","",IF(Data!H38="","",IF(AND(Data!H40<Status!$T$3,Status!$T27="↑"),-1,IF(AND(Data!H40<Status!$T$2,Status!$T27="↑"),0,IF(AND(Data!H40>=Status!$T$2,Status!$T27="↑"),1,IF(AND(Data!H40>Status!$T$1,Status!$T27="↓"),-1,IF(AND(Data!H40>=Status!$T$2,Status!$T27="↓"),0,IF(AND(Data!H40<=Status!$T$2,Status!$T27="↓"),1)))))))) ->  | E27: =IF($C27="","",IF(Data!I38="","",IF(AND(Data!I40<Status!$T$3,Status!$T27="↑"),-1,IF(AND(Data!I40<Status!$T$2,Status!$T27="↑"),0,IF(AND(Data!I40>=Status!$T$2,Status!$T27="↑"),1,IF(AND(Data!I40>Status!$T$1,Status!$T27="↓"),-1,IF(AND(Data!I40>=Status!$T$2,Status!$T27="↓"),0,IF(AND(Data!I40<=Status!$T$2,Status!$T27="↓"),1)))))))) ->  | F27: =IF($C27="","",IF(Data!J38="","",IF(AND(Data!J40<Status!$T$3,Status!$T27="↑"),-1,IF(AND(Data!J40<Status!$T$2,Status!$T27="↑"),0,IF(AND(Data!J40>=Status!$T$2,Status!$T27="↑"),1,IF(AND(Data!J40>Status!$T$1,Status!$T27="↓"),-1,IF(AND(Data!J40>=Status!$T$2,Status!$T27="↓"),0,IF(AND(Data!J40<=Status!$T$2,Status!$T27="↓"),1)))))))) ->  | G27: =IF($C27="","",IF(Data!K38="","",IF(AND(Data!K40<Status!$T$3,Status!$T27="↑"),-1,IF(AND(Data!K40<Status!$T$2,Status!$T27="↑"),0,IF(AND(Data!K40>=Status!$T$2,Status!$T27="↑"),1,IF(AND(Data!K40>Status!$T$1,Status!$T27="↓"),-1,IF(AND(Data!K40>=Status!$T$2,Status!$T27="↓"),0,IF(AND(Data!K40<=Status!$T$2,Status!$T27="↓"),1)))))))) ->  | H27: =IF($C27="","",IF(Data!L38="","",IF(AND(Data!L40<Status!$T$3,Status!$T27="↑"),-1,IF(AND(Data!L40<Status!$T$2,Status!$T27="↑"),0,IF(AND(Data!L40>=Status!$T$2,Status!$T27="↑"),1,IF(AND(Data!L40>Status!$T$1,Status!$T27="↓"),-1,IF(AND(Data!L40>=Status!$T$2,Status!$T27="↓"),0,IF(AND(Data!L40<=Status!$T$2,Status!$T27="↓"),1)))))))) ->  | I27: =IF($C27="","",IF(Data!M38="","",IF(AND(Data!M40<Status!$T$3,Status!$T27="↑"),-1,IF(AND(Data!M40<Status!$T$2,Status!$T27="↑"),0,IF(AND(Data!M40>=Status!$T$2,Status!$T27="↑"),1,IF(AND(Data!M40>Status!$T$1,Status!$T27="↓"),-1,IF(AND(Data!M40>=Status!$T$2,Status!$T27="↓"),0,IF(AND(Data!M40<=Status!$T$2,Status!$T27="↓"),1)))))))) ->  | J27: =IF($C27="","",IF(Data!N38="","",IF(AND(Data!N40<Status!$T$3,Status!$T27="↑"),-1,IF(AND(Data!N40<Status!$T$2,Status!$T27="↑"),0,IF(AND(Data!N40>=Status!$T$2,Status!$T27="↑"),1,IF(AND(Data!N40>Status!$T$1,Status!$T27="↓"),-1,IF(AND(Data!N40>=Status!$T$2,Status!$T27="↓"),0,IF(AND(Data!N40<=Status!$T$2,Status!$T27="↓"),1)))))))) ->  | K27: =IF($C27="","",IF(Data!O38="","",IF(AND(Data!O40<Status!$T$3,Status!$T27="↑"),-1,IF(AND(Data!O40<Status!$T$2,Status!$T27="↑"),0,IF(AND(Data!O40>=Status!$T$2,Status!$T27="↑"),1,IF(AND(Data!O40>Status!$T$1,Status!$T27="↓"),-1,IF(AND(Data!O40>=Status!$T$2,Status!$T27="↓"),0,IF(AND(Data!O40<=Status!$T$2,Status!$T27="↓"),1)))))))) ->  | L27: =IF($C27="","",IF(Data!P38="","",IF(AND(Data!P40<Status!$T$3,Status!$T27="↑"),-1,IF(AND(Data!P40<Status!$T$2,Status!$T27="↑"),0,IF(AND(Data!P40>=Status!$T$2,Status!$T27="↑"),1,IF(AND(Data!P40>Status!$T$1,Status!$T27="↓"),-1,IF(AND(Data!P40>=Status!$T$2,Status!$T27="↓"),0,IF(AND(Data!P40<=Status!$T$2,Status!$T27="↓"),1)))))))) ->  | M27: =IF($C27="","",IF(Data!Q38="","",IF(AND(Data!Q40<Status!$T$3,Status!$T27="↑"),-1,IF(AND(Data!Q40<Status!$T$2,Status!$T27="↑"),0,IF(AND(Data!Q40>=Status!$T$2,Status!$T27="↑"),1,IF(AND(Data!Q40>Status!$T$1,Status!$T27="↓"),-1,IF(AND(Data!Q40>=Status!$T$2,Status!$T27="↓"),0,IF(AND(Data!Q40<=Status!$T$2,Status!$T27="↓"),1)))))))) ->  | N27: =IF($C27="","",IF(Data!R38="","",IF(AND(Data!R40<Status!$T$3,Status!$T27="↑"),-1,IF(AND(Data!R40<Status!$T$2,Status!$T27="↑"),0,IF(AND(Data!R40>=Status!$T$2,Status!$T27="↑"),1,IF(AND(Data!R40>Status!$T$1,Status!$T27="↓"),-1,IF(AND(Data!R40>=Status!$T$2,Status!$T27="↓"),0,IF(AND(Data!R40<=Status!$T$2,Status!$T27="↓"),1)))))))) ->  | O27: =IF($C27="","",IF(Data!S38="","",IF(AND(Data!S40<Status!$T$3,Status!$T27="↑"),-1,IF(AND(Data!S40<Status!$T$2,Status!$T27="↑"),0,IF(AND(Data!S40>=Status!$T$2,Status!$T27="↑"),1,IF(AND(Data!S40>Status!$T$1,Status!$T27="↓"),-1,IF(AND(Data!S40>=Status!$T$2,Status!$T27="↓"),0,IF(AND(Data!S40<=Status!$T$2,Status!$T27="↓"),1)))))))) ->  | Q27: =IF($C27="","",IF(Data!T38="","",IF(AND(Data!T40<Status!$T$3,Status!$T27="↑"),-1,IF(AND(Data!T40<Status!$T$2,Status!$T27="↑"),0,IF(AND(Data!T40>=Status!$T$2,Status!$T27="↑"),1,IF(AND(Data!T40>Status!$T$1,Status!$T27="↓"),-1,IF(AND(Data!T40>=Status!$T$2,Status!$T27="↓"),0,IF(AND(Data!T40<=Status!$T$2,Status!$T27="↓"),1)))))))) -> -1 | R27: =IF($C27="","",IF(Data!U38="","",IF(AND(Data!U40<Status!$T$3,Status!$T27="↑"),-1,IF(AND(Data!U40<Status!$T$2,Status!$T27="↑"),0,IF(AND(Data!U40>=Status!$T$2,Status!$T27="↑"),1,IF(AND(Data!U40>Status!$T$1,Status!$T27="↓"),-1,IF(AND(Data!U40>=Status!$T$2,Status!$T27="↓"),0,IF(AND(Data!U40<=Status!$T$2,Status!$T27="↓"),1)))))))) -> -1 | T27: =Indicators!H17 -> ↑

Sheet Aux
G2: =OFFSET(Aux!$C$4,,,,COUNTIFS(Aux!$C$4:$N$4,"<>"&"",Aux!$C$4:$N$4,"<>*",Aux!$C$4:$N$4,"<>#N/A")) -> 0.25
A3: =Dashboard!D4 -> TOTAL | B3: =Indicators!C4 -> 0 | C3: =Data!H4 -> ENE | D3: =Data!I4 -> FEB | E3: =Data!J4 -> MAR | F3: =Data!K4 -> ABR | G3: =Data!L4 -> MAY | H3: =Data!M4 -> JUN | I3: =Data!N4 -> JUL | J3: =Data!O4 -> AGO | K3: =Data!P4 -> SEP | L3: =Data!Q4 -> OCT | M3: =Data!R4 -> NOV | N3: =Data!S4 -> DIC
B4: Red | C4: =IF(Data!H$5="",NA(),IF(AND($A3=List!$A$14,Status!$Q$5=-1),Data!H$5,IF(AND($A3=List!$A$15,Status!$R$5=-1),Data!H$5,0))) -> 0.16 | D4: =IF(Data!I$5="",NA(),IF(AND($A3=List!$A$14,Status!$Q$5=-1),Data!I$5,IF(AND($A3=List!$A$15,Status!$R$5=-1),Data!I$5,NA()))) -> 0.03 | E4: =IF(Data!J$5="",NA(),IF(AND($A3=List!$A$14,Status!$Q$5=-1),Data!J$5,IF(AND($A3=List!$A$15,Status!$R$5=-1),Data!J$5,NA()))) -> 0.13 | F4: =IF(Data!K$5="",NA(),IF(AND($A3=List!$A$14,Status!$Q$5=-1),Data!K$5,IF(AND($A3=List!$A$15,Status!$R$5=-1),Data!K$5,NA()))) -> 0.11 | G4: =IF(Data!L$5="",NA(),IF(AND($A3=List!$A$14,Status!$Q$5=-1),Data!L$5,IF(AND($A3=List!$A$15,Status!$R$5=-1),Data!L$5,NA()))) -> 0.25 | H4: =IF(Data!M$5="",NA(),IF(AND($A3=List!$A$14,Status!$Q$5=-1),Data!M$5,IF(AND($A3=List!$A$15,Status!$R$5=-1),Data!M$5,NA()))) -> 0.1 | I4: =IF(Data!N$5="",NA(),IF(AND($A3=List!$A$14,Status!$Q$5=-1),Data!N$5,IF(AND($A3=List!$A$15,Status!$R$5=-1),Data!N$5,NA()))) -> 0.1 | J4: =IF(Data!O$5="",NA(),IF(AND($A3=List!$A$14,Status!$Q$5=-1),Data!O$5,IF(AND($A3=List!$A$15,Status!$R$5=-1),Data!O$5,NA()))) -> 0.06 | K4: =IF(Data!P$5="",NA(),IF(AND($A3=List!$A$14,Status!$Q$5=-1),Data!P$5,IF(AND($A3=List!$A$15,Status!$R$5=-1),Data!P$5,NA()))) ->  | L4: =IF(Data!Q$5="",NA(),IF(AND($A3=List!$A$14,Status!$Q$5=-1),Data!Q$5,IF(AND($A3=List!$A$15,Status!$R$5=-1),Data!Q$5,NA()))) ->  | M4: =IF(Data!R$5="",NA(),IF(AND($A3=List!$A$14,Status!$Q$5=-1),Data!R$5,IF(AND($A3=List!$A$15,Status!$R$5=-1),Data!R$5,NA()))) ->  | N4: =IF(Data!S$5="",NA(),IF(AND($A3=List!$A$14,Status!$Q$5=-1),Data!S$5,IF(AND($A3=List!$A$15,Status!$R$5=-1),Data!S$5,NA()))) -> 
B5: Yellow | C5: =IF(Data!H$5="",NA(),IF(AND($A3=List!$A$14,Status!$Q$5=0),Data!H$5,IF(AND($A3=List!$A$15,Status!$R$5=0),Data!H$5,0))) -> 0 | D5: =IF(Data!I$5="",NA(),IF(AND($A3=List!$A$14,Status!$Q$5=0),Data!I$5,IF(AND($A3=List!$A$15,Status!$R$5=0),Data!I$5,NA()))) ->  | E5: =IF(Data!J$5="",NA(),IF(AND($A3=List!$A$14,Status!$Q$5=0),Data!J$5,IF(AND($A3=List!$A$15,Status!$R$5=0),Data!J$5,NA()))) ->  | F5: =IF(Data!K$5="",NA(),IF(AND($A3=List!$A$14,Status!$Q$5=0),Data!K$5,IF(AND($A3=List!$A$15,Status!$R$5=0),Data!K$5,NA()))) ->  | G5: =IF(Data!L$5="",NA(),IF(AND($A3=List!$A$14,Status!$Q$5=0),Data!L$5,IF(AND($A3=List!$A$15,Status!$R$5=0),Data!L$5,NA()))) ->  | H5: =IF(Data!M$5="",NA(),IF(AND($A3=List!$A$14,Status!$Q$5=0),Data!M$5,IF(AND($A3=List!$A$15,Status!$R$5=0),Data!M$5,NA()))) ->  | I5: =IF(Data!N$5="",NA(),IF(AND($A3=List!$A$14,Status!$Q$5=0),Data!N$5,IF(AND($A3=List!$A$15,Status!$R$5=0),Data!N$5,NA()))) ->  | J5: =IF(Data!O$5="",NA(),IF(AND($A3=List!$A$14,Status!$Q$5=0),Data!O$5,IF(AND($A3=List!$A$15,Status!$R$5=0),Data!O$5,NA()))) ->  | K5: =IF(Data!P$5="",NA(),IF(AND($A3=List!$A$14,Status!$Q$5=0),Data!P$5,IF(AND($A3=List!$A$15,Status!$R$5=0),Data!P$5,NA()))) ->  | L5: =IF(Data!Q$5="",NA(),IF(AND($A3=List!$A$14,Status!$Q$5=0),Data!Q$5,IF(AND($A3=List!$A$15,Status!$R$5=0),Data!Q$5,NA()))) ->  | M5: =IF(Data!R$5="",NA(),IF(AND($A3=List!$A$14,Status!$Q$5=0),Data!R$5,IF(AND($A3=List!$A$15,Status!$R$5=0),Data!R$5,NA()))) ->  | N5: =IF(Data!S$5="",NA(),IF(AND($A3=List!$A$14,Status!$Q$5=0),Data!S$5,IF(AND($A3=List!$A$15,Status!$R$5=0),Data!S$5,NA()))) -> 
B6: Green | C6: =IF(Data!H$5="",NA(),IF(AND($A3=List!$A$14,Status!$Q$5=1),Data!H$5,IF(AND($A3=List!$A$15,Status!$R$5=1),Data!H$5,0))) -> 0 | D6: =IF(Data!I$5="",NA(),IF(AND($A3=List!$A$14,Status!$Q$5=1),Data!I$5,IF(AND($A3=List!$A$15,Status!$R$5=1),Data!I$5,NA()))) ->  | E6: =IF(Data!J$5="",NA(),IF(AND($A3=List!$A$14,Status!$Q$5=1),Data!J$5,IF(AND($A3=List!$A$15,Status!$R$5=1),Data!J$5,NA()))) ->  | F6: =IF(Data!K$5="",NA(),IF(AND($A3=List!$A$14,Status!$Q$5=1),Data!K$5,IF(AND($A3=List!$A$15,Status!$R$5=1),Data!K$5,NA()))) ->  | G6: =IF(Data!L$5="",NA(),IF(AND($A3=List!$A$14,Status!$Q$5=1),Data!L$5,IF(AND($A3=List!$A$15,Status!$R$5=1),Data!L$5,NA()))) ->  | H6: =IF(Data!M$5="",NA(),IF(AND($A3=List!$A$14,Status!$Q$5=1),Data!M$5,IF(AND($A3=List!$A$15,Status!$R$5=1),Data!M$5,NA()))) ->  | I6: =IF(Data!N$5="",NA(),IF(AND($A3=List!$A$14,Status!$Q$5=1),Data!N$5,IF(AND($A3=List!$A$15,Status!$R$5=1),Data!N$5,NA()))) ->  | J6: =IF(Data!O$5="",NA(),IF(AND($A3=List!$A$14,Status!$Q$5=1),Data!O$5,IF(AND($A3=List!$A$15,Status!$R$5=1),Data!O$5,NA()))) ->  | K6: =IF(Data!P$5="",NA(),IF(AND($A3=List!$A$14,Status!$Q$5=1),Data!P$5,IF(AND($A3=List!$A$15,Status!$R$5=1),Data!P$5,NA()))) ->  | L6: =IF(Data!Q$5="",NA(),IF(AND($A3=List!$A$14,Status!$Q$5=1),Data!Q$5,IF(AND($A3=List!$A$15,Status!$R$5=1),Data!Q$5,NA()))) ->  | M6: =IF(Data!R$5="",NA(),IF(AND($A3=List!$A$14,Status!$Q$5=1),Data!R$5,IF(AND($A3=List!$A$15,Status!$R$5=1),Data!R$5,NA()))) ->  | N6: =IF(Data!S$5="",NA(),IF(AND($A3=List!$A$14,Status!$Q$5=1),Data!S$5,IF(AND($A3=List!$A$15,Status!$R$5=1),Data!S$5,NA()))) -> 
A7: =Dashboard!W4 -> FALSE | B7: =Data!G6 -> Meta | C7: =IF(Data!H6="",0,IF($A$7=FALSE,0,Data!H6)) -> 0 | D7: =IF(Data!I6="",NA(),IF($A$7=FALSE,NA(),Data!I6)) ->  | E7: =IF(Data!J6="",NA(),IF($A$7=FALSE,NA(),Data!J6)) ->  | F7: =IF(Data!K6="",NA(),IF($A$7=FALSE,NA(),Data!K6)) ->  | G7: =IF(Data!L6="",NA(),IF($A$7=FALSE,NA(),Data!L6)) ->  | H7: =IF(Data!M6="",NA(),IF($A$7=FALSE,NA(),Data!M6)) ->  | I7: =IF(Data!N6="",NA(),IF($A$7=FALSE,NA(),Data!N6)) ->  | J7: =IF(Data!O6="",NA(),IF($A$7=FALSE,NA(),Data!O6)) ->  | K7: =IF(Data!P6="",NA(),IF($A$7=FALSE,NA(),Data!P6)) ->  | L7: =IF(Data!Q6="",NA(),IF($A$7=FALSE,NA(),Data!Q6)) ->  | M7: =IF(Data!R6="",NA(),IF($A$7=FALSE,NA(),Data!R6)) ->  | N7: =IF(Data!S6="",NA(),IF($A$7=FALSE,NA(),Data!S6)) -> 
B8: Red | C8: =IF(Data!H$8="",0,IF(AND($A$3=List!$A$14,Status!$Q$7=-1),Data!H$8,IF(AND($A$3=List!$A$15,Status!$R$7=-1),Data!H$8,0))) -> 0 | D8: =IF(Data!I$8="",NA(),IF(AND($A$3=List!$A$14,Status!$Q$7=-1),Data!I$8,IF(AND($A$3=List!$A$15,Status!$R$7=-1),Data!I$8,NA()))) ->  | E8: =IF(Data!J$8="",NA(),IF(AND($A$3=List!$A$14,Status!$Q$7=-1),Data!J$8,IF(AND($A$3=List!$A$15,Status!$R$7=-1),Data!J$8,NA()))) ->  | F8: =IF(Data!K$8="",NA(),IF(AND($A$3=List!$A$14,Status!$Q$7=-1),Data!K$8,IF(AND($A$3=List!$A$15,Status!$R$7=-1),Data!K$8,NA()))) ->  | G8: =IF(Data!L$8="",NA(),IF(AND($A$3=List!$A$14,Status!$Q$7=-1),Data!L$8,IF(AND($A$3=List!$A$15,Status!$R$7=-1),Data!L$8,NA()))) ->  | H8: =IF(Data!M$8="",NA(),IF(AND($A$3=List!$A$14,Status!$Q$7=-1),Data!M$8,IF(AND($A$3=List!$A$15,Status!$R$7=-1),Data!M$8,NA()))) ->  | I8: =IF(Data!N$8="",NA(),IF(AND($A$3=List!$A$14,Status!$Q$7=-1),Data!N$8,IF(AND($A$3=List!$A$15,Status!$R$7=-1),Data!N$8,NA()))) ->  | J8: =IF(Data!O$8="",NA(),IF(AND($A$3=List!$A$14,Status!$Q$7=-1),Data!O$8,IF(AND($A$3=List!$A$15,Status!$R$7=-1),Data!O$8,NA()))) ->  | K8: =IF(Data!P$8="",NA(),IF(AND($A$3=List!$A$14,Status!$Q$7=-1),Data!P$8,IF(AND($A$3=List!$A$15,Status!$R$7=-1),Data!P$8,NA()))) ->  | L8: =IF(Data!Q$8="",NA(),IF(AND($A$3=List!$A$14,Status!$Q$7=-1),Data!Q$8,IF(AND($A$3=List!$A$15,Status!$R$7=-1),Data!Q$8,NA()))) ->  | M8: =IF(Data!R$8="",NA(),IF(AND($A$3=List!$A$14,Status!$Q$7=-1),Data!R$8,IF(AND($A$3=List!$A$15,Status!$R$7=-1),Data!R$8,NA()))) ->  | N8: =IF(Data!S$8="",NA(),IF(AND($A$3=List!$A$14,Status!$Q$7=-1),Data!S$8,IF(AND($A$3=List!$A$15,Status!$R$7=-1),Data!S$8,NA()))) -> 
B9: Yellow | C9: =IF(Data!H$8="",0,IF(AND($A$3=List!$A$14,Status!$Q$7=0),Data!H$8,IF(AND($A$3=List!$A$15,Status!$R$7=0),Data!H$8,0))) -> 0 | D9: =IF(Data!I$8="",NA(),IF(AND($A$3=List!$A$14,Status!$Q$7=0),Data!I$8,IF(AND($A$3=List!$A$15,Status!$R$7=0),Data!I$8,NA()))) ->  | E9: =IF(Data!J$8="",NA(),IF(AND($A$3=List!$A$14,Status!$Q$7=0),Data!J$8,IF(AND($A$3=List!$A$15,Status!$R$7=0),Data!J$8,NA()))) ->  | F9: =IF(Data!K$8="",NA(),IF(AND($A$3=List!$A$14,Status!$Q$7=0),Data!K$8,IF(AND($A$3=List!$A$15,Status!$R$7=0),Data!K$8,NA()))) ->  | G9: =IF(Data!L$8="",NA(),IF(AND($A$3=List!$A$14,Status!$Q$7=0),Data!L$8,IF(AND($A$3=List!$A$15,Status!$R$7=0),Data!L$8,NA()))) ->  | H9: =IF(Data!M$8="",NA(),IF(AND($A$3=List!$A$14,Status!$Q$7=0),Data!M$8,IF(AND($A$3=List!$A$15,Status!$R$7=0),Data!M$8,NA()))) ->  | I9: =IF(Data!N$8="",NA(),IF(AND($A$3=List!$A$14,Status!$Q$7=0),Data!N$8,IF(AND($A$3=List!$A$15,Status!$R$7=0),Data!N$8,NA()))) ->  | J9: =IF(Data!O$8="",NA(),IF(AND($A$3=List!$A$14,Status!$Q$7=0),Data!O$8,IF(AND($A$3=List!$A$15,Status!$R$7=0),Data!O$8,NA()))) ->  | K9: =IF(Data!P$8="",NA(),IF(AND($A$3=List!$A$14,Status!$Q$7=0),Data!P$8,IF(AND($A$3=List!$A$15,Status!$R$7=0),Data!P$8,NA()))) ->  | L9: =IF(Data!Q$8="",NA(),IF(AND($A$3=List!$A$14,Status!$Q$7=0),Data!Q$8,IF(AND($A$3=List!$A$15,Status!$R$7=0),Data!Q$8,NA()))) ->  | M9: =IF(Data!R$8="",NA(),IF(AND($A$3=List!$A$14,Status!$Q$7=0),Data!R$8,IF(AND($A$3=List!$A$15,Status!$R$7=0),Data!R$8,NA()))) ->  | N9: =IF(Data!S$8="",NA(),IF(AND($A$3=List!$A$14,Status!$Q$7=0),Data!S$8,IF(AND($A$3=List!$A$15,Status!$R$7=0),Data!S$8,NA()))) -> 
B10: Green | C10: =IF(Data!H$8="",0,IF(AND($A$3=List!$A$14,Status!$Q$7=1),Data!H$8,IF(AND($A$3=List!$A$15,Status!$R$7=1),Data!H$8,0))) -> 0 | D10: =IF(Data!I$8="",NA(),IF(AND($A$3=List!$A$14,Status!$Q$7=1),Data!I$8,IF(AND($A$3=List!$A$15,Status!$R$7=1),Data!I$8,NA()))) ->  | E10: =IF(Data!J$8="",NA(),IF(AND($A$3=List!$A$14,Status!$Q$7=1),Data!J$8,IF(AND($A$3=List!$A$15,Status!$R$7=1),Data!J$8,NA()))) ->  | F10: =IF(Data!K$8="",NA(),IF(AND($A$3=List!$A$14,Status!$Q$7=1),Data!K$8,IF(AND($A$3=List!$A$15,Status!$R$7=1),Data!K$8,NA()))) ->  | G10: =IF(Data!L$8="",NA(),IF(AND($A$3=List!$A$14,Status!$Q$7=1),Data!L$8,IF(AND($A$3=List!$A$15,Status!$R$7=1),Data!L$8,NA()))) ->  | H10: =IF(Data!M$8="",NA(),IF(AND($A$3=List!$A$14,Status!$Q$7=1),Data!M$8,IF(AND($A$3=List!$A$15,Status!$R$7=1),Data!M$8,NA()))) ->  | I10: =IF(Data!N$8="",NA(),IF(AND($A$3=List!$A$14,Status!$Q$7=1),Data!N$8,IF(AND($A$3=List!$A$15,Status!$R$7=1),Data!N$8,NA()))) ->  | J10: =IF(Data!O$8="",NA(),IF(AND($A$3=List!$A$14,Status!$Q$7=1),Data!O$8,IF(AND($A$3=List!$A$15,Status!$R$7=1),Data!O$8,NA()))) ->  | K10: =IF(Data!P$8="",NA(),IF(AND($A$3=List!$A$14,Status!$Q$7=1),Data!P$8,IF(AND($A$3=List!$A$15,Status!$R$7=1),Data!P$8,NA()))) ->  | L10: =IF(Data!Q$8="",NA(),IF(AND($A$3=List!$A$14,Status!$Q$7=1),Data!Q$8,IF(AND($A$3=List!$A$15,Status!$R$7=1),Data!Q$8,NA()))) ->  | M10: =IF(Data!R$8="",NA(),IF(AND($A$3=List!$A$14,Status!$Q$7=1),Data!R$8,IF(AND($A$3=List!$A$15,Status!$R$7=1),Data!R$8,NA()))) ->  | N10: =IF(Data!S$8="",NA(),IF(AND($A$3=List!$A$14,Status!$Q$7=1),Data!S$8,IF(AND($A$3=List!$A$15,Status!$R$7=1),Data!S$8,NA()))) -> 
A11: =A7 -> FALSE | B11: =B7 -> Meta | C11: =IF(Data!H9="",0,IF($A$11=FALSE,0,Data!H9)) -> 0 | D11: =IF(Data!I9="",NA(),IF($A$11=FALSE,NA(),Data!I9)) ->  | E11: =IF(Data!J9="",NA(),IF($A$11=FALSE,NA(),Data!J9)) ->  | F11: =IF(Data!K9="",NA(),IF($A$11=FALSE,NA(),Data!K9)) ->  | G11: =IF(Data!L9="",NA(),IF($A$11=FALSE,NA(),Data!L9)) ->  | H11: =IF(Data!M9="",NA(),IF($A$11=FALSE,NA(),Data!M9)) ->  | I11: =IF(Data!N9="",NA(),IF($A$11=FALSE,NA(),Data!N9)) ->  | J11: =IF(Data!O9="",NA(),IF($A$11=FALSE,NA(),Data!O9)) ->  | K11: =IF(Data!P9="",NA(),IF($A$11=FALSE,NA(),Data!P9)) ->  | L11: =IF(Data!Q9="",NA(),IF($A$11=FALSE,NA(),Data!Q9)) ->  | M11: =IF(Data!R9="",NA(),IF($A$11=FALSE,NA(),Data!R9)) ->  | N11: =IF(Data!S9="",NA(),IF($A$11=FALSE,NA(),Data!S9)) -> 
B12: Red | C12: =IF(Data!H$11="",0,IF(AND($A$3=List!$A$14,Status!$Q$9=-1),Data!H$11,IF(AND($A$3=List!$A$15,Status!$R$9=-1),Data!H$11,0))) -> 0 | D12: =IF(Data!I$11="",NA(),IF(AND($A$3=List!$A$14,Status!$Q$9=-1),Data!I$11,IF(AND($A$3=List!$A$15,Status!$R$9=-1),Data!I$11,NA()))) ->  | E12: =IF(Data!J$11="",NA(),IF(AND($A$3=List!$A$14,Status!$Q$9=-1),Data!J$11,IF(AND($A$3=List!$A$15,Status!$R$9=-1),Data!J$11,NA()))) ->  | F12: =IF(Data!K$11="",NA(),IF(AND($A$3=List!$A$14,Status!$Q$9=-1),Data!K$11,IF(AND($A$3=List!$A$15,Status!$R$9=-1),Data!K$11,NA()))) ->  | G12: =IF(Data!L$11="",NA(),IF(AND($A$3=List!$A$14,Status!$Q$9=-1),Data!L$11,IF(AND($A$3=List!$A$15,Status!$R$9=-1),Data!L$11,NA()))) ->  | H12: =IF(Data!M$11="",NA(),IF(AND($A$3=List!$A$14,Status!$Q$9=-1),Data!M$11,IF(AND($A$3=List!$A$15,Status!$R$9=-1),Data!M$11,NA()))) ->  | I12: =IF(Data!N$11="",NA(),IF(AND($A$3=List!$A$14,Status!$Q$9=-1),Data!N$11,IF(AND($A$3=List!$A$15,Status!$R$9=-1),Data!N$11,NA()))) ->  | J12: =IF(Data!O$11="",NA(),IF(AND($A$3=List!$A$14,Status!$Q$9=-1),Data!O$11,IF(AND($A$3=List!$A$15,Status!$R$9=-1),Data!O$11,NA()))) ->  | K12: =IF(Data!P$11="",NA(),IF(AND($A$3=List!$A$14,Status!$Q$9=-1),Data!P$11,IF(AND($A$3=List!$A$15,Status!$R$9=-1),Data!P$11,NA()))) ->  | L12: =IF(Data!Q$11="",NA(),IF(AND($A$3=List!$A$14,Status!$Q$9=-1),Data!Q$11,IF(AND($A$3=List!$A$15,Status!$R$9=-1),Data!Q$11,NA()))) ->  | M12: =IF(Data!R$11="",NA(),IF(AND($A$3=List!$A$14,Status!$Q$9=-1),Data!R$11,IF(AND($A$3=List!$A$15,Status!$R$9=-1),Data!R$11,NA()))) ->  | N12: =IF(Data!S$11="",NA(),IF(AND($A$3=List!$A$14,Status!$Q$9=-1),Data!S$11,IF(AND($A$3=List!$A$15,Status!$R$9=-1),Data!S$11,NA()))) -> 
B13: Yellow | C13: =IF(Data!H$11="",0,IF(AND($A$3=List!$A$14,Status!$Q$9=0),Data!H$11,IF(AND($A$3=List!$A$15,Status!$R$9=0),Data!H$11,0))) -> 0 | D13: =IF(Data!I$11="",NA(),IF(AND($A$3=List!$A$14,Status!$Q$9=0),Data!I$11,IF(AND($A$3=List!$A$15,Status!$R$9=0),Data!I$11,NA()))) ->  | E13: =IF(Data!J$11="",NA(),IF(AND($A$3=List!$A$14,Status!$Q$9=0),Data!J$11,IF(AND($A$3=List!$A$15,Status!$R$9=0),Data!J$11,NA()))) ->  | F13: =IF(Data!K$11="",NA(),IF(AND($A$3=List!$A$14,Status!$Q$9=0),Data!K$11,IF(AND($A$3=List!$A$15,Status!$R$9=0),Data!K$11,NA()))) ->  | G13: =IF(Data!L$11="",NA(),IF(AND($A$3=List!$A$14,Status!$Q$9=0),Data!L$11,IF(AND($A$3=List!$A$15,Status!$R$9=0),Data!L$11,NA()))) ->  | H13: =IF(Data!M$11="",NA(),IF(AND($A$3=List!$A$14,Status!$Q$9=0),Data!M$11,IF(AND($A$3=List!$A$15,Status!$R$9=0),Data!M$11,NA()))) ->  | I13: =IF(Data!N$11="",NA(),IF(AND($A$3=List!$A$14,Status!$Q$9=0),Data!N$11,IF(AND($A$3=List!$A$15,Status!$R$9=0),Data!N$11,NA()))) ->  | J13: =IF(Data!O$11="",NA(),IF(AND($A$3=List!$A$14,Status!$Q$9=0),Data!O$11,IF(AND($A$3=List!$A$15,Status!$R$9=0),Data!O$11,NA()))) ->  | K13: =IF(Data!P$11="",NA(),IF(AND($A$3=List!$A$14,Status!$Q$9=0),Data!P$11,IF(AND($A$3=List!$A$15,Status!$R$9=0),Data!P$11,NA()))) ->  | L13: =IF(Data!Q$11="",NA(),IF(AND($A$3=List!$A$14,Status!$Q$9=0),Data!Q$11,IF(AND($A$3=List!$A$15,Status!$R$9=0),Data!Q$11,NA()))) ->  | M13: =IF(Data!R$11="",NA(),IF(AND($A$3=List!$A$14,Status!$Q$9=0),Data!R$11,IF(AND($A$3=List!$A$15,Status!$R$9=0),Data!R$11,NA()))) ->  | N13: =IF(Data!S$11="",NA(),IF(AND($A$3=List!$A$14,Status!$Q$9=0),Data!S$11,IF(AND($A$3=List!$A$15,Status!$R$9=0),Data!S$11,NA()))) -> 
B14: Green | C14: =IF(Data!H$11="",0,IF(AND($A$3=List!$A$14,Status!$Q$9=1),Data!H$11,IF(AND($A$3=List!$A$15,Status!$R$9=1),Data!H$11,0))) -> 0 | D14: =IF(Data!I$11="",NA(),IF(AND($A$3=List!$A$14,Status!$Q$9=1),Data!I$11,IF(AND($A$3=List!$A$15,Status!$R$9=1),Data!I$11,NA()))) ->  | E14: =IF(Data!J$11="",NA(),IF(AND($A$3=List!$A$14,Status!$Q$9=1),Data!J$11,IF(AND($A$3=List!$A$15,Status!$R$9=1),Data!J$11,NA()))) ->  | F14: =IF(Data!K$11="",NA(),IF(AND($A$3=List!$A$14,Status!$Q$9=1),Data!K$11,IF(AND($A$3=List!$A$15,Status!$R$9=1),Data!K$11,NA()))) ->  | G14: =IF(Data!L$11="",NA(),IF(AND($A$3=List!$A$14,Status!$Q$9=1),Data!L$11,IF(AND($A$3=List!$A$15,Status!$R$9=1),Data!L$11,NA()))) ->  | H14: =IF(Data!M$11="",NA(),IF(AND($A$3=List!$A$14,Status!$Q$9=1),Data!M$11,IF(AND($A$3=List!$A$15,Status!$R$9=1),Data!M$11,NA()))) ->  | I14: =IF(Data!N$11="",NA(),IF(AND($A$3=List!$A$14,Status!$Q$9=1),Data!N$11,IF(AND($A$3=List!$A$15,Status!$R$9=1),Data!N$11,NA()))) ->  | J14: =IF(Data!O$11="",NA(),IF(AND($A$3=List!$A$14,Status!$Q$9=1),Data!O$11,IF(AND($A$3=List!$A$15,Status!$R$9=1),Data!O$11,NA()))) ->  | K14: =IF(Data!P$11="",NA(),IF(AND($A$3=List!$A$14,Status!$Q$9=1),Data!P$11,IF(AND($A$3=List!$A$15,Status!$R$9=1),Data!P$11,NA()))) ->  | L14: =IF(Data!Q$11="",NA(),IF(AND($A$3=List!$A$14,Status!$Q$9=1),Data!Q$11,IF(AND($A$3=List!$A$15,Status!$R$9=1),Data!Q$11,NA()))) ->  | M14: =IF(Data!R$11="",NA(),IF(AND($A$3=List!$A$14,Status!$Q$9=1),Data!R$11,IF(AND($A$3=List!$A$15,Status!$R$9=1),Data!R$11,NA()))) ->  | N14: =IF(Data!S$11="",NA(),IF(AND($A$3=List!$A$14,Status!$Q$9=1),Data!S$11,IF(AND($A$3=List!$A$15,Status!$R$9=1),Data!S$11,NA()))) -> 
A15: =A11 -> FALSE | B15: =B11 -> Meta | C15: =IF(Data!H12="",0,IF($A$15=FALSE,0,Data!H12)) -> 0 | D15: =IF(Data!I12="",NA(),IF($A$15=FALSE,NA(),Data!I12)) ->  | E15: =IF(Data!J12="",NA(),IF($A$15=FALSE,NA(),Data!J12)) ->  | F15: =IF(Data!K12="",NA(),IF($A$15=FALSE,NA(),Data!K12)) ->  | G15: =IF(Data!L12="",NA(),IF($A$15=FALSE,NA(),Data!L12)) ->  | H15: =IF(Data!M12="",NA(),IF($A$15=FALSE,NA(),Data!M12)) ->  | I15: =IF(Data!N12="",NA(),IF($A$15=FALSE,NA(),Data!N12)) ->  | J15: =IF(Data!O12="",NA(),IF($A$15=FALSE,NA(),Data!O12)) ->  | K15: =IF(Data!P12="",NA(),IF($A$15=FALSE,NA(),Data!P12)) ->  | L15: =IF(Data!Q12="",NA(),IF($A$15=FALSE,NA(),Data!Q12)) ->  | M15: =IF(Data!R12="",NA(),IF($A$15=FALSE,NA(),Data!R12)) ->  | N15: =IF(Data!S12="",NA(),IF($A$15=FALSE,NA(),Data!S12)) -> 
B16: Red | C16: =IF(Data!H$14="",0,IF(AND($A$3=List!$A$14,Status!$Q$11=-1),Data!H$14,IF(AND($A$3=List!$A$15,Status!$R$11=-1),Data!H$14,0))) -> 0 | D16: =IF(Data!I$14="",NA(),IF(AND($A$3=List!$A$14,Status!$Q$11=-1),Data!I$14,IF(AND($A$3=List!$A$15,Status!$R$11=-1),Data!I$14,NA()))) ->  | E16: =IF(Data!J$14="",NA(),IF(AND($A$3=List!$A$14,Status!$Q$11=-1),Data!J$14,IF(AND($A$3=List!$A$15,Status!$R$11=-1),Data!J$14,NA()))) ->  | F16: =IF(Data!K$14="",NA(),IF(AND($A$3=List!$A$14,Status!$Q$11=-1),Data!K$14,IF(AND($A$3=List!$A$15,Status!$R$11=-1),Data!K$14,NA()))) ->  | G16: =IF(Data!L$14="",NA(),IF(AND($A$3=List!$A$14,Status!$Q$11=-1),Data!L$14,IF(AND($A$3=List!$A$15,Status!$R$11=-1),Data!L$14,NA()))) ->  | H16: =IF(Data!M$14="",NA(),IF(AND($A$3=List!$A$14,Status!$Q$11=-1),Data!M$14,IF(AND($A$3=List!$A$15,Status!$R$11=-1),Data!M$14,NA()))) ->  | I16: =IF(Data!N$14="",NA(),IF(AND($A$3=List!$A$14,Status!$Q$11=-1),Data!N$14,IF(AND($A$3=List!$A$15,Status!$R$11=-1),Data!N$14,NA()))) ->  | J16: =IF(Data!O$14="",NA(),IF(AND($A$3=List!$A$14,Status!$Q$11=-1),Data!O$14,IF(AND($A$3=List!$A$15,Status!$R$11=-1),Data!O$14,NA()))) ->  | K16: =IF(Data!P$14="",NA(),IF(AND($A$3=List!$A$14,Status!$Q$11=-1),Data!P$14,IF(AND($A$3=List!$A$15,Status!$R$11=-1),Data!P$14,NA()))) ->  | L16: =IF(Data!Q$14="",NA(),IF(AND($A$3=List!$A$14,Status!$Q$11=-1),Data!Q$14,IF(AND($A$3=List!$A$15,Status!$R$11=-1),Data!Q$14,NA()))) ->  | M16: =IF(Data!R$14="",NA(),IF(AND($A$3=List!$A$14,Status!$Q$11=-1),Data!R$14,IF(AND($A$3=List!$A$15,Status!$R$11=-1),Data!R$14,NA()))) ->  | N16: =IF(Data!S$14="",NA(),IF(AND($A$3=List!$A$14,Status!$Q$11=-1),Data!S$14,IF(AND($A$3=List!$A$15,Status!$R$11=-1),Data!S$14,NA()))) -> 
B17: Yellow | C17: =IF(Data!H$14="",0,IF(AND($A$3=List!$A$14,Status!$Q$11=0),Data!H$14,IF(AND($A$3=List!$A$15,Status!$R$11=0),Data!H$14,0))) -> 1 | D17: =IF(Data!I$14="",NA(),IF(AND($A$3=List!$A$14,Status!$Q$11=0),Data!I$14,IF(AND($A$3=List!$A$15,Status!$R$11=0),Data!I$14,NA()))) -> 2 | E17: =IF(Data!J$14="",NA(),IF(AND($A$3=List!$A$14,Status!$Q$11=0),Data!J$14,IF(AND($A$3=List!$A$15,Status!$R$11=0),Data!J$14,NA()))) -> 1 | F17: =IF(Data!K$14="",NA(),IF(AND($A$3=List!$A$14,Status!$Q$11=0),Data!K$14,IF(AND($A$3=List!$A$15,Status!$R$11=0),Data!K$14,NA()))) ->  | G17: =IF(Data!L$14="",NA(),IF(AND($A$3=List!$A$14,Status!$Q$11=0),Data!L$14,IF(AND($A$3=List!$A$15,Status!$R$11=0),Data!L$14,NA()))) ->  | H17: =IF(Data!M$14="",NA(),IF(AND($A$3=List!$A$14,Status!$Q$11=0),Data!M$14,IF(AND($A$3=List!$A$15,Status!$R$11=0),Data!M$14,NA()))) ->  | I17: =IF(Data!N$14="",NA(),IF(AND($A$3=List!$A$14,Status!$Q$11=0),Data!N$14,IF(AND($A$3=List!$A$15,Status!$R$11=0),Data!N$14,NA()))) ->  | J17: =IF(Data!O$14="",NA(),IF(AND($A$3=List!$A$14,Status!$Q$11=0),Data!O$14,IF(AND($A$3=List!$A$15,Status!$R$11=0),Data!O$14,NA()))) ->  | K17: =IF(Data!P$14="",NA(),IF(AND($A$3=List!$A$14,Status!$Q$11=0),Data!P$14,IF(AND($A$3=List!$A$15,Status!$R$11=0),Data!P$14,NA()))) ->  | L17: =IF(Data!Q$14="",NA(),IF(AND($A$3=List!$A$14,Status!$Q$11=0),Data!Q$14,IF(AND($A$3=List!$A$15,Status!$R$11=0),Data!Q$14,NA()))) ->  | M17: =IF(Data!R$14="",NA(),IF(AND($A$3=List!$A$14,Status!$Q$11=0),Data!R$14,IF(AND($A$3=List!$A$15,Status!$R$11=0),Data!R$14,NA()))) ->  | N17: =IF(Data!S$14="",NA(),IF(AND($A$3=List!$A$14,Status!$Q$11=0),Data!S$14,IF(AND($A$3=List!$A$15,Status!$R$11=0),Data!S$14,NA()))) -> 
B18: Green | C18: =IF(Data!H$14="",0,IF(AND($A$3=List!$A$14,Status!$Q$11=1),Data!H$14,IF(AND($A$3=List!$A$15,Status!$R$11=1),Data!H$14,0))) -> 0 | D18: =IF(Data!I$14="",NA(),IF(AND($A$3=List!$A$14,Status!$Q$11=1),Data!I$14,IF(AND($A$3=List!$A$15,Status!$R$11=1),Data!I$14,NA()))) ->  | E18: =IF(Data!J$14="",NA(),IF(AND($A$3=List!$A$14,Status!$Q$11=1),Data!J$14,IF(AND($A$3=List!$A$15,Status!$R$11=1),Data!J$14,NA()))) ->  | F18: =IF(Data!K$14="",NA(),IF(AND($A$3=List!$A$14,Status!$Q$11=1),Data!K$14,IF(AND($A$3=List!$A$15,Status!$R$11=1),Data!K$14,NA()))) ->  | G18: =IF(Data!L$14="",NA(),IF(AND($A$3=List!$A$14,Status!$Q$11=1),Data!L$14,IF(AND($A$3=List!$A$15,Status!$R$11=1),Data!L$14,NA()))) ->  | H18: =IF(Data!M$14="",NA(),IF(AND($A$3=List!$A$14,Status!$Q$11=1),Data!M$14,IF(AND($A$3=List!$A$15,Status!$R$11=1),Data!M$14,NA()))) ->  | I18: =IF(Data!N$14="",NA(),IF(AND($A$3=List!$A$14,Status!$Q$11=1),Data!N$14,IF(AND($A$3=List!$A$15,Status!$R$11=1),Data!N$14,NA()))) ->  | J18: =IF(Data!O$14="",NA(),IF(AND($A$3=List!$A$14,Status!$Q$11=1),Data!O$14,IF(AND($A$3=List!$A$15,Status!$R$11=1),Data!O$14,NA()))) ->  | K18: =IF(Data!P$14="",NA(),IF(AND($A$3=List!$A$14,Status!$Q$11=1),Data!P$14,IF(AND($A$3=List!$A$15,Status!$R$11=1),Data!P$14,NA()))) ->  | L18: =IF(Data!Q$14="",NA(),IF(AND($A$3=List!$A$14,Status!$Q$11=1),Data!Q$14,IF(AND($A$3=List!$A$15,Status!$R$11=1),Data!Q$14,NA()))) ->  | M18: =IF(Data!R$14="",NA(),IF(AND($A$3=List!$A$14,Status!$Q$11=1),Data!R$14,IF(AND($A$3=List!$A$15,Status!$R$11=1),Data!R$14,NA()))) ->  | N18: =IF(Data!S$14="",NA(),IF(AND($A$3=List!$A$14,Status!$Q$11=1),Data!S$14,IF(AND($A$3=List!$A$15,Status!$R$11=1),Data!S$14,NA()))) -> 
A19: =A15 -> FALSE | B19: =B15 -> Meta | C19: =IF(Data!H15="",0,IF($A$19=FALSE,0,Data!H15)) -> 0 | D19: =IF(Data!I15="",NA(),IF($A$19=FALSE,NA(),Data!I15)) ->  | E19: =IF(Data!J15="",NA(),IF($A$19=FALSE,NA(),Data!J15)) ->  | F19: =IF(Data!K15="",NA(),IF($A$19=FALSE,NA(),Data!K15)) ->  | G19: =IF(Data!L15="",NA(),IF($A$19=FALSE,NA(),Data!L15)) ->  | H19: =IF(Data!M15="",NA(),IF($A$19=FALSE,NA(),Data!M15)) ->  | I19: =IF(Data!N15="",NA(),IF($A$19=FALSE,NA(),Data!N15)) ->  | J19: =IF(Data!O15="",NA(),IF($A$19=FALSE,NA(),Data!O15)) ->  | K19: =IF(Data!P15="",NA(),IF($A$19=FALSE,NA(),Data!P15)) ->  | L19: =IF(Data!Q15="",NA(),IF($A$19=FALSE,NA(),Data!Q15)) ->  | M19: =IF(Data!R15="",NA(),IF($A$19=FALSE,NA(),Data!R15)) ->  | N19: =IF(Data!S15="",NA(),IF($A$19=FALSE,NA(),Data!S15)) -> 
B20: Red | C20: =IF(Data!H$17="",0,IF(AND($A$3=List!$A$14,Status!$Q$13=-1),Data!H$17,IF(AND($A$3=List!$A$15,Status!$R$13=-1),Data!H$17,0))) -> 0 | D20: =IF(Data!I$17="",NA(),IF(AND($A$3=List!$A$14,Status!$Q$13=-1),Data!I$17,IF(AND($A$3=List!$A$15,Status!$R$13=-1),Data!I$17,NA()))) ->  | E20: =IF(Data!J$17="",NA(),IF(AND($A$3=List!$A$14,Status!$Q$13=-1),Data!J$17,IF(AND($A$3=List!$A$15,Status!$R$13=-1),Data!J$17,NA()))) ->  | F20: =IF(Data!K$17="",NA(),IF(AND($A$3=List!$A$14,Status!$Q$13=-1),Data!K$17,IF(AND($A$3=List!$A$15,Status!$R$13=-1),Data!K$17,NA()))) ->  | G20: =IF(Data!L$17="",NA(),IF(AND($A$3=List!$A$14,Status!$Q$13=-1),Data!L$17,IF(AND($A$3=List!$A$15,Status!$R$13=-1),Data!L$17,NA()))) ->  | H20: =IF(Data!M$17="",NA(),IF(AND($A$3=List!$A$14,Status!$Q$13=-1),Data!M$17,IF(AND($A$3=List!$A$15,Status!$R$13=-1),Data!M$17,NA()))) ->  | I20: =IF(Data!N$17="",NA(),IF(AND($A$3=List!$A$14,Status!$Q$13=-1),Data!N$17,IF(AND($A$3=List!$A$15,Status!$R$13=-1),Data!N$17,NA()))) ->  | J20: =IF(Data!O$17="",NA(),IF(AND($A$3=List!$A$14,Status!$Q$13=-1),Data!O$17,IF(AND($A$3=List!$A$15,Status!$R$13=-1),Data!O$17,NA()))) ->  | K20: =IF(Data!P$17="",NA(),IF(AND($A$3=List!$A$14,Status!$Q$13=-1),Data!P$17,IF(AND($A$3=List!$A$15,Status!$R$13=-1),Data!P$17,NA()))) ->  | L20: =IF(Data!Q$17="",NA(),IF(AND($A$3=List!$A$14,Status!$Q$13=-1),Data!Q$17,IF(AND($A$3=List!$A$15,Status!$R$13=-1),Data!Q$17,NA()))) ->  | M20: =IF(Data!R$17="",NA(),IF(AND($A$3=List!$A$14,Status!$Q$13=-1),Data!R$17,IF(AND($A$3=List!$A$15,Status!$R$13=-1),Data!R$17,NA()))) ->  | N20: =IF(Data!S$17="",NA(),IF(AND($A$3=List!$A$14,Status!$Q$13=-1),Data!S$17,IF(AND($A$3=List!$A$15,Status!$R$13=-1),Data!S$17,NA()))) -> 
B21: Yellow | C21: =IF(Data!H$17="",0,IF(AND($A$3=List!$A$14,Status!$Q$13=0),Data!H$17,IF(AND($A$3=List!$A$15,Status!$R$13=0),Data!H$17,0))) -> 0 | D21: =IF(Data!I$17="",NA(),IF(AND($A$3=List!$A$14,Status!$Q$13=0),Data!I$17,IF(AND($A$3=List!$A$15,Status!$R$13=0),Data!I$17,NA()))) ->  | E21: =IF(Data!J$17="",NA(),IF(AND($A$3=List!$A$14,Status!$Q$13=0),Data!J$17,IF(AND($A$3=List!$A$15,Status!$R$13=0),Data!J$17,NA()))) ->  | F21: =IF(Data!K$17="",NA(),IF(AND($A$3=List!$A$14,Status!$Q$13=0),Data!K$17,IF(AND($A$3=List!$A$15,Status!$R$13=0),Data!K$17,NA()))) ->  | G21: =IF(Data!L$17="",NA(),IF(AND($A$3=List!$A$14,Status!$Q$13=0),Data!L$17,IF(AND($A$3=List!$A$15,Status!$R$13=0),Data!L$17,NA()))) ->  | H21: =IF(Data!M$17="",NA(),IF(AND($A$3=List!$A$14,Status!$Q$13=0),Data!M$17,IF(AND($A$3=List!$A$15,Status!$R$13=0),Data!M$17,NA()))) ->  | I21: =IF(Data!N$17="",NA(),IF(AND($A$3=List!$A$14,Status!$Q$13=0),Data!N$17,IF(AND($A$3=List!$A$15,Status!$R$13=0),Data!N$17,NA()))) ->  | J21: =IF(Data!O$17="",NA(),IF(AND($A$3=List!$A$14,Status!$Q$13=0),Data!O$17,IF(AND($A$3=List!$A$15,Status!$R$13=0),Data!O$17,NA()))) ->  | K21: =IF(Data!P$17="",NA(),IF(AND($A$3=List!$A$14,Status!$Q$13=0),Data!P$17,IF(AND($A$3=List!$A$15,Status!$R$13=0),Data!P$17,NA()))) ->  | L21: =IF(Data!Q$17="",NA(),IF(AND($A$3=List!$A$14,Status!$Q$13=0),Data!Q$17,IF(AND($A$3=List!$A$15,Status!$R$13=0),Data!Q$17,NA()))) ->  | M21: =IF(Data!R$17="",NA(),IF(AND($A$3=List!$A$14,Status!$Q$13=0),Data!R$17,IF(AND($A$3=List!$A$15,Status!$R$13=0),Data!R$17,NA()))) ->  | N21: =IF(Data!S$17="",NA(),IF(AND($A$3=List!$A$14,Status!$Q$13=0),Data!S$17,IF(AND($A$3=List!$A$15,Status!$R$13=0),Data!S$17,NA()))) -> 
B22: Green | C22: =IF(Data!H$17="",0,IF(AND($A$3=List!$A$14,Status!$Q$13=1),Data!H$17,IF(AND($A$3=List!$A$15,Status!$R$13=1),Data!H$17,0))) -> 0 | D22: =IF(Data!I$17="",NA(),IF(AND($A$3=List!$A$14,Status!$Q$13=1),Data!I$17,IF(AND($A$3=List!$A$15,Status!$R$13=1),Data!I$17,NA()))) ->  | E22: =IF(Data!J$17="",NA(),IF(AND($A$3=List!$A$14,Status!$Q$13=1),Data!J$17,IF(AND($A$3=List!$A$15,Status!$R$13=1),Data!J$17,NA()))) ->  | F22: =IF(Data!K$17="",NA(),IF(AND($A$3=List!$A$14,Status!$Q$13=1),Data!K$17,IF(AND($A$3=List!$A$15,Status!$R$13=1),Data!K$17,NA()))) ->  | G22: =IF(Data!L$17="",NA(),IF(AND($A$3=List!$A$14,Status!$Q$13=1),Data!L$17,IF(AND($A$3=List!$A$15,Status!$R$13=1),Data!L$17,NA()))) ->  | H22: =IF(Data!M$17="",NA(),IF(AND($A$3=List!$A$14,Status!$Q$13=1),Data!M$17,IF(AND($A$3=List!$A$15,Status!$R$13=1),Data!M$17,NA()))) ->  | I22: =IF(Data!N$17="",NA(),IF(AND($A$3=List!$A$14,Status!$Q$13=1),Data!N$17,IF(AND($A$3=List!$A$15,Status!$R$13=1),Data!N$17,NA()))) ->  | J22: =IF(Data!O$17="",NA(),IF(AND($A$3=List!$A$14,Status!$Q$13=1),Data!O$17,IF(AND($A$3=List!$A$15,Status!$R$13=1),Data!O$17,NA()))) ->  | K22: =IF(Data!P$17="",NA(),IF(AND($A$3=List!$A$14,Status!$Q$13=1),Data!P$17,IF(AND($A$3=List!$A$15,Status!$R$13=1),Data!P$17,NA()))) ->  | L22: =IF(Data!Q$17="",NA(),IF(AND($A$3=List!$A$14,Status!$Q$13=1),Data!Q$17,IF(AND($A$3=List!$A$15,Status!$R$13=1),Data!Q$17,NA()))) ->  | M22: =IF(Data!R$17="",NA(),IF(AND($A$3=List!$A$14,Status!$Q$13=1),Data!R$17,IF(AND($A$3=List!$A$15,Status!$R$13=1),Data!R$17,NA()))) ->  | N22: =IF(Data!S$17="",NA(),IF(AND($A$3=List!$A$14,Status!$Q$13=1),Data!S$17,IF(AND($A$3=List!$A$15,Status!$R$13=1),Data!S$17,NA()))) -> 
A23: =A19 -> FALSE | B23: =B19 -> Meta | C23: =IF(Data!H18="",0,IF($A$23=FALSE,0,Data!H18)) -> 0 | D23: =IF(Data!I18="",NA(),IF($A$23=FALSE,NA(),Data!I18)) ->  | E23: =IF(Data!J18="",NA(),IF($A$23=FALSE,NA(),Data!J18)) ->  | F23: =IF(Data!K18="",NA(),IF($A$23=FALSE,NA(),Data!K18)) ->  | G23: =IF(Data!L18="",NA(),IF($A$23=FALSE,NA(),Data!L18)) ->  | H23: =IF(Data!M18="",NA(),IF($A$23=FALSE,NA(),Data!M18)) ->  | I23: =IF(Data!N18="",NA(),IF($A$23=FALSE,NA(),Data!N18)) ->  | J23: =IF(Data!O18="",NA(),IF($A$23=FALSE,NA(),Data!O18)) ->  | K23: =IF(Data!P18="",NA(),IF($A$23=FALSE,NA(),Data!P18)) ->  | L23: =IF(Data!Q18="",NA(),IF($A$23=FALSE,NA(),Data!Q18)) ->  | M23: =IF(Data!R18="",NA(),IF($A$23=FALSE,NA(),Data!R18)) ->  | N23: =IF(Data!S18="",NA(),IF($A$23=FALSE,NA(),Data!S18)) -> 
B24: Red | C24: =IF(Data!H$20="",0,IF(AND($A$3=List!$A$14,Status!$Q$15=-1),Data!H$20,IF(AND($A$3=List!$A$15,Status!$R$15=-1),Data!H$20,0))) -> 0 | D24: =IF(Data!I$20="",NA(),IF(AND($A$3=List!$A$14,Status!$Q$15=-1),Data!I$20,IF(AND($A$3=List!$A$15,Status!$R$15=-1),Data!I$20,NA()))) ->  | E24: =IF(Data!J$20="",NA(),IF(AND($A$3=List!$A$14,Status!$Q$15=-1),Data!J$20,IF(AND($A$3=List!$A$15,Status!$R$15=-1),Data!J$20,NA()))) ->  | F24: =IF(Data!K$20="",NA(),IF(AND($A$3=List!$A$14,Status!$Q$15=-1),Data!K$20,IF(AND($A$3=List!$A$15,Status!$R$15=-1),Data!K$20,NA()))) ->  | G24: =IF(Data!L$20="",NA(),IF(AND($A$3=List!$A$14,Status!$Q$15=-1),Data!L$20,IF(AND($A$3=List!$A$15,Status!$R$15=-1),Data!L$20,NA()))) ->  | H24: =IF(Data!M$20="",NA(),IF(AND($A$3=List!$A$14,Status!$Q$15=-1),Data!M$20,IF(AND($A$3=List!$A$15,Status!$R$15=-1),Data!M$20,NA()))) ->  | I24: =IF(Data!N$20="",NA(),IF(AND($A$3=List!$A$14,Status!$Q$15=-1),Data!N$20,IF(AND($A$3=List!$A$15,Status!$R$15=-1),Data!N$20,NA()))) ->  | J24: =IF(Data!O$20="",NA(),IF(AND($A$3=List!$A$14,Status!$Q$15=-1),Data!O$20,IF(AND($A$3=List!$A$15,Status!$R$15=-1),Data!O$20,NA()))) ->  | K24: =IF(Data!P$20="",NA(),IF(AND($A$3=List!$A$14,Status!$Q$15=-1),Data!P$20,IF(AND($A$3=List!$A$15,Status!$R$15=-1),Data!P$20,NA()))) ->  | L24: =IF(Data!Q$20="",NA(),IF(AND($A$3=List!$A$14,Status!$Q$15=-1),Data!Q$20,IF(AND($A$3=List!$A$15,Status!$R$15=-1),Data!Q$20,NA()))) ->  | M24: =IF(Data!R$20="",NA(),IF(AND($A$3=List!$A$14,Status!$Q$15=-1),Data!R$20,IF(AND($A$3=List!$A$15,Status!$R$15=-1),Data!R$20,NA()))) ->  | N24: =IF(Data!S$20="",NA(),IF(AND($A$3=List!$A$14,Status!$Q$15=-1),Data!S$20,IF(AND($A$3=List!$A$15,Status!$R$15=-1),Data!S$20,NA()))) -> 
B25: Yellow | C25: =IF(Data!H$20="",0,IF(AND($A$3=List!$A$14,Status!$Q$15=0),Data!H$20,IF(AND($A$3=List!$A$15,Status!$R$15=0),Data!H$20,0))) -> 0 | D25: =IF(Data!I$20="",NA(),IF(AND($A$3=List!$A$14,Status!$Q$15=0),Data!I$20,IF(AND($A$3=List!$A$15,Status!$R$15=0),Data!I$20,NA()))) ->  | E25: =IF(Data!J$20="",NA(),IF(AND($A$3=List!$A$14,Status!$Q$15=0),Data!J$20,IF(AND($A$3=List!$A$15,Status!$R$15=0),Data!J$20,NA()))) ->  | F25: =IF(Data!K$20="",NA(),IF(AND($A$3=List!$A$14,Status!$Q$15=0),Data!K$20,IF(AND($A$3=List!$A$15,Status!$R$15=0),Data!K$20,NA()))) ->  | G25: =IF(Data!L$20="",NA(),IF(AND($A$3=List!$A$14,Status!$Q$15=0),Data!L$20,IF(AND($A$3=List!$A$15,Status!$R$15=0),Data!L$20,NA()))) ->  | H25: =IF(Data!M$20="",NA(),IF(AND($A$3=List!$A$14,Status!$Q$15=0),Data!M$20,IF(AND($A$3=List!$A$15,Status!$R$15=0),Data!M$20,NA()))) ->  | I25: =IF(Data!N$20="",NA(),IF(AND($A$3=List!$A$14,Status!$Q$15=0),Data!N$20,IF(AND($A$3=List!$A$15,Status!$R$15=0),Data!N$20,NA()))) ->  | J25: =IF(Data!O$20="",NA(),IF(AND($A$3=List!$A$14,Status!$Q$15=0),Data!O$20,IF(AND($A$3=List!$A$15,Status!$R$15=0),Data!O$20,NA()))) ->  | K25: =IF(Data!P$20="",NA(),IF(AND($A$3=List!$A$14,Status!$Q$15=0),Data!P$20,IF(AND($A$3=List!$A$15,Status!$R$15=0),Data!P$20,NA()))) ->  | L25: =IF(Data!Q$20="",NA(),IF(AND($A$3=List!$A$14,Status!$Q$15=0),Data!Q$20,IF(AND($A$3=List!$A$15,Status!$R$15=0),Data!Q$20,NA()))) ->  | M25: =IF(Data!R$20="",NA(),IF(AND($A$3=List!$A$14,Status!$Q$15=0),Data!R$20,IF(AND($A$3=List!$A$15,Status!$R$15=0),Data!R$20,NA()))) ->  | N25: =IF(Data!S$20="",NA(),IF(AND($A$3=List!$A$14,Status!$Q$15=0),Data!S$20,IF(AND($A$3=List!$A$15,Status!$R$15=0),Data!S$20,NA()))) -> 
B26: Green | C26: =IF(Data!H$20="",0,IF(AND($A$3=List!$A$14,Status!$Q$15=1),Data!H$20,IF(AND($A$3=List!$A$15,Status!$R$15=1),Data!H$20,0))) -> 0 | D26: =IF(Data!I$20="",NA(),IF(AND($A$3=List!$A$14,Status!$Q$15=1),Data!I$20,IF(AND($A$3=List!$A$15,Status!$R$15=1),Data!I$20,NA()))) ->  | E26: =IF(Data!J$20="",NA(),IF(AND($A$3=List!$A$14,Status!$Q$15=1),Data!J$20,IF(AND($A$3=List!$A$15,Status!$R$15=1),Data!J$20,NA()))) ->  | F26: =IF(Data!K$20="",NA(),IF(AND($A$3=List!$A$14,Status!$Q$15=1),Data!K$20,IF(AND($A$3=List!$A$15,Status!$R$15=1),Data!K$20,NA()))) ->  | G26: =IF(Data!L$20="",NA(),IF(AND($A$3=List!$A$14,Status!$Q$15=1),Data!L$20,IF(AND($A$3=List!$A$15,Status!$R$15=1),Data!L$20,NA()))) ->  | H26: =IF(Data!M$20="",NA(),IF(AND($A$3=List!$A$14,Status!$Q$15=1),Data!M$20,IF(AND($A$3=List!$A$15,Status!$R$15=1),Data!M$20,NA()))) ->  | I26: =IF(Data!N$20="",NA(),IF(AND($A$3=List!$A$14,Status!$Q$15=1),Data!N$20,IF(AND($A$3=List!$A$15,Status!$R$15=1),Data!N$20,NA()))) ->  | J26: =IF(Data!O$20="",NA(),IF(AND($A$3=List!$A$14,Status!$Q$15=1),Data!O$20,IF(AND($A$3=List!$A$15,Status!$R$15=1),Data!O$20,NA()))) ->  | K26: =IF(Data!P$20="",NA(),IF(AND($A$3=List!$A$14,Status!$Q$15=1),Data!P$20,IF(AND($A$3=List!$A$15,Status!$R$15=1),Data!P$20,NA()))) ->  | L26: =IF(Data!Q$20="",NA(),IF(AND($A$3=List!$A$14,Status!$Q$15=1),Data!Q$20,IF(AND($A$3=List!$A$15,Status!$R$15=1),Data!Q$20,NA()))) ->  | M26: =IF(Data!R$20="",NA(),IF(AND($A$3=List!$A$14,Status!$Q$15=1),Data!R$20,IF(AND($A$3=List!$A$15,Status!$R$15=1),Data!R$20,NA()))) ->  | N26: =IF(Data!S$20="",NA(),IF(AND($A$3=List!$A$14,Status!$Q$15=1),Data!S$20,IF(AND($A$3=List!$A$15,Status!$R$15=1),Data!S$20,NA()))) -> 
A27: =A23 -> FALSE | B27: =B23 -> Meta | C27: =IF(Data!H21="",0,IF($A$27=FALSE,0,Data!H21)) -> 0 | D27: =IF(Data!I21="",NA(),IF($A$27=FALSE,NA(),Data!I21)) ->  | E27: =IF(Data!J21="",NA(),IF($A$27=FALSE,NA(),Data!J21)) ->  | F27: =IF(Data!K21="",NA(),IF($A$27=FALSE,NA(),Data!K21)) ->  | G27: =IF(Data!L21="",NA(),IF($A$27=FALSE,NA(),Data!L21)) ->  | H27: =IF(Data!M21="",NA(),IF($A$27=FALSE,NA(),Data!M21)) ->  | I27: =IF(Data!N21="",NA(),IF($A$27=FALSE,NA(),Data!N21)) ->  | J27: =IF(Data!O21="",NA(),IF($A$27=FALSE,NA(),Data!O21)) ->  | K27: =IF(Data!P21="",NA(),IF($A$27=FALSE,NA(),Data!P21)) ->  | L27: =IF(Data!Q21="",NA(),IF($A$27=FALSE,NA(),Data!Q21)) ->  | M27: =IF(Data!R21="",NA(),IF($A$27=FALSE,NA(),Data!R21)) ->  | N27: =IF(Data!S21="",NA(),IF($A$27=FALSE,NA(),Data!S21)) -> 
B28: Red | C28: =IF(Data!H$23="",0,IF(AND($A$3=List!$A$14,Status!$Q$17=-1),Data!H$23,IF(AND($A$3=List!$A$15,Status!$R$17=-1),Data!H$23,0))) -> 0 | D28: =IF(Data!I$23="",NA(),IF(AND($A$3=List!$A$14,Status!$Q$17=-1),Data!I$23,IF(AND($A$3=List!$A$15,Status!$R$17=-1),Data!I$23,NA()))) ->  | E28: =IF(Data!J$23="",NA(),IF(AND($A$3=List!$A$14,Status!$Q$17=-1),Data!J$23,IF(AND($A$3=List!$A$15,Status!$R$17=-1),Data!J$23,NA()))) ->  | F28: =IF(Data!K$23="",NA(),IF(AND($A$3=List!$A$14,Status!$Q$17=-1),Data!K$23,IF(AND($A$3=List!$A$15,Status!$R$17=-1),Data!K$23,NA()))) ->  | G28: =IF(Data!L$23="",NA(),IF(AND($A$3=List!$A$14,Status!$Q$17=-1),Data!L$23,IF(AND($A$3=List!$A$15,Status!$R$17=-1),Data!L$23,NA()))) ->  | H28: =IF(Data!M$23="",NA(),IF(AND($A$3=List!$A$14,Status!$Q$17=-1),Data!M$23,IF(AND($A$3=List!$A$15,Status!$R$17=-1),Data!M$23,NA()))) ->  | I28: =IF(Data!N$23="",NA(),IF(AND($A$3=List!$A$14,Status!$Q$17=-1),Data!N$23,IF(AND($A$3=List!$A$15,Status!$R$17=-1),Data!N$23,NA()))) ->  | J28: =IF(Data!O$23="",NA(),IF(AND($A$3=List!$A$14,Status!$Q$17=-1),Data!O$23,IF(AND($A$3=List!$A$15,Status!$R$17=-1),Data!O$23,NA()))) ->  | K28: =IF(Data!P$23="",NA(),IF(AND($A$3=List!$A$14,Status!$Q$17=-1),Data!P$23,IF(AND($A$3=List!$A$15,Status!$R$17=-1),Data!P$23,NA()))) ->  | L28: =IF(Data!Q$23="",NA(),IF(AND($A$3=List!$A$14,Status!$Q$17=-1),Data!Q$23,IF(AND($A$3=List!$A$15,Status!$R$17=-1),Data!Q$23,NA()))) ->  | M28: =IF(Data!R$23="",NA(),IF(AND($A$3=List!$A$14,Status!$Q$17=-1),Data!R$23,IF(AND($A$3=List!$A$15,Status!$R$17=-1),Data!R$23,NA()))) ->  | N28: =IF(Data!S$23="",NA(),IF(AND($A$3=List!$A$14,Status!$Q$17=-1),Data!S$23,IF(AND($A$3=List!$A$15,Status!$R$17=-1),Data!S$23,NA()))) -> 
B29: Yellow | C29: =IF(Data!H$23="",0,IF(AND($A$3=List!$A$14,Status!$Q$17=0),Data!H$23,IF(AND($A$3=List!$A$15,Status!$R$17=0),Data!H$23,0))) -> 0 | D29: =IF(Data!I$23="",NA(),IF(AND($A$3=List!$A$14,Status!$Q$17=0),Data!I$23,IF(AND($A$3=List!$A$15,Status!$R$17=0),Data!I$23,NA()))) ->  | E29: =IF(Data!J$23="",NA(),IF(AND($A$3=List!$A$14,Status!$Q$17=0),Data!J$23,IF(AND($A$3=List!$A$15,Status!$R$17=0),Data!J$23,NA()))) ->  | F29: =IF(Data!K$23="",NA(),IF(AND($A$3=List!$A$14,Status!$Q$17=0),Data!K$23,IF(AND($A$3=List!$A$15,Status!$R$17=0),Data!K$23,NA()))) ->  | G29: =IF(Data!L$23="",NA(),IF(AND($A$3=List!$A$14,Status!$Q$17=0),Data!L$23,IF(AND($A$3=List!$A$15,Status!$R$17=0),Data!L$23,NA()))) ->  | H29: =IF(Data!M$23="",NA(),IF(AND($A$3=List!$A$14,Status!$Q$17=0),Data!M$23,IF(AND($A$3=List!$A$15,Status!$R$17=0),Data!M$23,NA()))) ->  | I29: =IF(Data!N$23="",NA(),IF(AND($A$3=List!$A$14,Status!$Q$17=0),Data!N$23,IF(AND($A$3=List!$A$15,Status!$R$17=0),Data!N$23,NA()))) ->  | J29: =IF(Data!O$23="",NA(),IF(AND($A$3=List!$A$14,Status!$Q$17=0),Data!O$23,IF(AND($A$3=List!$A$15,Status!$R$17=0),Data!O$23,NA()))) ->  | K29: =IF(Data!P$23="",NA(),IF(AND($A$3=List!$A$14,Status!$Q$17=0),Data!P$23,IF(AND($A$3=List!$A$15,Status!$R$17=0),Data!P$23,NA()))) ->  | L29: =IF(Data!Q$23="",NA(),IF(AND($A$3=List!$A$14,Status!$Q$17=0),Data!Q$23,IF(AND($A$3=List!$A$15,Status!$R$17=0),Data!Q$23,NA()))) ->  | M29: =IF(Data!R$23="",NA(),IF(AND($A$3=List!$A$14,Status!$Q$17=0),Data!R$23,IF(AND($A$3=List!$A$15,Status!$R$17=0),Data!R$23,NA()))) ->  | N29: =IF(Data!S$23="",NA(),IF(AND($A$3=List!$A$14,Status!$Q$17=0),Data!S$23,IF(AND($A$3=List!$A$15,Status!$R$17=0),Data!S$23,NA()))) -> 
B30: Green | C30: =IF(Data!H$23="",0,IF(AND($A$3=List!$A$14,Status!$Q$17=1),Data!H$23,IF(AND($A$3=List!$A$15,Status!$R$17=1),Data!H$23,0))) -> 0 | D30: =IF(Data!I$23="",NA(),IF(AND($A$3=List!$A$14,Status!$Q$17=1),Data!I$23,IF(AND($A$3=List!$A$15,Status!$R$17=1),Data!I$23,NA()))) ->  | E30: =IF(Data!J$23="",NA(),IF(AND($A$3=List!$A$14,Status!$Q$17=1),Data!J$23,IF(AND($A$3=List!$A$15,Status!$R$17=1),Data!J$23,NA()))) ->  | F30: =IF(Data!K$23="",NA(),IF(AND($A$3=List!$A$14,Status!$Q$17=1),Data!K$23,IF(AND($A$3=List!$A$15,Status!$R$17=1),Data!K$23,NA()))) ->  | G30: =IF(Data!L$23="",NA(),IF(AND($A$3=List!$A$14,Status!$Q$17=1),Data!L$23,IF(AND($A$3=List!$A$15,Status!$R$17=1),Data!L$23,NA()))) ->  | H30: =IF(Data!M$23="",NA(),IF(AND($A$3=List!$A$14,Status!$Q$17=1),Data!M$23,IF(AND($A$3=List!$A$15,Status!$R$17=1),Data!M$23,NA()))) ->  | I30: =IF(Data!N$23="",NA(),IF(AND($A$3=List!$A$14,Status!$Q$17=1),Data!N$23,IF(AND($A$3=List!$A$15,Status!$R$17=1),Data!N$23,NA()))) ->  | J30: =IF(Data!O$23="",NA(),IF(AND($A$3=List!$A$14,Status!$Q$17=1),Data!O$23,IF(AND($A$3=List!$A$15,Status!$R$17=1),Data!O$23,NA()))) ->  | K30: =IF(Data!P$23="",NA(),IF(AND($A$3=List!$A$14,Status!$Q$17=1),Data!P$23,IF(AND($A$3=List!$A$15,Status!$R$17=1),Data!P$23,NA()))) ->  | L30: =IF(Data!Q$23="",NA(),IF(AND($A$3=List!$A$14,Status!$Q$17=1),Data!Q$23,IF(AND($A$3=List!$A$15,Status!$R$17=1),Data!Q$23,NA()))) ->  | M30: =IF(Data!R$23="",NA(),IF(AND($A$3=List!$A$14,Status!$Q$17=1),Data!R$23,IF(AND($A$3=List!$A$15,Status!$R$17=1),Data!R$23,NA()))) ->  | N30: =IF(Data!S$23="",NA(),IF(AND($A$3=List!$A$14,Status!$Q$17=1),Data!S$23,IF(AND($A$3=List!$A$15,Status!$R$17=1),Data!S$23,NA()))) -> 
A31: =A27 -> FALSE | B31: =B27 -> Meta | C31: =IF(Data!H24="",0,IF($A$31=FALSE,0,Data!H24)) -> 0 | D31: =IF(Data!I24="",NA(),IF($A$31=FALSE,NA(),Data!I24)) ->  | E31: =IF(Data!J24="",NA(),IF($A$31=FALSE,NA(),Data!J24)) ->  | F31: =IF(Data!K24="",NA(),IF($A$31=FALSE,NA(),Data!K24)) ->  | G31: =IF(Data!L24="",NA(),IF($A$31=FALSE,NA(),Data!L24)) ->  | H31: =IF(Data!M24="",NA(),IF($A$31=FALSE,NA(),Data!M24)) ->  | I31: =IF(Data!N24="",NA(),IF($A$31=FALSE,NA(),Data!N24)) ->  | J31: =IF(Data!O24="",NA(),IF($A$31=FALSE,NA(),Data!O24)) ->  | K31: =IF(Data!P24="",NA(),IF($A$31=FALSE,NA(),Data!P24)) ->  | L31: =IF(Data!Q24="",NA(),IF($A$31=FALSE,NA(),Data!Q24)) ->  | M31: =IF(Data!R24="",NA(),IF($A$31=FALSE,NA(),Data!R24)) ->  | N31: =IF(Data!S24="",NA(),IF($A$31=FALSE,NA(),Data!S24)) -> 
B32: Red | C32: =IF(Data!H$26="",0,IF(AND($A$3=List!$A$14,Status!$Q$19=-1),Data!H$26,IF(AND($A$3=List!$A$15,Status!$R$19=-1),Data!H$26,0))) -> 0 | D32: =IF(Data!I$26="",NA(),IF(AND($A$3=List!$A$14,Status!$Q$19=-1),Data!I$26,IF(AND($A$3=List!$A$15,Status!$R$19=-1),Data!I$26,NA()))) ->  | E32: =IF(Data!J$26="",NA(),IF(AND($A$3=List!$A$14,Status!$Q$19=-1),Data!J$26,IF(AND($A$3=List!$A$15,Status!$R$19=-1),Data!J$26,NA()))) ->  | F32: =IF(Data!K$26="",NA(),IF(AND($A$3=List!$A$14,Status!$Q$19=-1),Data!K$26,IF(AND($A$3=List!$A$15,Status!$R$19=-1),Data!K$26,NA()))) ->  | G32: =IF(Data!L$26="",NA(),IF(AND($A$3=List!$A$14,Status!$Q$19=-1),Data!L$26,IF(AND($A$3=List!$A$15,Status!$R$19=-1),Data!L$26,NA()))) ->  | H32: =IF(Data!M$26="",NA(),IF(AND($A$3=List!$A$14,Status!$Q$19=-1),Data!M$26,IF(AND($A$3=List!$A$15,Status!$R$19=-1),Data!M$26,NA()))) ->  | I32: =IF(Data!N$26="",NA(),IF(AND($A$3=List!$A$14,Status!$Q$19=-1),Data!N$26,IF(AND($A$3=List!$A$15,Status!$R$19=-1),Data!N$26,NA()))) ->  | J32: =IF(Data!O$26="",NA(),IF(AND($A$3=List!$A$14,Status!$Q$19=-1),Data!O$26,IF(AND($A$3=List!$A$15,Status!$R$19=-1),Data!O$26,NA()))) ->  | K32: =IF(Data!P$26="",NA(),IF(AND($A$3=List!$A$14,Status!$Q$19=-1),Data!P$26,IF(AND($A$3=List!$A$15,Status!$R$19=-1),Data!P$26,NA()))) ->  | L32: =IF(Data!Q$26="",NA(),IF(AND($A$3=List!$A$14,Status!$Q$19=-1),Data!Q$26,IF(AND($A$3=List!$A$15,Status!$R$19=-1),Data!Q$26,NA()))) ->  | M32: =IF(Data!R$26="",NA(),IF(AND($A$3=List!$A$14,Status!$Q$19=-1),Data!R$26,IF(AND($A$3=List!$A$15,Status!$R$19=-1),Data!R$26,NA()))) ->  | N32: =IF(Data!S$26="",NA(),IF(AND($A$3=List!$A$14,Status!$Q$19=-1),Data!S$26,IF(AND($A$3=List!$A$15,Status!$R$19=-1),Data!S$26,NA()))) -> 
B33: Yellow | C33: =IF(Data!H$26="",0,IF(AND($A$3=List!$A$14,Status!$Q$19=0),Data!H$26,IF(AND($A$3=List!$A$15,Status!$R$19=0),Data!H$26,0))) -> 15000 | D33: =IF(Data!I$26="",NA(),IF(AND($A$3=List!$A$14,Status!$Q$19=0),Data!I$26,IF(AND($A$3=List!$A$15,Status!$R$19=0),Data!I$26,NA()))) -> 15348 | E33: =IF(Data!J$26="",NA(),IF(AND($A$3=List!$A$14,Status!$Q$19=0),Data!J$26,IF(AND($A$3=List!$A$15,Status!$R$19=0),Data!J$26,NA()))) ->  | F33: =IF(Data!K$26="",NA(),IF(AND($A$3=List!$A$14,Status!$Q$19=0),Data!K$26,IF(AND($A$3=List!$A$15,Status!$R$19=0),Data!K$26,NA()))) ->  | G33: =IF(Data!L$26="",NA(),IF(AND($A$3=List!$A$14,Status!$Q$19=0),Data!L$26,IF(AND($A$3=List!$A$15,Status!$R$19=0),Data!L$26,NA()))) ->  | H33: =IF(Data!M$26="",NA(),IF(AND($A$3=List!$A$14,Status!$Q$19=0),Data!M$26,IF(AND($A$3=List!$A$15,Status!$R$19=0),Data!M$26,NA()))) ->  | I33: =IF(Data!N$26="",NA(),IF(AND($A$3=List!$A$14,Status!$Q$19=0),Data!N$26,IF(AND($A$3=List!$A$15,Status!$R$19=0),Data!N$26,NA()))) ->  | J33: =IF(Data!O$26="",NA(),IF(AND($A$3=List!$A$14,Status!$Q$19=0),Data!O$26,IF(AND($A$3=List!$A$15,Status!$R$19=0),Data!O$26,NA()))) ->  | K33: =IF(Data!P$26="",NA(),IF(AND($A$3=List!$A$14,Status!$Q$19=0),Data!P$26,IF(AND($A$3=List!$A$15,Status!$R$19=0),Data!P$26,NA()))) ->  | L33: =IF(Data!Q$26="",NA(),IF(AND($A$3=List!$A$14,Status!$Q$19=0),Data!Q$26,IF(AND($A$3=List!$A$15,Status!$R$19=0),Data!Q$26,NA()))) ->  | M33: =IF(Data!R$26="",NA(),IF(AND($A$3=List!$A$14,Status!$Q$19=0),Data!R$26,IF(AND($A$3=List!$A$15,Status!$R$19=0),Data!R$26,NA()))) ->  | N33: =IF(Data!S$26="",NA(),IF(AND($A$3=List!$A$14,Status!$Q$19=0),Data!S$26,IF(AND($A$3=List!$A$15,Status!$R$19=0),Data!S$26,NA()))) -> 
B34: Green | C34: =IF(Data!H$26="",0,IF(AND($A$3=List!$A$14,Status!$Q$19=1),Data!H$26,IF(AND($A$3=List!$A$15,Status!$R$19=1),Data!H$26,0))) -> 0 | D34: =IF(Data!I$26="",NA(),IF(AND($A$3=List!$A$14,Status!$Q$19=1),Data!I$26,IF(AND($A$3=List!$A$15,Status!$R$19=1),Data!I$26,NA()))) ->  | E34: =IF(Data!J$26="",NA(),IF(AND($A$3=List!$A$14,Status!$Q$19=1),Data!J$26,IF(AND($A$3=List!$A$15,Status!$R$19=1),Data!J$26,NA()))) ->  | F34: =IF(Data!K$26="",NA(),IF(AND($A$3=List!$A$14,Status!$Q$19=1),Data!K$26,IF(AND($A$3=List!$A$15,Status!$R$19=1),Data!K$26,NA()))) ->  | G34: =IF(Data!L$26="",NA(),IF(AND($A$3=List!$A$14,Status!$Q$19=1),Data!L$26,IF(AND($A$3=List!$A$15,Status!$R$19=1),Data!L$26,NA()))) ->  | H34: =IF(Data!M$26="",NA(),IF(AND($A$3=List!$A$14,Status!$Q$19=1),Data!M$26,IF(AND($A$3=List!$A$15,Status!$R$19=1),Data!M$26,NA()))) ->  | I34: =IF(Data!N$26="",NA(),IF(AND($A$3=List!$A$14,Status!$Q$19=1),Data!N$26,IF(AND($A$3=List!$A$15,Status!$R$19=1),Data!N$26,NA()))) ->  | J34: =IF(Data!O$26="",NA(),IF(AND($A$3=List!$A$14,Status!$Q$19=1),Data!O$26,IF(AND($A$3=List!$A$15,Status!$R$19=1),Data!O$26,NA()))) ->  | K34: =IF(Data!P$26="",NA(),IF(AND($A$3=List!$A$14,Status!$Q$19=1),Data!P$26,IF(AND($A$3=List!$A$15,Status!$R$19=1),Data!P$26,NA()))) ->  | L34: =IF(Data!Q$26="",NA(),IF(AND($A$3=List!$A$14,Status!$Q$19=1),Data!Q$26,IF(AND($A$3=List!$A$15,Status!$R$19=1),Data!Q$26,NA()))) ->  | M34: =IF(Data!R$26="",NA(),IF(AND($A$3=List!$A$14,Status!$Q$19=1),Data!R$26,IF(AND($A$3=List!$A$15,Status!$R$19=1),Data!R$26,NA()))) ->  | N34: =IF(Data!S$26="",NA(),IF(AND($A$3=List!$A$14,Status!$Q$19=1),Data!S$26,IF(AND($A$3=List!$A$15,Status!$R$19=1),Data!S$26,NA()))) -> 
A35: =A31 -> FALSE | B35: =B31 -> Meta | C35: =IF(Data!H27="",0,IF($A$35=FALSE,0,Data!H27)) -> 0 | D35: =IF(Data!I27="",NA(),IF($A$35=FALSE,NA(),Data!I27)) ->  | E35: =IF(Data!J27="",NA(),IF($A$35=FALSE,NA(),Data!J27)) ->  | F35: =IF(Data!K27="",NA(),IF($A$35=FALSE,NA(),Data!K27)) ->  | G35: =IF(Data!L27="",NA(),IF($A$35=FALSE,NA(),Data!L27)) ->  | H35: =IF(Data!M27="",NA(),IF($A$35=FALSE,NA(),Data!M27)) ->  | I35: =IF(Data!N27="",NA(),IF($A$35=FALSE,NA(),Data!N27)) ->  | J35: =IF(Data!O27="",NA(),IF($A$35=FALSE,NA(),Data!O27)) ->  | K35: =IF(Data!P27="",NA(),IF($A$35=FALSE,NA(),Data!P27)) ->  | L35: =IF(Data!Q27="",NA(),IF($A$35=FALSE,NA(),Data!Q27)) ->  | M35: =IF(Data!R27="",NA(),IF($A$35=FALSE,NA(),Data!R27)) ->  | N35: =IF(Data!S27="",NA(),IF($A$35=FALSE,NA(),Data!S27)) -> 
B36: Red | C36: =IF(Data!H$29="",0,IF(AND($A$3=List!$A$14,Status!$Q$21=-1),Data!H$29,IF(AND($A$3=List!$A$15,Status!$R$21=-1),Data!H$29,0))) -> 0 | D36: =IF(Data!I$29="",NA(),IF(AND($A$3=List!$A$14,Status!$Q$21=-1),Data!I$29,IF(AND($A$3=List!$A$15,Status!$R$21=-1),Data!I$29,NA()))) ->  | E36: =IF(Data!J$29="",NA(),IF(AND($A$3=List!$A$14,Status!$Q$21=-1),Data!J$29,IF(AND($A$3=List!$A$15,Status!$R$21=-1),Data!J$29,NA()))) ->  | F36: =IF(Data!K$29="",NA(),IF(AND($A$3=List!$A$14,Status!$Q$21=-1),Data!K$29,IF(AND($A$3=List!$A$15,Status!$R$21=-1),Data!K$29,NA()))) ->  | G36: =IF(Data!L$29="",NA(),IF(AND($A$3=List!$A$14,Status!$Q$21=-1),Data!L$29,IF(AND($A$3=List!$A$15,Status!$R$21=-1),Data!L$29,NA()))) ->  | H36: =IF(Data!M$29="",NA(),IF(AND($A$3=List!$A$14,Status!$Q$21=-1),Data!M$29,IF(AND($A$3=List!$A$15,Status!$R$21=-1),Data!M$29,NA()))) ->  | I36: =IF(Data!N$29="",NA(),IF(AND($A$3=List!$A$14,Status!$Q$21=-1),Data!N$29,IF(AND($A$3=List!$A$15,Status!$R$21=-1),Data!N$29,NA()))) ->  | J36: =IF(Data!O$29="",NA(),IF(AND($A$3=List!$A$14,Status!$Q$21=-1),Data!O$29,IF(AND($A$3=List!$A$15,Status!$R$21=-1),Data!O$29,NA()))) ->  | K36: =IF(Data!P$29="",NA(),IF(AND($A$3=List!$A$14,Status!$Q$21=-1),Data!P$29,IF(AND($A$3=List!$A$15,Status!$R$21=-1),Data!P$29,NA()))) ->  | L36: =IF(Data!Q$29="",NA(),IF(AND($A$3=List!$A$14,Status!$Q$21=-1),Data!Q$29,IF(AND($A$3=List!$A$15,Status!$R$21=-1),Data!Q$29,NA()))) ->  | M36: =IF(Data!R$29="",NA(),IF(AND($A$3=List!$A$14,Status!$Q$21=-1),Data!R$29,IF(AND($A$3=List!$A$15,Status!$R$21=-1),Data!R$29,NA()))) ->  | N36: =IF(Data!S$29="",NA(),IF(AND($A$3=List!$A$14,Status!$Q$21=-1),Data!S$29,IF(AND($A$3=List!$A$15,Status!$R$21=-1),Data!S$29,NA()))) -> 
B37: Yellow | C37: =IF(Data!H$29="",0,IF(AND($A$3=List!$A$14,Status!$Q$21=0),Data!H$29,IF(AND($A$3=List!$A$15,Status!$R$21=0),Data!H$29,0))) -> 0 | D37: =IF(Data!I$29="",NA(),IF(AND($A$3=List!$A$14,Status!$Q$21=0),Data!I$29,IF(AND($A$3=List!$A$15,Status!$R$21=0),Data!I$29,NA()))) ->  | E37: =IF(Data!J$29="",NA(),IF(AND($A$3=List!$A$14,Status!$Q$21=0),Data!J$29,IF(AND($A$3=List!$A$15,Status!$R$21=0),Data!J$29,NA()))) ->  | F37: =IF(Data!K$29="",NA(),IF(AND($A$3=List!$A$14,Status!$Q$21=0),Data!K$29,IF(AND($A$3=List!$A$15,Status!$R$21=0),Data!K$29,NA()))) ->  | G37: =IF(Data!L$29="",NA(),IF(AND($A$3=List!$A$14,Status!$Q$21=0),Data!L$29,IF(AND($A$3=List!$A$15,Status!$R$21=0),Data!L$29,NA()))) ->  | H37: =IF(Data!M$29="",NA(),IF(AND($A$3=List!$A$14,Status!$Q$21=0),Data!M$29,IF(AND($A$3=List!$A$15,Status!$R$21=0),Data!M$29,NA()))) ->  | I37: =IF(Data!N$29="",NA(),IF(AND($A$3=List!$A$14,Status!$Q$21=0),Data!N$29,IF(AND($A$3=List!$A$15,Status!$R$21=0),Data!N$29,NA()))) ->  | J37: =IF(Data!O$29="",NA(),IF(AND($A$3=List!$A$14,Status!$Q$21=0),Data!O$29,IF(AND($A$3=List!$A$15,Status!$R$21=0),Data!O$29,NA()))) ->  | K37: =IF(Data!P$29="",NA(),IF(AND($A$3=List!$A$14,Status!$Q$21=0),Data!P$29,IF(AND($A$3=List!$A$15,Status!$R$21=0),Data!P$29,NA()))) ->  | L37: =IF(Data!Q$29="",NA(),IF(AND($A$3=List!$A$14,Status!$Q$21=0),Data!Q$29,IF(AND($A$3=List!$A$15,Status!$R$21=0),Data!Q$29,NA()))) ->  | M37: =IF(Data!R$29="",NA(),IF(AND($A$3=List!$A$14,Status!$Q$21=0),Data!R$29,IF(AND($A$3=List!$A$15,Status!$R$21=0),Data!R$29,NA()))) ->  | N37: =IF(Data!S$29="",NA(),IF(AND($A$3=List!$A$14,Status!$Q$21=0),Data!S$29,IF(AND($A$3=List!$A$15,Status!$R$21=0),Data!S$29,NA()))) -> 
B38: Green | C38: =IF(Data!H$29="",0,IF(AND($A$3=List!$A$14,Status!$Q$21=1),Data!H$29,IF(AND($A$3=List!$A$15,Status!$R$21=1),Data!H$29,0))) -> 0 | D38: =IF(Data!I$29="",NA(),IF(AND($A$3=List!$A$14,Status!$Q$21=1),Data!I$29,IF(AND($A$3=List!$A$15,Status!$R$21=1),Data!I$29,NA()))) ->  | E38: =IF(Data!J$29="",NA(),IF(AND($A$3=List!$A$14,Status!$Q$21=1),Data!J$29,IF(AND($A$3=List!$A$15,Status!$R$21=1),Data!J$29,NA()))) ->  | F38: =IF(Data!K$29="",NA(),IF(AND($A$3=List!$A$14,Status!$Q$21=1),Data!K$29,IF(AND($A$3=List!$A$15,Status!$R$21=1),Data!K$29,NA()))) ->  | G38: =IF(Data!L$29="",NA(),IF(AND($A$3=List!$A$14,Status!$Q$21=1),Data!L$29,IF(AND($A$3=List!$A$15,Status!$R$21=1),Data!L$29,NA()))) ->  | H38: =IF(Data!M$29="",NA(),IF(AND($A$3=List!$A$14,Status!$Q$21=1),Data!M$29,IF(AND($A$3=List!$A$15,Status!$R$21=1),Data!M$29,NA()))) ->  | I38: =IF(Data!N$29="",NA(),IF(AND($A$3=List!$A$14,Status!$Q$21=1),Data!N$29,IF(AND($A$3=List!$A$15,Status!$R$21=1),Data!N$29,NA()))) ->  | J38: =IF(Data!O$29="",NA(),IF(AND($A$3=List!$A$14,Status!$Q$21=1),Data!O$29,IF(AND($A$3=List!$A$15,Status!$R$21=1),Data!O$29,NA()))) ->  | K38: =IF(Data!P$29="",NA(),IF(AND($A$3=List!$A$14,Status!$Q$21=1),Data!P$29,IF(AND($A$3=List!$A$15,Status!$R$21=1),Data!P$29,NA()))) ->  | L38: =IF(Data!Q$29="",NA(),IF(AND($A$3=List!$A$14,Status!$Q$21=1),Data!Q$29,IF(AND($A$3=List!$A$15,Status!$R$21=1),Data!Q$29,NA()))) ->  | M38: =IF(Data!R$29="",NA(),IF(AND($A$3=List!$A$14,Status!$Q$21=1),Data!R$29,IF(AND($A$3=List!$A$15,Status!$R$21=1),Data!R$29,NA()))) ->  | N38: =IF(Data!S$29="",NA(),IF(AND($A$3=List!$A$14,Status!$Q$21=1),Data!S$29,IF(AND($A$3=List!$A$15,Status!$R$21=1),Data!S$29,NA()))) -> 
A39: =A35 -> FALSE | B39: =B35 -> Meta | C39: =IF(Data!H30="",0,IF($A$39=FALSE,0,Data!H30)) -> 0 | D39: =IF(Data!I30="",NA(),IF($A$39=FALSE,NA(),Data!I30)) ->  | E39: =IF(Data!J30="",NA(),IF($A$39=FALSE,NA(),Data!J30)) ->  | F39: =IF(Data!K30="",NA(),IF($A$39=FALSE,NA(),Data!K30)) ->  | G39: =IF(Data!L30="",NA(),IF($A$39=FALSE,NA(),Data!L30)) ->  | H39: =IF(Data!M30="",NA(),IF($A$39=FALSE,NA(),Data!M30)) ->  | I39: =IF(Data!N30="",NA(),IF($A$39=FALSE,NA(),Data!N30)) ->  | J39: =IF(Data!O30="",NA(),IF($A$39=FALSE,NA(),Data!O30)) ->  | K39: =IF(Data!P30="",NA(),IF($A$39=FALSE,NA(),Data!P30)) ->  | L39: =IF(Data!Q30="",NA(),IF($A$39=FALSE,NA(),Data!Q30)) ->  | M39: =IF(Data!R30="",NA(),IF($A$39=FALSE,NA(),Data!R30)) ->  | N39: =IF(Data!S30="",NA(),IF($A$39=FALSE,NA(),Data!S30)) -> 
B40: Red | C40: =IF(Data!H$32="",0,IF(AND($A$3=List!$A$14,Status!$Q$23=-1),Data!H$32,IF(AND($A$3=List!$A$15,Status!$R$23=-1),Data!H$32,0))) -> 0 | D40: =IF(Data!I$32="",NA(),IF(AND($A$3=List!$A$14,Status!$Q$23=-1),Data!I$32,IF(AND($A$3=List!$A$15,Status!$R$23=-1),Data!I$32,NA()))) ->  | E40: =IF(Data!J$32="",NA(),IF(AND($A$3=List!$A$14,Status!$Q$23=-1),Data!J$32,IF(AND($A$3=List!$A$15,Status!$R$23=-1),Data!J$32,NA()))) ->  | F40: =IF(Data!K$32="",NA(),IF(AND($A$3=List!$A$14,Status!$Q$23=-1),Data!K$32,IF(AND($A$3=List!$A$15,Status!$R$23=-1),Data!K$32,NA()))) ->  | G40: =IF(Data!L$32="",NA(),IF(AND($A$3=List!$A$14,Status!$Q$23=-1),Data!L$32,IF(AND($A$3=List!$A$15,Status!$R$23=-1),Data!L$32,NA()))) ->  | H40: =IF(Data!M$32="",NA(),IF(AND($A$3=List!$A$14,Status!$Q$23=-1),Data!M$32,IF(AND($A$3=List!$A$15,Status!$R$23=-1),Data!M$32,NA()))) ->  | I40: =IF(Data!N$32="",NA(),IF(AND($A$3=List!$A$14,Status!$Q$23=-1),Data!N$32,IF(AND($A$3=List!$A$15,Status!$R$23=-1),Data!N$32,NA()))) ->  | J40: =IF(Data!O$32="",NA(),IF(AND($A$3=List!$A$14,Status!$Q$23=-1),Data!O$32,IF(AND($A$3=List!$A$15,Status!$R$23=-1),Data!O$32,NA()))) ->  | K40: =IF(Data!P$32="",NA(),IF(AND($A$3=List!$A$14,Status!$Q$23=-1),Data!P$32,IF(AND($A$3=List!$A$15,Status!$R$23=-1),Data!P$32,NA()))) ->  | L40: =IF(Data!Q$32="",NA(),IF(AND($A$3=List!$A$14,Status!$Q$23=-1),Data!Q$32,IF(AND($A$3=List!$A$15,Status!$R$23=-1),Data!Q$32,NA()))) ->  | M40: =IF(Data!R$32="",NA(),IF(AND($A$3=List!$A$14,Status!$Q$23=-1),Data!R$32,IF(AND($A$3=List!$A$15,Status!$R$23=-1),Data!R$32,NA()))) ->  | N40: =IF(Data!S$32="",NA(),IF(AND($A$3=List!$A$14,Status!$Q$23=-1),Data!S$32,IF(AND($A$3=List!$A$15,Status!$R$23=-1),Data!S$32,NA()))) -> 
B41: Yellow | C41: =IF(Data!H$32="",0,IF(AND($A$3=List!$A$14,Status!$Q$23=0),Data!H$32,IF(AND($A$3=List!$A$15,Status!$R$23=0),Data!H$32,0))) -> 0 | D41: =IF(Data!I$32="",NA(),IF(AND($A$3=List!$A$14,Status!$Q$23=0),Data!I$32,IF(AND($A$3=List!$A$15,Status!$R$23=0),Data!I$32,NA()))) ->  | E41: =IF(Data!J$32="",NA(),IF(AND($A$3=List!$A$14,Status!$Q$23=0),Data!J$32,IF(AND($A$3=List!$A$15,Status!$R$23=0),Data!J$32,NA()))) ->  | F41: =IF(Data!K$32="",NA(),IF(AND($A$3=List!$A$14,Status!$Q$23=0),Data!K$32,IF(AND($A$3=List!$A$15,Status!$R$23=0),Data!K$32,NA()))) ->  | G41: =IF(Data!L$32="",NA(),IF(AND($A$3=List!$A$14,Status!$Q$23=0),Data!L$32,IF(AND($A$3=List!$A$15,Status!$R$23=0),Data!L$32,NA()))) ->  | H41: =IF(Data!M$32="",NA(),IF(AND($A$3=List!$A$14,Status!$Q$23=0),Data!M$32,IF(AND($A$3=List!$A$15,Status!$R$23=0),Data!M$32,NA()))) ->  | I41: =IF(Data!N$32="",NA(),IF(AND($A$3=List!$A$14,Status!$Q$23=0),Data!N$32,IF(AND($A$3=List!$A$15,Status!$R$23=0),Data!N$32,NA()))) ->  | J41: =IF(Data!O$32="",NA(),IF(AND($A$3=List!$A$14,Status!$Q$23=0),Data!O$32,IF(AND($A$3=List!$A$15,Status!$R$23=0),Data!O$32,NA()))) ->  | K41: =IF(Data!P$32="",NA(),IF(AND($A$3=List!$A$14,Status!$Q$23=0),Data!P$32,IF(AND($A$3=List!$A$15,Status!$R$23=0),Data!P$32,NA()))) ->  | L41: =IF(Data!Q$32="",NA(),IF(AND($A$3=List!$A$14,Status!$Q$23=0),Data!Q$32,IF(AND($A$3=List!$A$15,Status!$R$23=0),Data!Q$32,NA()))) ->  | M41: =IF(Data!R$32="",NA(),IF(AND($A$3=List!$A$14,Status!$Q$23=0),Data!R$32,IF(AND($A$3=List!$A$15,Status!$R$23=0),Data!R$32,NA()))) ->  | N41: =IF(Data!S$32="",NA(),IF(AND($A$3=List!$A$14,Status!$Q$23=0),Data!S$32,IF(AND($A$3=List!$A$15,Status!$R$23=0),Data!S$32,NA()))) -> 
B42: Green | C42: =IF(Data!H$32="",0,IF(AND($A$3=List!$A$14,Status!$Q$23=1),Data!H$32,IF(AND($A$3=List!$A$15,Status!$R$23=1),Data!H$32,0))) -> 0 | D42: =IF(Data!I$32="",NA(),IF(AND($A$3=List!$A$14,Status!$Q$23=1),Data!I$32,IF(AND($A$3=List!$A$15,Status!$R$23=1),Data!I$32,NA()))) ->  | E42: =IF(Data!J$32="",NA(),IF(AND($A$3=List!$A$14,Status!$Q$23=1),Data!J$32,IF(AND($A$3=List!$A$15,Status!$R$23=1),Data!J$32,NA()))) ->  | F42: =IF(Data!K$32="",NA(),IF(AND($A$3=List!$A$14,Status!$Q$23=1),Data!K$32,IF(AND($A$3=List!$A$15,Status!$R$23=1),Data!K$32,NA()))) ->  | G42: =IF(Data!L$32="",NA(),IF(AND($A$3=List!$A$14,Status!$Q$23=1),Data!L$32,IF(AND($A$3=List!$A$15,Status!$R$23=1),Data!L$32,NA()))) ->  | H42: =IF(Data!M$32="",NA(),IF(AND($A$3=List!$A$14,Status!$Q$23=1),Data!M$32,IF(AND($A$3=List!$A$15,Status!$R$23=1),Data!M$32,NA()))) ->  | I42: =IF(Data!N$32="",NA(),IF(AND($A$3=List!$A$14,Status!$Q$23=1),Data!N$32,IF(AND($A$3=List!$A$15,Status!$R$23=1),Data!N$32,NA()))) ->  | J42: =IF(Data!O$32="",NA(),IF(AND($A$3=List!$A$14,Status!$Q$23=1),Data!O$32,IF(AND($A$3=List!$A$15,Status!$R$23=1),Data!O$32,NA()))) ->  | K42: =IF(Data!P$32="",NA(),IF(AND($A$3=List!$A$14,Status!$Q$23=1),Data!P$32,IF(AND($A$3=List!$A$15,Status!$R$23=1),Data!P$32,NA()))) ->  | L42: =IF(Data!Q$32="",NA(),IF(AND($A$3=List!$A$14,Status!$Q$23=1),Data!Q$32,IF(AND($A$3=List!$A$15,Status!$R$23=1),Data!Q$32,NA()))) ->  | M42: =IF(Data!R$32="",NA(),IF(AND($A$3=List!$A$14,Status!$Q$23=1),Data!R$32,IF(AND($A$3=List!$A$15,Status!$R$23=1),Data!R$32,NA()))) ->  | N42: =IF(Data!S$32="",NA(),IF(AND($A$3=List!$A$14,Status!$Q$23=1),Data!S$32,IF(AND($A$3=List!$A$15,Status!$R$23=1),Data!S$32,NA()))) -> 
A43: =A39 -> FALSE | B43: =B39 -> Meta | C43: =IF(Data!H33="",0,IF($A$43=FALSE,0,Data!H33)) -> 0 | D43: =IF(Data!I33="",NA(),IF($A$43=FALSE,NA(),Data!I33)) ->  | E43: =IF(Data!J33="",NA(),IF($A$43=FALSE,NA(),Data!J33)) ->  | F43: =IF(Data!K33="",NA(),IF($A$43=FALSE,NA(),Data!K33)) ->  | G43: =IF(Data!L33="",NA(),IF($A$43=FALSE,NA(),Data!L33)) ->  | H43: =IF(Data!M33="",NA(),IF($A$43=FALSE,NA(),Data!M33)) ->  | I43: =IF(Data!N33="",NA(),IF($A$43=FALSE,NA(),Data!N33)) ->  | J43: =IF(Data!O33="",NA(),IF($A$43=FALSE,NA(),Data!O33)) ->  | K43: =IF(Data!P33="",NA(),IF($A$43=FALSE,NA(),Data!P33)) ->  | L43: =IF(Data!Q33="",NA(),IF($A$43=FALSE,NA(),Data!Q33)) ->  | M43: =IF(Data!R33="",NA(),IF($A$43=FALSE,NA(),Data!R33)) ->  | N43: =IF(Data!S33="",NA(),IF($A$43=FALSE,NA(),Data!S33)) -> 
B44: Red | C44: =IF(Data!H$35="",0,IF(AND($A$3=List!$A$14,Status!$Q$25=-1),Data!H$35,IF(AND($A$3=List!$A$15,Status!$R$25=-1),Data!H$35,0))) -> 0 | D44: =IF(Data!I$35="",NA(),IF(AND($A$3=List!$A$14,Status!$Q$25=-1),Data!I$35,IF(AND($A$3=List!$A$15,Status!$R$25=-1),Data!I$35,NA()))) ->  | E44: =IF(Data!J$35="",NA(),IF(AND($A$3=List!$A$14,Status!$Q$25=-1),Data!J$35,IF(AND($A$3=List!$A$15,Status!$R$25=-1),Data!J$35,NA()))) ->  | F44: =IF(Data!K$35="",NA(),IF(AND($A$3=List!$A$14,Status!$Q$25=-1),Data!K$35,IF(AND($A$3=List!$A$15,Status!$R$25=-1),Data!K$35,NA()))) ->  | G44: =IF(Data!L$35="",NA(),IF(AND($A$3=List!$A$14,Status!$Q$25=-1),Data!L$35,IF(AND($A$3=List!$A$15,Status!$R$25=-1),Data!L$35,NA()))) ->  | H44: =IF(Data!M$35="",NA(),IF(AND($A$3=List!$A$14,Status!$Q$25=-1),Data!M$35,IF(AND($A$3=List!$A$15,Status!$R$25=-1),Data!M$35,NA()))) ->  | I44: =IF(Data!N$35="",NA(),IF(AND($A$3=List!$A$14,Status!$Q$25=-1),Data!N$35,IF(AND($A$3=List!$A$15,Status!$R$25=-1),Data!N$35,NA()))) ->  | J44: =IF(Data!O$35="",NA(),IF(AND($A$3=List!$A$14,Status!$Q$25=-1),Data!O$35,IF(AND($A$3=List!$A$15,Status!$R$25=-1),Data!O$35,NA()))) ->  | K44: =IF(Data!P$35="",NA(),IF(AND($A$3=List!$A$14,Status!$Q$25=-1),Data!P$35,IF(AND($A$3=List!$A$15,Status!$R$25=-1),Data!P$35,NA()))) ->  | L44: =IF(Data!Q$35="",NA(),IF(AND($A$3=List!$A$14,Status!$Q$25=-1),Data!Q$35,IF(AND($A$3=List!$A$15,Status!$R$25=-1),Data!Q$35,NA()))) ->  | M44: =IF(Data!R$35="",NA(),IF(AND($A$3=List!$A$14,Status!$Q$25=-1),Data!R$35,IF(AND($A$3=List!$A$15,Status!$R$25=-1),Data!R$35,NA()))) ->  | N44: =IF(Data!S$35="",NA(),IF(AND($A$3=List!$A$14,Status!$Q$25=-1),Data!S$35,IF(AND($A$3=List!$A$15,Status!$R$25=-1),Data!S$35,NA()))) -> 
B45: Yellow | C45: =IF(Data!H$35="",0,IF(AND($A$3=List!$A$14,Status!$Q$25=0),Data!H$35,IF(AND($A$3=List!$A$15,Status!$R$25=0),Data!H$35,0))) -> 0 | D45: =IF(Data!I$35="",NA(),IF(AND($A$3=List!$A$14,Status!$Q$25=0),Data!I$35,IF(AND($A$3=List!$A$15,Status!$R$25=0),Data!I$35,NA()))) ->  | E45: =IF(Data!J$35="",NA(),IF(AND($A$3=List!$A$14,Status!$Q$25=0),Data!J$35,IF(AND($A$3=List!$A$15,Status!$R$25=0),Data!J$35,NA()))) ->  | F45: =IF(Data!K$35="",NA(),IF(AND($A$3=List!$A$14,Status!$Q$25=0),Data!K$35,IF(AND($A$3=List!$A$15,Status!$R$25=0),Data!K$35,NA()))) ->  | G45: =IF(Data!L$35="",NA(),IF(AND($A$3=List!$A$14,Status!$Q$25=0),Data!L$35,IF(AND($A$3=List!$A$15,Status!$R$25=0),Data!L$35,NA()))) ->  | H45: =IF(Data!M$35="",NA(),IF(AND($A$3=List!$A$14,Status!$Q$25=0),Data!M$35,IF(AND($A$3=List!$A$15,Status!$R$25=0),Data!M$35,NA()))) ->  | I45: =IF(Data!N$35="",NA(),IF(AND($A$3=List!$A$14,Status!$Q$25=0),Data!N$35,IF(AND($A$3=List!$A$15,Status!$R$25=0),Data!N$35,NA()))) ->  | J45: =IF(Data!O$35="",NA(),IF(AND($A$3=List!$A$14,Status!$Q$25=0),Data!O$35,IF(AND($A$3=List!$A$15,Status!$R$25=0),Data!O$35,NA()))) ->  | K45: =IF(Data!P$35="",NA(),IF(AND($A$3=List!$A$14,Status!$Q$25=0),Data!P$35,IF(AND($A$3=List!$A$15,Status!$R$25=0),Data!P$35,NA()))) ->  | L45: =IF(Data!Q$35="",NA(),IF(AND($A$3=List!$A$14,Status!$Q$25=0),Data!Q$35,IF(AND($A$3=List!$A$15,Status!$R$25=0),Data!Q$35,NA()))) ->  | M45: =IF(Data!R$35="",NA(),IF(AND($A$3=List!$A$14,Status!$Q$25=0),Data!R$35,IF(AND($A$3=List!$A$15,Status!$R$25=0),Data!R$35,NA()))) ->  | N45: =IF(Data!S$35="",NA(),IF(AND($A$3=List!$A$14,Status!$Q$25=0),Data!S$35,IF(AND($A$3=List!$A$15,Status!$R$25=0),Data!S$35,NA()))) -> 
B46: Green | C46: =IF(Data!H$35="",0,IF(AND($A$3=List!$A$14,Status!$Q$25=1),Data!H$35,IF(AND($A$3=List!$A$15,Status!$R$25=1),Data!H$35,0))) -> 0 | D46: =IF(Data!I$35="",NA(),IF(AND($A$3=List!$A$14,Status!$Q$25=1),Data!I$35,IF(AND($A$3=List!$A$15,Status!$R$25=1),Data!I$35,NA()))) ->  | E46: =IF(Data!J$35="",NA(),IF(AND($A$3=List!$A$14,Status!$Q$25=1),Data!J$35,IF(AND($A$3=List!$A$15,Status!$R$25=1),Data!J$35,NA()))) ->  | F46: =IF(Data!K$35="",NA(),IF(AND($A$3=List!$A$14,Status!$Q$25=1),Data!K$35,IF(AND($A$3=List!$A$15,Status!$R$25=1),Data!K$35,NA()))) ->  | G46: =IF(Data!L$35="",NA(),IF(AND($A$3=List!$A$14,Status!$Q$25=1),Data!L$35,IF(AND($A$3=List!$A$15,Status!$R$25=1),Data!L$35,NA()))) ->  | H46: =IF(Data!M$35="",NA(),IF(AND($A$3=List!$A$14,Status!$Q$25=1),Data!M$35,IF(AND($A$3=List!$A$15,Status!$R$25=1),Data!M$35,NA()))) ->  | I46: =IF(Data!N$35="",NA(),IF(AND($A$3=List!$A$14,Status!$Q$25=1),Data!N$35,IF(AND($A$3=List!$A$15,Status!$R$25=1),Data!N$35,NA()))) ->  | J46: =IF(Data!O$35="",NA(),IF(AND($A$3=List!$A$14,Status!$Q$25=1),Data!O$35,IF(AND($A$3=List!$A$15,Status!$R$25=1),Data!O$35,NA()))) ->  | K46: =IF(Data!P$35="",NA(),IF(AND($A$3=List!$A$14,Status!$Q$25=1),Data!P$35,IF(AND($A$3=List!$A$15,Status!$R$25=1),Data!P$35,NA()))) ->  | L46: =IF(Data!Q$35="",NA(),IF(AND($A$3=List!$A$14,Status!$Q$25=1),Data!Q$35,IF(AND($A$3=List!$A$15,Status!$R$25=1),Data!Q$35,NA()))) ->  | M46: =IF(Data!R$35="",NA(),IF(AND($A$3=List!$A$14,Status!$Q$25=1),Data!R$35,IF(AND($A$3=List!$A$15,Status!$R$25=1),Data!R$35,NA()))) ->  | N46: =IF(Data!S$35="",NA(),IF(AND($A$3=List!$A$14,Status!$Q$25=1),Data!S$35,IF(AND($A$3=List!$A$15,Status!$R$25=1),Data!S$35,NA()))) -> 
A47: =A43 -> FALSE | B47: =B43 -> Meta | C47: =IF(Data!H36="",0,IF($A$47=FALSE,0,Data!H36)) -> 0 | D47: =IF(Data!I36="",NA(),IF($A$47=FALSE,NA(),Data!I36)) ->  | E47: =IF(Data!J36="",NA(),IF($A$47=FALSE,NA(),Data!J36)) ->  | F47: =IF(Data!K36="",NA(),IF($A$47=FALSE,NA(),Data!K36)) ->  | G47: =IF(Data!L36="",NA(),IF($A$47=FALSE,NA(),Data!L36)) ->  | H47: =IF(Data!M36="",NA(),IF($A$47=FALSE,NA(),Data!M36)) ->  | I47: =IF(Data!N36="",NA(),IF($A$47=FALSE,NA(),Data!N36)) ->  | J47: =IF(Data!O36="",NA(),IF($A$47=FALSE,NA(),Data!O36)) ->  | K47: =IF(Data!P36="",NA(),IF($A$47=FALSE,NA(),Data!P36)) ->  | L47: =IF(Data!Q36="",NA(),IF($A$47=FALSE,NA(),Data!Q36)) ->  | M47: =IF(Data!R36="",NA(),IF($A$47=FALSE,NA(),Data!R36)) ->  | N47: =IF(Data!S36="",NA(),IF($A$47=FALSE,NA(),Data!S36)) -> 
B48: Red | C48: =IF(Data!H$38="",0,IF(AND($A$3=List!$A$14,Status!$Q$27=-1),Data!H$38,IF(AND($A$3=List!$A$15,Status!$R$27=-1),Data!H$38,0))) -> 0 | D48: =IF(Data!I$38="",NA(),IF(AND($A$3=List!$A$14,Status!$Q$27=-1),Data!I$38,IF(AND($A$3=List!$A$15,Status!$R$27=-1),Data!I$38,NA()))) ->  | E48: =IF(Data!J$38="",NA(),IF(AND($A$3=List!$A$14,Status!$Q$27=-1),Data!J$38,IF(AND($A$3=List!$A$15,Status!$R$27=-1),Data!J$38,NA()))) ->  | F48: =IF(Data!K$38="",NA(),IF(AND($A$3=List!$A$14,Status!$Q$27=-1),Data!K$38,IF(AND($A$3=List!$A$15,Status!$R$27=-1),Data!K$38,NA()))) ->  | G48: =IF(Data!L$38="",NA(),IF(AND($A$3=List!$A$14,Status!$Q$27=-1),Data!L$38,IF(AND($A$3=List!$A$15,Status!$R$27=-1),Data!L$38,NA()))) ->  | H48: =IF(Data!M$38="",NA(),IF(AND($A$3=List!$A$14,Status!$Q$27=-1),Data!M$38,IF(AND($A$3=List!$A$15,Status!$R$27=-1),Data!M$38,NA()))) ->  | I48: =IF(Data!N$38="",NA(),IF(AND($A$3=List!$A$14,Status!$Q$27=-1),Data!N$38,IF(AND($A$3=List!$A$15,Status!$R$27=-1),Data!N$38,NA()))) ->  | J48: =IF(Data!O$38="",NA(),IF(AND($A$3=List!$A$14,Status!$Q$27=-1),Data!O$38,IF(AND($A$3=List!$A$15,Status!$R$27=-1),Data!O$38,NA()))) ->  | K48: =IF(Data!P$38="",NA(),IF(AND($A$3=List!$A$14,Status!$Q$27=-1),Data!P$38,IF(AND($A$3=List!$A$15,Status!$R$27=-1),Data!P$38,NA()))) ->  | L48: =IF(Data!Q$38="",NA(),IF(AND($A$3=List!$A$14,Status!$Q$27=-1),Data!Q$38,IF(AND($A$3=List!$A$15,Status!$R$27=-1),Data!Q$38,NA()))) ->  | M48: =IF(Data!R$38="",NA(),IF(AND($A$3=List!$A$14,Status!$Q$27=-1),Data!R$38,IF(AND($A$3=List!$A$15,Status!$R$27=-1),Data!R$38,NA()))) ->  | N48: =IF(Data!S$38="",NA(),IF(AND($A$3=List!$A$14,Status!$Q$27=-1),Data!S$38,IF(AND($A$3=List!$A$15,Status!$R$27=-1),Data!S$38,NA()))) -> 
B49: Yellow | C49: =IF(Data!H$38="",0,IF(AND($A$3=List!$A$14,Status!$Q$27=0),Data!H$38,IF(AND($A$3=List!$A$15,Status!$R$27=0),Data!H$38,0))) -> 0 | D49: =IF(Data!I$38="",NA(),IF(AND($A$3=List!$A$14,Status!$Q$27=0),Data!I$38,IF(AND($A$3=List!$A$15,Status!$R$27=0),Data!I$38,NA()))) ->  | E49: =IF(Data!J$38="",NA(),IF(AND($A$3=List!$A$14,Status!$Q$27=0),Data!J$38,IF(AND($A$3=List!$A$15,Status!$R$27=0),Data!J$38,NA()))) ->  | F49: =IF(Data!K$38="",NA(),IF(AND($A$3=List!$A$14,Status!$Q$27=0),Data!K$38,IF(AND($A$3=List!$A$15,Status!$R$27=0),Data!K$38,NA()))) ->  | G49: =IF(Data!L$38="",NA(),IF(AND($A$3=List!$A$14,Status!$Q$27=0),Data!L$38,IF(AND($A$3=List!$A$15,Status!$R$27=0),Data!L$38,NA()))) ->  | H49: =IF(Data!M$38="",NA(),IF(AND($A$3=List!$A$14,Status!$Q$27=0),Data!M$38,IF(AND($A$3=List!$A$15,Status!$R$27=0),Data!M$38,NA()))) ->  | I49: =IF(Data!N$38="",NA(),IF(AND($A$3=List!$A$14,Status!$Q$27=0),Data!N$38,IF(AND($A$3=List!$A$15,Status!$R$27=0),Data!N$38,NA()))) ->  | J49: =IF(Data!O$38="",NA(),IF(AND($A$3=List!$A$14,Status!$Q$27=0),Data!O$38,IF(AND($A$3=List!$A$15,Status!$R$27=0),Data!O$38,NA()))) ->  | K49: =IF(Data!P$38="",NA(),IF(AND($A$3=List!$A$14,Status!$Q$27=0),Data!P$38,IF(AND($A$3=List!$A$15,Status!$R$27=0),Data!P$38,NA()))) ->  | L49: =IF(Data!Q$38="",NA(),IF(AND($A$3=List!$A$14,Status!$Q$27=0),Data!Q$38,IF(AND($A$3=List!$A$15,Status!$R$27=0),Data!Q$38,NA()))) ->  | M49: =IF(Data!R$38="",NA(),IF(AND($A$3=List!$A$14,Status!$Q$27=0),Data!R$38,IF(AND($A$3=List!$A$15,Status!$R$27=0),Data!R$38,NA()))) ->  | N49: =IF(Data!S$38="",NA(),IF(AND($A$3=List!$A$14,Status!$Q$27=0),Data!S$38,IF(AND($A$3=List!$A$15,Status!$R$27=0),Data!S$38,NA()))) -> 
B50: Green | C50: =IF(Data!H$38="",0,IF(AND($A$3=List!$A$14,Status!$Q$27=1),Data!H$38,IF(AND($A$3=List!$A$15,Status!$R$27=1),Data!H$38,0))) -> 0 | D50: =IF(Data!I$38="",NA(),IF(AND($A$3=List!$A$14,Status!$Q$27=1),Data!I$38,IF(AND($A$3=List!$A$15,Status!$R$27=1),Data!I$38,NA()))) ->  | E50: =IF(Data!J$38="",NA(),IF(AND($A$3=List!$A$14,Status!$Q$27=1),Data!J$38,IF(AND($A$3=List!$A$15,Status!$R$27=1),Data!J$38,NA()))) ->  | F50: =IF(Data!K$38="",NA(),IF(AND($A$3=List!$A$14,Status!$Q$27=1),Data!K$38,IF(AND($A$3=List!$A$15,Status!$R$27=1),Data!K$38,NA()))) ->  | G50: =IF(Data!L$38="",NA(),IF(AND($A$3=List!$A$14,Status!$Q$27=1),Data!L$38,IF(AND($A$3=List!$A$15,Status!$R$27=1),Data!L$38,NA()))) ->  | H50: =IF(Data!M$38="",NA(),IF(AND($A$3=List!$A$14,Status!$Q$27=1),Data!M$38,IF(AND($A$3=List!$A$15,Status!$R$27=1),Data!M$38,NA()))) ->  | I50: =IF(Data!N$38="",NA(),IF(AND($A$3=List!$A$14,Status!$Q$27=1),Data!N$38,IF(AND($A$3=List!$A$15,Status!$R$27=1),Data!N$38,NA()))) ->  | J50: =IF(Data!O$38="",NA(),IF(AND($A$3=List!$A$14,Status!$Q$27=1),Data!O$38,IF(AND($A$3=List!$A$15,Status!$R$27=1),Data!O$38,NA()))) ->  | K50: =IF(Data!P$38="",NA(),IF(AND($A$3=List!$A$14,Status!$Q$27=1),Data!P$38,IF(AND($A$3=List!$A$15,Status!$R$27=1),Data!P$38,NA()))) ->  | L50: =IF(Data!Q$38="",NA(),IF(AND($A$3=List!$A$14,Status!$Q$27=1),Data!Q$38,IF(AND($A$3=List!$A$15,Status!$R$27=1),Data!Q$38,NA()))) ->  | M50: =IF(Data!R$38="",NA(),IF(AND($A$3=List!$A$14,Status!$Q$27=1),Data!R$38,IF(AND($A$3=List!$A$15,Status!$R$27=1),Data!R$38,NA()))) ->  | N50: =IF(Data!S$38="",NA(),IF(AND($A$3=List!$A$14,Status!$Q$27=1),Data!S$38,IF(AND($A$3=List!$A$15,Status!$R$27=1),Data!S$38,NA()))) -> 
A51: =A47 -> FALSE | B51: =B47 -> Meta | C51: =IF(Data!H39="",0,IF($A$51=FALSE,0,Data!H39)) -> 0 | D51: =IF(Data!I39="",NA(),IF($A$51=FALSE,NA(),Data!I39)) ->  | E51: =IF(Data!J39="",NA(),IF($A$51=FALSE,NA(),Data!J39)) ->  | F51: =IF(Data!K39="",NA(),IF($A$51=FALSE,NA(),Data!K39)) ->  | G51: =IF(Data!L39="",NA(),IF($A$51=FALSE,NA(),Data!L39)) ->  | H51: =IF(Data!M39="",NA(),IF($A$51=FALSE,NA(),Data!M39)) ->  | I51: =IF(Data!N39="",NA(),IF($A$51=FALSE,NA(),Data!N39)) ->  | J51: =IF(Data!O39="",NA(),IF($A$51=FALSE,NA(),Data!O39)) ->  | K51: =IF(Data!P39="",NA(),IF($A$51=FALSE,NA(),Data!P39)) ->  | L51: =IF(Data!Q39="",NA(),IF($A$51=FALSE,NA(),Data!Q39)) ->  | M51: =IF(Data!R39="",NA(),IF($A$51=FALSE,NA(),Data!R39)) ->  | N51: =IF(Data!S39="",NA(),IF($A$51=FALSE,NA(),Data!S39)) -> 

Sheet Aux 2
A3: =Dashboard!D4 -> TOTAL | B3: =Indicators!C4 -> 0 | C3: =Data!H4 -> ENE | D3: =Data!I4 -> FEB | E3: =Data!J4 -> MAR | F3: =Data!K4 -> ABR | G3: =Data!L4 -> MAY | H3: =Data!M4 -> JUN | I3: =Data!N4 -> JUL | J3: =Data!O4 -> AGO | K3: =Data!P4 -> SEP | L3: =Data!Q4 -> OCT | M3: =Data!R4 -> NOV | N3: =Data!S4 -> DIC
B4: Red | C4: =IF(Status!D$5=-1,Data!H5,NA()) ->  | D4: =IF(Status!E$5=-1,Data!I5,NA()) -> 0.03 | E4: =IF(Status!F$5=-1,Data!J5,NA()) -> 0.13 | F4: =IF(Status!G$5=-1,Data!K5,NA()) -> 0.11 | G4: =IF(Status!H$5=-1,Data!L5,NA()) ->  | H4: =IF(Status!I$5=-1,Data!M5,NA()) -> 0.1 | I4: =IF(Status!J$5=-1,Data!N5,NA()) -> 0.1 | J4: =IF(Status!K$5=-1,Data!O5,NA()) -> 0.06 | K4: =IF(Status!L$5=-1,Data!P5,NA()) ->  | L4: =IF(Status!M$5=-1,Data!Q5,NA()) ->  | M4: =IF(Status!N$5=-1,Data!R5,NA()) ->  | N4: =IF(Status!O$5=-1,Data!S5,NA()) -> 
B5: Yellow | C5: =IF(Status!D$5=0,Data!H5,NA()) -> 0.16 | D5: =IF(Status!E$5=0,Data!I5,NA()) ->  | E5: =IF(Status!F$5=0,Data!J5,NA()) ->  | F5: =IF(Status!G$5=0,Data!K5,NA()) ->  | G5: =IF(Status!H$5=0,Data!L5,NA()) ->  | H5: =IF(Status!I$5=0,Data!M5,NA()) ->  | I5: =IF(Status!J$5=0,Data!N5,NA()) ->  | J5: =IF(Status!K$5=0,Data!O5,NA()) ->  | K5: =IF(Status!L$5=0,Data!P5,NA()) ->  | L5: =IF(Status!M$5=0,Data!Q5,NA()) ->  | M5: =IF(Status!N$5=0,Data!R5,NA()) ->  | N5: =IF(Status!O$5=0,Data!S5,NA()) -> 
B6: Green | C6: =IF(Status!D$5=1,Data!H5,NA()) ->  | D6: =IF(Status!E$5=1,Data!I5,NA()) ->  | E6: =IF(Status!F$5=1,Data!J5,NA()) ->  | F6: =IF(Status!G$5=1,Data!K5,NA()) ->  | G6: =IF(Status!H$5=1,Data!L5,NA()) -> 0.25 | H6: =IF(Status!I$5=1,Data!M5,NA()) ->  | I6: =IF(Status!J$5=1,Data!N5,NA()) ->  | J6: =IF(Status!K$5=1,Data!O5,NA()) ->  | K6: =IF(Status!L$5=1,Data!P5,NA()) ->  | L6: =IF(Status!M$5=1,Data!Q5,NA()) ->  | M6: =IF(Status!N$5=1,Data!R5,NA()) ->  | N6: =IF(Status!O$5=1,Data!S5,NA()) -> 
B7: =Data!G6 -> Meta | C7: =IF(Data!$D$5="",NA(),IF(Data!H6="",NA(),Data!H6)) -> 0.2 | D7: =IF(Data!$D$5="",NA(),IF(Data!I6="",NA(),Data!I6)) -> 0.2 | E7: =IF(Data!$D$5="",NA(),IF(Data!J6="",NA(),Data!J6)) -> 0.2 | F7: =IF(Data!$D$5="",NA(),IF(Data!K6="",NA(),Data!K6)) -> 0.2 | G7: =IF(Data!$D$5="",NA(),IF(Data!L6="",NA(),Data!L6)) -> 0.2 | H7: =IF(Data!$D$5="",NA(),IF(Data!M6="",NA(),Data!M6)) -> 0.2 | I7: =IF(Data!$D$5="",NA(),IF(Data!N6="",NA(),Data!N6)) -> 0.2 | J7: =IF(Data!$D$5="",NA(),IF(Data!O6="",NA(),Data!O6)) -> 0.2 | K7: =IF(Data!$D$5="",NA(),IF(Data!P6="",NA(),Data!P6)) -> 0.2 | L7: =IF(Data!$D$5="",NA(),IF(Data!Q6="",NA(),Data!Q6)) -> 0.2 | M7: =IF(Data!$D$5="",NA(),IF(Data!R6="",NA(),Data!R6)) -> 0.2 | N7: =IF(Data!$D$5="",NA(),IF(Data!S6="",NA(),Data!S6)) -> 0.2
B8: Red | C8: =IF(Status!D$7=-1,Data!H8,NA()) ->  | D8: =IF(Status!E$7=-1,Data!I8,NA()) ->  | E8: =IF(Status!F$7=-1,Data!J8,NA()) ->  | F8: =IF(Status!G$7=-1,Data!K8,NA()) ->  | G8: =IF(Status!H$7=-1,Data!L8,NA()) ->  | H8: =IF(Status!I$7=-1,Data!M8,NA()) ->  | I8: =IF(Status!J$7=-1,Data!N8,NA()) ->  | J8: =IF(Status!K$7=-1,Data!O8,NA()) ->  | K8: =IF(Status!L$7=-1,Data!P8,NA()) ->  | L8: =IF(Status!M$7=-1,Data!Q8,NA()) ->  | M8: =IF(Status!N$7=-1,Data!R8,NA()) ->  | N8: =IF(Status!O$7=-1,Data!S8,NA()) -> 
B9: Yellow | C9: =IF(Status!D$7=0,Data!H8,NA()) ->  | D9: =IF(Status!E$7=0,Data!I8,NA()) ->  | E9: =IF(Status!F$7=0,Data!J8,NA()) ->  | F9: =IF(Status!G$7=0,Data!K8,NA()) ->  | G9: =IF(Status!H$7=0,Data!L8,NA()) ->  | H9: =IF(Status!I$7=0,Data!M8,NA()) ->  | I9: =IF(Status!J$7=0,Data!N8,NA()) ->  | J9: =IF(Status!K$7=0,Data!O8,NA()) ->  | K9: =IF(Status!L$7=0,Data!P8,NA()) ->  | L9: =IF(Status!M$7=0,Data!Q8,NA()) ->  | M9: =IF(Status!N$7=0,Data!R8,NA()) ->  | N9: =IF(Status!O$7=0,Data!S8,NA()) -> 
B10: Green | C10: =IF(Status!D$7=1,Data!H8,NA()) ->  | D10: =IF(Status!E$7=1,Data!I8,NA()) ->  | E10: =IF(Status!F$7=1,Data!J8,NA()) ->  | F10: =IF(Status!G$7=1,Data!K8,NA()) ->  | G10: =IF(Status!H$7=1,Data!L8,NA()) ->  | H10: =IF(Status!I$7=1,Data!M8,NA()) ->  | I10: =IF(Status!J$7=1,Data!N8,NA()) ->  | J10: =IF(Status!K$7=1,Data!O8,NA()) ->  | K10: =IF(Status!L$7=1,Data!P8,NA()) ->  | L10: =IF(Status!M$7=1,Data!Q8,NA()) ->  | M10: =IF(Status!N$7=1,Data!R8,NA()) ->  | N10: =IF(Status!O$7=1,Data!S8,NA()) -> 
B11: =B7 -> Meta | C11: =IF(Data!$D$8="",NA(),IF(Data!H9="",NA(),Data!H9)) ->  | D11: =IF(Data!$D$8="",NA(),IF(Data!I9="",NA(),Data!I9)) ->  | E11: =IF(Data!$D$8="",NA(),IF(Data!J9="",NA(),Data!J9)) ->  | F11: =IF(Data!$D$8="",NA(),IF(Data!K9="",NA(),Data!K9)) ->  | G11: =IF(Data!$D$8="",NA(),IF(Data!L9="",NA(),Data!L9)) ->  | H11: =IF(Data!$D$8="",NA(),IF(Data!M9="",NA(),Data!M9)) ->  | I11: =IF(Data!$D$8="",NA(),IF(Data!N9="",NA(),Data!N9)) ->  | J11: =IF(Data!$D$8="",NA(),IF(Data!O9="",NA(),Data!O9)) ->  | K11: =IF(Data!$D$8="",NA(),IF(Data!P9="",NA(),Data!P9)) ->  | L11: =IF(Data!$D$8="",NA(),IF(Data!Q9="",NA(),Data!Q9)) ->  | M11: =IF(Data!$D$8="",NA(),IF(Data!R9="",NA(),Data!R9)) ->  | N11: =IF(Data!$D$8="",NA(),IF(Data!S9="",NA(),Data!S9)) -> 
B12: Red | C12: =IF(Status!D$9=-1,Data!H11,NA()) ->  | D12: =IF(Status!E$9=-1,Data!I11,NA()) ->  | E12: =IF(Status!F$9=-1,Data!J11,NA()) ->  | F12: =IF(Status!G$9=-1,Data!K11,NA()) ->  | G12: =IF(Status!H$9=-1,Data!L11,NA()) ->  | H12: =IF(Status!I$9=-1,Data!M11,NA()) ->  | I12: =IF(Status!J$9=-1,Data!N11,NA()) ->  | J12: =IF(Status!K$9=-1,Data!O11,NA()) ->  | K12: =IF(Status!L$9=-1,Data!P11,NA()) ->  | L12: =IF(Status!M$9=-1,Data!Q11,NA()) ->  | M12: =IF(Status!N$9=-1,Data!R11,NA()) ->  | N12: =IF(Status!O$9=-1,Data!S11,NA()) -> 
B13: Yellow | C13: =IF(Status!D$9=0,Data!H11,NA()) ->  | D13: =IF(Status!E$9=0,Data!I11,NA()) ->  | E13: =IF(Status!F$9=0,Data!J11,NA()) ->  | F13: =IF(Status!G$9=0,Data!K11,NA()) ->  | G13: =IF(Status!H$9=0,Data!L11,NA()) ->  | H13: =IF(Status!I$9=0,Data!M11,NA()) ->  | I13: =IF(Status!J$9=0,Data!N11,NA()) ->  | J13: =IF(Status!K$9=0,Data!O11,NA()) ->  | K13: =IF(Status!L$9=0,Data!P11,NA()) ->  | L13: =IF(Status!M$9=0,Data!Q11,NA()) ->  | M13: =IF(Status!N$9=0,Data!R11,NA()) ->  | N13: =IF(Status!O$9=0,Data!S11,NA()) -> 
B14: Green | C14: =IF(Status!D$9=1,Data!H11,NA()) ->  | D14: =IF(Status!E$9=1,Data!I11,NA()) ->  | E14: =IF(Status!F$9=1,Data!J11,NA()) ->  | F14: =IF(Status!G$9=1,Data!K11,NA()) ->  | G14: =IF(Status!H$9=1,Data!L11,NA()) ->  | H14: =IF(Status!I$9=1,Data!M11,NA()) ->  | I14: =IF(Status!J$9=1,Data!N11,NA()) ->  | J14: =IF(Status!K$9=1,Data!O11,NA()) ->  | K14: =IF(Status!L$9=1,Data!P11,NA()) ->  | L14: =IF(Status!M$9=1,Data!Q11,NA()) ->  | M14: =IF(Status!N$9=1,Data!R11,NA()) ->  | N14: =IF(Status!O$9=1,Data!S11,NA()) -> 
B15: =B11 -> Meta | C15: =IF(Data!$D$11="",NA(),IF(Data!H12="",NA(),Data!H12)) ->  | D15: =IF(Data!$D$11="",NA(),IF(Data!I12="",NA(),Data!I12)) ->  | E15: =IF(Data!$D$11="",NA(),IF(Data!J12="",NA(),Data!J12)) ->  | F15: =IF(Data!$D$11="",NA(),IF(Data!K12="",NA(),Data!K12)) ->  | G15: =IF(Data!$D$11="",NA(),IF(Data!L12="",NA(),Data!L12)) ->  | H15: =IF(Data!$D$11="",NA(),IF(Data!M12="",NA(),Data!M12)) ->  | I15: =IF(Data!$D$11="",NA(),IF(Data!N12="",NA(),Data!N12)) ->  | J15: =IF(Data!$D$11="",NA(),IF(Data!O12="",NA(),Data!O12)) ->  | K15: =IF(Data!$D$11="",NA(),IF(Data!P12="",NA(),Data!P12)) ->  | L15: =IF(Data!$D$11="",NA(),IF(Data!Q12="",NA(),Data!Q12)) ->  | M15: =IF(Data!$D$11="",NA(),IF(Data!R12="",NA(),Data!R12)) ->  | N15: =IF(Data!$D$11="",NA(),IF(Data!S12="",NA(),Data!S12)) -> 
B16: Red | C16: =IF(Status!D$11=-1,Data!H14,NA()) ->  | D16: =IF(Status!E$11=-1,Data!I14,NA()) ->  | E16: =IF(Status!F$11=-1,Data!J14,NA()) -> 1 | F16: =IF(Status!G$11=-1,Data!K14,NA()) ->  | G16: =IF(Status!H$11=-1,Data!L14,NA()) ->  | H16: =IF(Status!I$11=-1,Data!M14,NA()) ->  | I16: =IF(Status!J$11=-1,Data!N14,NA()) ->  | J16: =IF(Status!K$11=-1,Data!O14,NA()) ->  | K16: =IF(Status!L$11=-1,Data!P14,NA()) ->  | L16: =IF(Status!M$11=-1,Data!Q14,NA()) ->  | M16: =IF(Status!N$11=-1,Data!R14,NA()) ->  | N16: =IF(Status!O$11=-1,Data!S14,NA()) -> 
B17: Yellow | C17: =IF(Status!D$11=0,Data!H14,NA()) ->  | D17: =IF(Status!E$11=0,Data!I14,NA()) ->  | E17: =IF(Status!F$11=0,Data!J14,NA()) ->  | F17: =IF(Status!G$11=0,Data!K14,NA()) ->  | G17: =IF(Status!H$11=0,Data!L14,NA()) ->  | H17: =IF(Status!I$11=0,Data!M14,NA()) ->  | I17: =IF(Status!J$11=0,Data!N14,NA()) ->  | J17: =IF(Status!K$11=0,Data!O14,NA()) ->  | K17: =IF(Status!L$11=0,Data!P14,NA()) ->  | L17: =IF(Status!M$11=0,Data!Q14,NA()) ->  | M17: =IF(Status!N$11=0,Data!R14,NA()) ->  | N17: =IF(Status!O$11=0,Data!S14,NA()) -> 
B18: Green | C18: =IF(Status!D$11=1,Data!H14,NA()) -> 1 | D18: =IF(Status!E$11=1,Data!I14,NA()) -> 2 | E18: =IF(Status!F$11=1,Data!J14,NA()) ->  | F18: =IF(Status!G$11=1,Data!K14,NA()) ->  | G18: =IF(Status!H$11=1,Data!L14,NA()) ->  | H18: =IF(Status!I$11=1,Data!M14,NA()) ->  | I18: =IF(Status!J$11=1,Data!N14,NA()) ->  | J18: =IF(Status!K$11=1,Data!O14,NA()) ->  | K18: =IF(Status!L$11=1,Data!P14,NA()) ->  | L18: =IF(Status!M$11=1,Data!Q14,NA()) ->  | M18: =IF(Status!N$11=1,Data!R14,NA()) ->  | N18: =IF(Status!O$11=1,Data!S14,NA()) -> 
B19: =B15 -> Meta | C19: =IF(Data!$D$14="",NA(),IF(Data!H15="",NA(),Data!H15)) -> 1 | D19: =IF(Data!$D$14="",NA(),IF(Data!I15="",NA(),Data!I15)) -> 2 | E19: =IF(Data!$D$14="",NA(),IF(Data!J15="",NA(),Data!J15)) -> 2 | F19: =IF(Data!$D$14="",NA(),IF(Data!K15="",NA(),Data!K15)) ->  | G19: =IF(Data!$D$14="",NA(),IF(Data!L15="",NA(),Data!L15)) ->  | H19: =IF(Data!$D$14="",NA(),IF(Data!M15="",NA(),Data!M15)) ->  | I19: =IF(Data!$D$14="",NA(),IF(Data!N15="",NA(),Data!N15)) ->  | J19: =IF(Data!$D$14="",NA(),IF(Data!O15="",NA(),Data!O15)) ->  | K19: =IF(Data!$D$14="",NA(),IF(Data!P15="",NA(),Data!P15)) ->  | L19: =IF(Data!$D$14="",NA(),IF(Data!Q15="",NA(),Data!Q15)) ->  | M19: =IF(Data!$D$14="",NA(),IF(Data!R15="",NA(),Data!R15)) ->  | N19: =IF(Data!$D$14="",NA(),IF(Data!S15="",NA(),Data!S15)) -> 
B20: Red | C20: =IF(Status!D$13=-1,Data!H17,NA()) ->  | D20: =IF(Status!E$13=-1,Data!I17,NA()) ->  | E20: =IF(Status!F$13=-1,Data!J17,NA()) ->  | F20: =IF(Status!G$13=-1,Data!K17,NA()) ->  | G20: =IF(Status!H$13=-1,Data!L17,NA()) ->  | H20: =IF(Status!I$13=-1,Data!M17,NA()) ->  | I20: =IF(Status!J$13=-1,Data!N17,NA()) ->  | J20: =IF(Status!K$13=-1,Data!O17,NA()) ->  | K20: =IF(Status!L$13=-1,Data!P17,NA()) ->  | L20: =IF(Status!M$13=-1,Data!Q17,NA()) ->  | M20: =IF(Status!N$13=-1,Data!R17,NA()) ->  | N20: =IF(Status!O$13=-1,Data!S17,NA()) -> 
B21: Yellow | C21: =IF(Status!D$13=0,Data!H17,NA()) ->  | D21: =IF(Status!E$13=0,Data!I17,NA()) ->  | E21: =IF(Status!F$13=0,Data!J17,NA()) ->  | F21: =IF(Status!G$13=0,Data!K17,NA()) ->  | G21: =IF(Status!H$13=0,Data!L17,NA()) ->  | H21: =IF(Status!I$13=0,Data!M17,NA()) ->  | I21: =IF(Status!J$13=0,Data!N17,NA()) ->  | J21: =IF(Status!K$13=0,Data!O17,NA()) ->  | K21: =IF(Status!L$13=0,Data!P17,NA()) ->  | L21: =IF(Status!M$13=0,Data!Q17,NA()) ->  | M21: =IF(Status!N$13=0,Data!R17,NA()) ->  | N21: =IF(Status!O$13=0,Data!S17,NA()) -> 
B22: Green | C22: =IF(Status!D$13=1,Data!H17,NA()) ->  | D22: =IF(Status!E$13=1,Data!I17,NA()) ->  | E22: =IF(Status!F$13=1,Data!J17,NA()) ->  | F22: =IF(Status!G$13=1,Data!K17,NA()) ->  | G22: =IF(Status!H$13=1,Data!L17,NA()) ->  | H22: =IF(Status!I$13=1,Data!M17,NA()) ->  | I22: =IF(Status!J$13=1,Data!N17,NA()) ->  | J22: =IF(Status!K$13=1,Data!O17,NA()) ->  | K22: =IF(Status!L$13=1,Data!P17,NA()) ->  | L22: =IF(Status!M$13=1,Data!Q17,NA()) ->  | M22: =IF(Status!N$13=1,Data!R17,NA()) ->  | N22: =IF(Status!O$13=1,Data!S17,NA()) -> 
B23: =B19 -> Meta | C23: =IF(Data!$D$17="",NA(),IF(Data!H18="",NA(),Data!H18)) ->  | D23: =IF(Data!$D$17="",NA(),IF(Data!I18="",NA(),Data!I18)) ->  | E23: =IF(Data!$D$17="",NA(),IF(Data!J18="",NA(),Data!J18)) ->  | F23: =IF(Data!$D$17="",NA(),IF(Data!K18="",NA(),Data!K18)) ->  | G23: =IF(Data!$D$17="",NA(),IF(Data!L18="",NA(),Data!L18)) ->  | H23: =IF(Data!$D$17="",NA(),IF(Data!M18="",NA(),Data!M18)) ->  | I23: =IF(Data!$D$17="",NA(),IF(Data!N18="",NA(),Data!N18)) ->  | J23: =IF(Data!$D$17="",NA(),IF(Data!O18="",NA(),Data!O18)) ->  | K23: =IF(Data!$D$17="",NA(),IF(Data!P18="",NA(),Data!P18)) ->  | L23: =IF(Data!$D$17="",NA(),IF(Data!Q18="",NA(),Data!Q18)) ->  | M23: =IF(Data!$D$17="",NA(),IF(Data!R18="",NA(),Data!R18)) ->  | N23: =IF(Data!$D$17="",NA(),IF(Data!S18="",NA(),Data!S18)) -> 
B24: Red | C24: =IF(Status!D$15=-1,Data!H20,NA()) ->  | D24: =IF(Status!E$15=-1,Data!I20,NA()) ->  | E24: =IF(Status!F$15=-1,Data!J20,NA()) ->  | F24: =IF(Status!G$15=-1,Data!K20,NA()) ->  | G24: =IF(Status!H$15=-1,Data!L20,NA()) ->  | H24: =IF(Status!I$15=-1,Data!M20,NA()) ->  | I24: =IF(Status!J$15=-1,Data!N20,NA()) ->  | J24: =IF(Status!K$15=-1,Data!O20,NA()) ->  | K24: =IF(Status!L$15=-1,Data!P20,NA()) ->  | L24: =IF(Status!M$15=-1,Data!Q20,NA()) ->  | M24: =IF(Status!N$15=-1,Data!R20,NA()) ->  | N24: =IF(Status!O$15=-1,Data!S20,NA()) -> 
B25: Yellow | C25: =IF(Status!D$15=0,Data!H20,NA()) ->  | D25: =IF(Status!E$15=0,Data!I20,NA()) ->  | E25: =IF(Status!F$15=0,Data!J20,NA()) ->  | F25: =IF(Status!G$15=0,Data!K20,NA()) ->  | G25: =IF(Status!H$15=0,Data!L20,NA()) ->  | H25: =IF(Status!I$15=0,Data!M20,NA()) ->  | I25: =IF(Status!J$15=0,Data!N20,NA()) ->  | J25: =IF(Status!K$15=0,Data!O20,NA()) ->  | K25: =IF(Status!L$15=0,Data!P20,NA()) ->  | L25: =IF(Status!M$15=0,Data!Q20,NA()) ->  | M25: =IF(Status!N$15=0,Data!R20,NA()) ->  | N25: =IF(Status!O$15=0,Data!S20,NA()) -> 
B26: Green | C26: =IF(Status!D$15=1,Data!H20,NA()) ->  | D26: =IF(Status!E$15=1,Data!I20,NA()) ->  | E26: =IF(Status!F$15=1,Data!J20,NA()) ->  | F26: =IF(Status!G$15=1,Data!K20,NA()) ->  | G26: =IF(Status!H$15=1,Data!L20,NA()) ->  | H26: =IF(Status!I$15=1,Data!M20,NA()) ->  | I26: =IF(Status!J$15=1,Data!N20,NA()) ->  | J26: =IF(Status!K$15=1,Data!O20,NA()) ->  | K26: =IF(Status!L$15=1,Data!P20,NA()) ->  | L26: =IF(Status!M$15=1,Data!Q20,NA()) ->  | M26: =IF(Status!N$15=1,Data!R20,NA()) ->  | N26: =IF(Status!O$15=1,Data!S20,NA()) -> 
B27: =B23 -> Meta | C27: =IF(Data!$D$20="",NA(),IF(Data!H21="",NA(),Data!H21)) ->  | D27: =IF(Data!$D$20="",NA(),IF(Data!I21="",NA(),Data!I21)) ->  | E27: =IF(Data!$D$20="",NA(),IF(Data!J21="",NA(),Data!J21)) ->  | F27: =IF(Data!$D$20="",NA(),IF(Data!K21="",NA(),Data!K21)) ->  | G27: =IF(Data!$D$20="",NA(),IF(Data!L21="",NA(),Data!L21)) ->  | H27: =IF(Data!$D$20="",NA(),IF(Data!M21="",NA(),Data!M21)) ->  | I27: =IF(Data!$D$20="",NA(),IF(Data!N21="",NA(),Data!N21)) ->  | J27: =IF(Data!$D$20="",NA(),IF(Data!O21="",NA(),Data!O21)) ->  | K27: =IF(Data!$D$20="",NA(),IF(Data!P21="",NA(),Data!P21)) ->  | L27: =IF(Data!$D$20="",NA(),IF(Data!Q21="",NA(),Data!Q21)) ->  | M27: =IF(Data!$D$20="",NA(),IF(Data!R21="",NA(),Data!R21)) ->  | N27: =IF(Data!$D$20="",NA(),IF(Data!S21="",NA(),Data!S21)) -> 
B28: Red | C28: =IF(Status!D$17=-1,Data!H23,NA()) ->  | D28: =IF(Status!E$17=-1,Data!I23,NA()) ->  | E28: =IF(Status!F$17=-1,Data!J23,NA()) ->  | F28: =IF(Status!G$17=-1,Data!K23,NA()) ->  | G28: =IF(Status!H$17=-1,Data!L23,NA()) ->  | H28: =IF(Status!I$17=-1,Data!M23,NA()) ->  | I28: =IF(Status!J$17=-1,Data!N23,NA()) ->  | J28: =IF(Status!K$17=-1,Data!O23,NA()) ->  | K28: =IF(Status!L$17=-1,Data!P23,NA()) ->  | L28: =IF(Status!M$17=-1,Data!Q23,NA()) ->  | M28: =IF(Status!N$17=-1,Data!R23,NA()) ->  | N28: =IF(Status!O$17=-1,Data!S23,NA()) -> 
B29: Yellow | C29: =IF(Status!D$17=0,Data!H23,NA()) ->  | D29: =IF(Status!E$17=0,Data!I23,NA()) ->  | E29: =IF(Status!F$17=0,Data!J23,NA()) ->  | F29: =IF(Status!G$17=0,Data!K23,NA()) ->  | G29: =IF(Status!H$17=0,Data!L23,NA()) ->  | H29: =IF(Status!I$17=0,Data!M23,NA()) ->  | I29: =IF(Status!J$17=0,Data!N23,NA()) ->  | J29: =IF(Status!K$17=0,Data!O23,NA()) ->  | K29: =IF(Status!L$17=0,Data!P23,NA()) ->  | L29: =IF(Status!M$17=0,Data!Q23,NA()) ->  | M29: =IF(Status!N$17=0,Data!R23,NA()) ->  | N29: =IF(Status!O$17=0,Data!S23,NA()) -> 
B30: Green | C30: =IF(Status!D$17=1,Data!H23,NA()) ->  | D30: =IF(Status!E$17=1,Data!I23,NA()) ->  | E30: =IF(Status!F$17=1,Data!J23,NA()) ->  | F30: =IF(Status!G$17=1,Data!K23,NA()) ->  | G30: =IF(Status!H$17=1,Data!L23,NA()) ->  | H30: =IF(Status!I$17=1,Data!M23,NA()) ->  | I30: =IF(Status!J$17=1,Data!N23,NA()) ->  | J30: =IF(Status!K$17=1,Data!O23,NA()) ->  | K30: =IF(Status!L$17=1,Data!P23,NA()) ->  | L30: =IF(Status!M$17=1,Data!Q23,NA()) ->  | M30: =IF(Status!N$17=1,Data!R23,NA()) ->  | N30: =IF(Status!O$17=1,Data!S23,NA()) -> 
B31: =B27 -> Meta | C31: =IF(Data!$D$23="",NA(),IF(Data!H24="",NA(),Data!H24)) ->  | D31: =IF(Data!$D$23="",NA(),IF(Data!I24="",NA(),Data!I24)) ->  | E31: =IF(Data!$D$23="",NA(),IF(Data!J24="",NA(),Data!J24)) ->  | F31: =IF(Data!$D$23="",NA(),IF(Data!K24="",NA(),Data!K24)) ->  | G31: =IF(Data!$D$23="",NA(),IF(Data!L24="",NA(),Data!L24)) ->  | H31: =IF(Data!$D$23="",NA(),IF(Data!M24="",NA(),Data!M24)) ->  | I31: =IF(Data!$D$23="",NA(),IF(Data!N24="",NA(),Data!N24)) ->  | J31: =IF(Data!$D$23="",NA(),IF(Data!O24="",NA(),Data!O24)) ->  | K31: =IF(Data!$D$23="",NA(),IF(Data!P24="",NA(),Data!P24)) ->  | L31: =IF(Data!$D$23="",NA(),IF(Data!Q24="",NA(),Data!Q24)) ->  | M31: =IF(Data!$D$23="",NA(),IF(Data!R24="",NA(),Data!R24)) ->  | N31: =IF(Data!$D$23="",NA(),IF(Data!S24="",NA(),Data!S24)) -> 
B32: Red | C32: =IF(Status!D$19=-1,Data!H26,NA()) ->  | D32: =IF(Status!E$19=-1,Data!I26,NA()) ->  | E32: =IF(Status!F$19=-1,Data!J26,NA()) ->  | F32: =IF(Status!G$19=-1,Data!K26,NA()) ->  | G32: =IF(Status!H$19=-1,Data!L26,NA()) ->  | H32: =IF(Status!I$19=-1,Data!M26,NA()) ->  | I32: =IF(Status!J$19=-1,Data!N26,NA()) ->  | J32: =IF(Status!K$19=-1,Data!O26,NA()) ->  | K32: =IF(Status!L$19=-1,Data!P26,NA()) ->  | L32: =IF(Status!M$19=-1,Data!Q26,NA()) ->  | M32: =IF(Status!N$19=-1,Data!R26,NA()) ->  | N32: =IF(Status!O$19=-1,Data!S26,NA()) -> 
B33: Yellow | C33: =IF(Status!D$19=0,Data!H26,NA()) -> 15000 | D33: =IF(Status!E$19=0,Data!I26,NA()) -> 15348 | E33: =IF(Status!F$19=0,Data!J26,NA()) ->  | F33: =IF(Status!G$19=0,Data!K26,NA()) ->  | G33: =IF(Status!H$19=0,Data!L26,NA()) ->  | H33: =IF(Status!I$19=0,Data!M26,NA()) ->  | I33: =IF(Status!J$19=0,Data!N26,NA()) ->  | J33: =IF(Status!K$19=0,Data!O26,NA()) ->  | K33: =IF(Status!L$19=0,Data!P26,NA()) ->  | L33: =IF(Status!M$19=0,Data!Q26,NA()) ->  | M33: =IF(Status!N$19=0,Data!R26,NA()) ->  | N33: =IF(Status!O$19=0,Data!S26,NA()) -> 
B34: Green | C34: =IF(Status!D$19=1,Data!H26,NA()) ->  | D34: =IF(Status!E$19=1,Data!I26,NA()) ->  | E34: =IF(Status!F$19=1,Data!J26,NA()) ->  | F34: =IF(Status!G$19=1,Data!K26,NA()) ->  | G34: =IF(Status!H$19=1,Data!L26,NA()) ->  | H34: =IF(Status!I$19=1,Data!M26,NA()) ->  | I34: =IF(Status!J$19=1,Data!N26,NA()) ->  | J34: =IF(Status!K$19=1,Data!O26,NA()) ->  | K34: =IF(Status!L$19=1,Data!P26,NA()) ->  | L34: =IF(Status!M$19=1,Data!Q26,NA()) ->  | M34: =IF(Status!N$19=1,Data!R26,NA()) ->  | N34: =IF(Status!O$19=1,Data!S26,NA()) -> 
B35: =B31 -> Meta | C35: =IF(Data!$D$26="",NA(),IF(Data!H27="",NA(),Data!H27)) -> 15500 | D35: =IF(Data!$D$26="",NA(),IF(Data!I27="",NA(),Data!I27)) -> 16000 | E35: =IF(Data!$D$26="",NA(),IF(Data!J27="",NA(),Data!J27)) ->  | F35: =IF(Data!$D$26="",NA(),IF(Data!K27="",NA(),Data!K27)) ->  | G35: =IF(Data!$D$26="",NA(),IF(Data!L27="",NA(),Data!L27)) ->  | H35: =IF(Data!$D$26="",NA(),IF(Data!M27="",NA(),Data!M27)) ->  | I35: =IF(Data!$D$26="",NA(),IF(Data!N27="",NA(),Data!N27)) ->  | J35: =IF(Data!$D$26="",NA(),IF(Data!O27="",NA(),Data!O27)) ->  | K35: =IF(Data!$D$26="",NA(),IF(Data!P27="",NA(),Data!P27)) ->  | L35: =IF(Data!$D$26="",NA(),IF(Data!Q27="",NA(),Data!Q27)) ->  | M35: =IF(Data!$D$26="",NA(),IF(Data!R27="",NA(),Data!R27)) ->  | N35: =IF(Data!$D$26="",NA(),IF(Data!S27="",NA(),Data!S27)) -> 
B36: Red | C36: =IF(Status!D$21=-1,Data!H29,NA()) ->  | D36: =IF(Status!E$21=-1,Data!I29,NA()) ->  | E36: =IF(Status!F$21=-1,Data!J29,NA()) ->  | F36: =IF(Status!G$21=-1,Data!K29,NA()) ->  | G36: =IF(Status!H$21=-1,Data!L29,NA()) ->  | H36: =IF(Status!I$21=-1,Data!M29,NA()) ->  | I36: =IF(Status!J$21=-1,Data!N29,NA()) ->  | J36: =IF(Status!K$21=-1,Data!O29,NA()) ->  | K36: =IF(Status!L$21=-1,Data!P29,NA()) ->  | L36: =IF(Status!M$21=-1,Data!Q29,NA()) ->  | M36: =IF(Status!N$21=-1,Data!R29,NA()) ->  | N36: =IF(Status!O$21=-1,Data!S29,NA()) -> 
B37: Yellow | C37: =IF(Status!D$21=0,Data!H29,NA()) ->  | D37: =IF(Status!E$21=0,Data!I29,NA()) ->  | E37: =IF(Status!F$21=0,Data!J29,NA()) ->  | F37: =IF(Status!G$21=0,Data!K29,NA()) ->  | G37: =IF(Status!H$21=0,Data!L29,NA()) ->  | H37: =IF(Status!I$21=0,Data!M29,NA()) ->  | I37: =IF(Status!J$21=0,Data!N29,NA()) ->  | J37: =IF(Status!K$21=0,Data!O29,NA()) ->  | K37: =IF(Status!L$21=0,Data!P29,NA()) ->  | L37: =IF(Status!M$21=0,Data!Q29,NA()) ->  | M37: =IF(Status!N$21=0,Data!R29,NA()) ->  | N37: =IF(Status!O$21=0,Data!S29,NA()) -> 
B38: Green | C38: =IF(Status!D$21=1,Data!H29,NA()) ->  | D38: =IF(Status!E$21=1,Data!I29,NA()) ->  | E38: =IF(Status!F$21=1,Data!J29,NA()) ->  | F38: =IF(Status!G$21=1,Data!K29,NA()) ->  | G38: =IF(Status!H$21=1,Data!L29,NA()) ->  | H38: =IF(Status!I$21=1,Data!M29,NA()) ->  | I38: =IF(Status!J$21=1,Data!N29,NA()) ->  | J38: =IF(Status!K$21=1,Data!O29,NA()) ->  | K38: =IF(Status!L$21=1,Data!P29,NA()) ->  | L38: =IF(Status!M$21=1,Data!Q29,NA()) ->  | M38: =IF(Status!N$21=1,Data!R29,NA()) ->  | N38: =IF(Status!O$21=1,Data!S29,NA()) -> 
B39: =B35 -> Meta | C39: =IF(Data!$D$29="",NA(),IF(Data!H30="",NA(),Data!H30)) ->  | D39: =IF(Data!$D$29="",NA(),IF(Data!I30="",NA(),Data!I30)) ->  | E39: =IF(Data!$D$29="",NA(),IF(Data!J30="",NA(),Data!J30)) ->  | F39: =IF(Data!$D$29="",NA(),IF(Data!K30="",NA(),Data!K30)) ->  | G39: =IF(Data!$D$29="",NA(),IF(Data!L30="",NA(),Data!L30)) ->  | H39: =IF(Data!$D$29="",NA(),IF(Data!M30="",NA(),Data!M30)) ->  | I39: =IF(Data!$D$29="",NA(),IF(Data!N30="",NA(),Data!N30)) ->  | J39: =IF(Data!$D$29="",NA(),IF(Data!O30="",NA(),Data!O30)) ->  | K39: =IF(Data!$D$29="",NA(),IF(Data!P30="",NA(),Data!P30)) ->  | L39: =IF(Data!$D$29="",NA(),IF(Data!Q30="",NA(),Data!Q30)) ->  | M39: =IF(Data!$D$29="",NA(),IF(Data!R30="",NA(),Data!R30)) ->  | N39: =IF(Data!$D$29="",NA(),IF(Data!S30="",NA(),Data!S30)) -> 
B40: Red | C40: =IF(Status!D$23=-1,Data!H32,NA()) ->  | D40: =IF(Status!E$23=-1,Data!I32,NA()) ->  | E40: =IF(Status!F$23=-1,Data!J32,NA()) ->  | F40: =IF(Status!G$23=-1,Data!K32,NA()) ->  | G40: =IF(Status!H$23=-1,Data!L32,NA()) ->  | H40: =IF(Status!I$23=-1,Data!M32,NA()) ->  | I40: =IF(Status!J$23=-1,Data!N32,NA()) ->  | J40: =IF(Status!K$23=-1,Data!O32,NA()) ->  | K40: =IF(Status!L$23=-1,Data!P32,NA()) ->  | L40: =IF(Status!M$23=-1,Data!Q32,NA()) ->  | M40: =IF(Status!N$23=-1,Data!R32,NA()) ->  | N40: =IF(Status!O$23=-1,Data!S32,NA()) -> 
B41: Yellow | C41: =IF(Status!D$23=0,Data!H32,NA()) ->  | D41: =IF(Status!E$23=0,Data!I32,NA()) ->  | E41: =IF(Status!F$23=0,Data!J32,NA()) ->  | F41: =IF(Status!G$23=0,Data!K32,NA()) ->  | G41: =IF(Status!H$23=0,Data!L32,NA()) ->  | H41: =IF(Status!I$23=0,Data!M32,NA()) ->  | I41: =IF(Status!J$23=0,Data!N32,NA()) ->  | J41: =IF(Status!K$23=0,Data!O32,NA()) ->  | K41: =IF(Status!L$23=0,Data!P32,NA()) ->  | L41: =IF(Status!M$23=0,Data!Q32,NA()) ->  | M41: =IF(Status!N$23=0,Data!R32,NA()) ->  | N41: =IF(Status!O$23=0,Data!S32,NA()) -> 
B42: Green | C42: =IF(Status!D$23=1,Data!H32,NA()) ->  | D42: =IF(Status!E$23=1,Data!I32,NA()) ->  | E42: =IF(Status!F$23=1,Data!J32,NA()) ->  | F42: =IF(Status!G$23=1,Data!K32,NA()) ->  | G42: =IF(Status!H$23=1,Data!L32,NA()) ->  | H42: =IF(Status!I$23=1,Data!M32,NA()) ->  | I42: =IF(Status!J$23=1,Data!N32,NA()) ->  | J42: =IF(Status!K$23=1,Data!O32,NA()) ->  | K42: =IF(Status!L$23=1,Data!P32,NA()) ->  | L42: =IF(Status!M$23=1,Data!Q32,NA()) ->  | M42: =IF(Status!N$23=1,Data!R32,NA()) ->  | N42: =IF(Status!O$23=1,Data!S32,NA()) -> 
B43: =B39 -> Meta | C43: =IF(Data!$D$32="",NA(),IF(Data!H33="",NA(),Data!H33)) ->  | D43: =IF(Data!$D$32="",NA(),IF(Data!I33="",NA(),Data!I33)) ->  | E43: =IF(Data!$D$32="",NA(),IF(Data!J33="",NA(),Data!J33)) ->  | F43: =IF(Data!$D$32="",NA(),IF(Data!K33="",NA(),Data!K33)) ->  | G43: =IF(Data!$D$32="",NA(),IF(Data!L33="",NA(),Data!L33)) ->  | H43: =IF(Data!$D$32="",NA(),IF(Data!M33="",NA(),Data!M33)) ->  | I43: =IF(Data!$D$32="",NA(),IF(Data!N33="",NA(),Data!N33)) ->  | J43: =IF(Data!$D$32="",NA(),IF(Data!O33="",NA(),Data!O33)) ->  | K43: =IF(Data!$D$32="",NA(),IF(Data!P33="",NA(),Data!P33)) ->  | L43: =IF(Data!$D$32="",NA(),IF(Data!Q33="",NA(),Data!Q33)) ->  | M43: =IF(Data!$D$32="",NA(),IF(Data!R33="",NA(),Data!R33)) ->  | N43: =IF(Data!$D$32="",NA(),IF(Data!S33="",NA(),Data!S33)) -> 
B44: Red | C44: =IF(Status!D$25=-1,Data!H35,NA()) ->  | D44: =IF(Status!E$25=-1,Data!I35,NA()) ->  | E44: =IF(Status!F$25=-1,Data!J35,NA()) ->  | F44: =IF(Status!G$25=-1,Data!K35,NA()) ->  | G44: =IF(Status!H$25=-1,Data!L35,NA()) ->  | H44: =IF(Status!I$25=-1,Data!M35,NA()) ->  | I44: =IF(Status!J$25=-1,Data!N35,NA()) ->  | J44: =IF(Status!K$25=-1,Data!O35,NA()) ->  | K44: =IF(Status!L$25=-1,Data!P35,NA()) ->  | L44: =IF(Status!M$25=-1,Data!Q35,NA()) ->  | M44: =IF(Status!N$25=-1,Data!R35,NA()) ->  | N44: =IF(Status!O$25=-1,Data!S35,NA()) -> 
B45: Yellow | C45: =IF(Status!D$25=0,Data!H35,NA()) ->  | D45: =IF(Status!E$25=0,Data!I35,NA()) ->  | E45: =IF(Status!F$25=0,Data!J35,NA()) ->  | F45: =IF(Status!G$25=0,Data!K35,NA()) ->  | G45: =IF(Status!H$25=0,Data!L35,NA()) ->  | H45: =IF(Status!I$25=0,Data!M35,NA()) ->  | I45: =IF(Status!J$25=0,Data!N35,NA()) ->  | J45: =IF(Status!K$25=0,Data!O35,NA()) ->  | K45: =IF(Status!L$25=0,Data!P35,NA()) ->  | L45: =IF(Status!M$25=0,Data!Q35,NA()) ->  | M45: =IF(Status!N$25=0,Data!R35,NA()) ->  | N45: =IF(Status!O$25=0,Data!S35,NA()) -> 
B46: Green | C46: =IF(Status!D$25=1,Data!H35,NA()) ->  | D46: =IF(Status!E$25=1,Data!I35,NA()) ->  | E46: =IF(Status!F$25=1,Data!J35,NA()) ->  | F46: =IF(Status!G$25=1,Data!K35,NA()) ->  | G46: =IF(Status!H$25=1,Data!L35,NA()) ->  | H46: =IF(Status!I$25=1,Data!M35,NA()) ->  | I46: =IF(Status!J$25=1,Data!N35,NA()) ->  | J46: =IF(Status!K$25=1,Data!O35,NA()) ->  | K46: =IF(Status!L$25=1,Data!P35,NA()) ->  | L46: =IF(Status!M$25=1,Data!Q35,NA()) ->  | M46: =IF(Status!N$25=1,Data!R35,NA()) ->  | N46: =IF(Status!O$25=1,Data!S35,NA()) -> 
B47: =B43 -> Meta | C47: =IF(Data!$D$35="",NA(),IF(Data!H36="",NA(),Data!H36)) ->  | D47: =IF(Data!$D$35="",NA(),IF(Data!I36="",NA(),Data!I36)) ->  | E47: =IF(Data!$D$35="",NA(),IF(Data!J36="",NA(),Data!J36)) ->  | F47: =IF(Data!$D$35="",NA(),IF(Data!K36="",NA(),Data!K36)) ->  | G47: =IF(Data!$D$35="",NA(),IF(Data!L36="",NA(),Data!L36)) ->  | H47: =IF(Data!$D$35="",NA(),IF(Data!M36="",NA(),Data!M36)) ->  | I47: =IF(Data!$D$35="",NA(),IF(Data!N36="",NA(),Data!N36)) ->  | J47: =IF(Data!$D$35="",NA(),IF(Data!O36="",NA(),Data!O36)) ->  | K47: =IF(Data!$D$35="",NA(),IF(Data!P36="",NA(),Data!P36)) ->  | L47: =IF(Data!$D$35="",NA(),IF(Data!Q36="",NA(),Data!Q36)) ->  | M47: =IF(Data!$D$35="",NA(),IF(Data!R36="",NA(),Data!R36)) ->  | N47: =IF(Data!$D$35="",NA(),IF(Data!S36="",NA(),Data!S36)) -> 
B48: Red | C48: =IF(Status!D$27=-1,Data!H38,NA()) ->  | D48: =IF(Status!E$27=-1,Data!I38,NA()) ->  | E48: =IF(Status!F$27=-1,Data!J38,NA()) ->  | F48: =IF(Status!G$27=-1,Data!K38,NA()) ->  | G48: =IF(Status!H$27=-1,Data!L38,NA()) ->  | H48: =IF(Status!I$27=-1,Data!M38,NA()) ->  | I48: =IF(Status!J$27=-1,Data!N38,NA()) ->  | J48: =IF(Status!K$27=-1,Data!O38,NA()) ->  | K48: =IF(Status!L$27=-1,Data!P38,NA()) ->  | L48: =IF(Status!M$27=-1,Data!Q38,NA()) ->  | M48: =IF(Status!N$27=-1,Data!R38,NA()) ->  | N48: =IF(Status!O$27=-1,Data!S38,NA()) -> 
B49: Yellow | C49: =IF(Status!D$27=0,Data!H38,NA()) ->  | D49: =IF(Status!E$27=0,Data!I38,NA()) ->  | E49: =IF(Status!F$27=0,Data!J38,NA()) ->  | F49: =IF(Status!G$27=0,Data!K38,NA()) ->  | G49: =IF(Status!H$27=0,Data!L38,NA()) ->  | H49: =IF(Status!I$27=0,Data!M38,NA()) ->  | I49: =IF(Status!J$27=0,Data!N38,NA()) ->  | J49: =IF(Status!K$27=0,Data!O38,NA()) ->  | K49: =IF(Status!L$27=0,Data!P38,NA()) ->  | L49: =IF(Status!M$27=0,Data!Q38,NA()) ->  | M49: =IF(Status!N$27=0,Data!R38,NA()) ->  | N49: =IF(Status!O$27=0,Data!S38,NA()) -> 
B50: Green | C50: =IF(Status!D$27=1,Data!H38,NA()) ->  | D50: =IF(Status!E$27=1,Data!I38,NA()) ->  | E50: =IF(Status!F$27=1,Data!J38,NA()) ->  | F50: =IF(Status!G$27=1,Data!K38,NA()) ->  | G50: =IF(Status!H$27=1,Data!L38,NA()) ->  | H50: =IF(Status!I$27=1,Data!M38,NA()) ->  | I50: =IF(Status!J$27=1,Data!N38,NA()) ->  | J50: =IF(Status!K$27=1,Data!O38,NA()) ->  | K50: =IF(Status!L$27=1,Data!P38,NA()) ->  | L50: =IF(Status!M$27=1,Data!Q38,NA()) ->  | M50: =IF(Status!N$27=1,Data!R38,NA()) ->  | N50: =IF(Status!O$27=1,Data!S38,NA()) -> 
B51: =B47 -> Meta | C51: =IF(Data!$D$38="",NA(),IF(Data!H39="",NA(),Data!H39)) ->  | D51: =IF(Data!$D$38="",NA(),IF(Data!I39="",NA(),Data!I39)) ->  | E51: =IF(Data!$D$38="",NA(),IF(Data!J39="",NA(),Data!J39)) ->  | F51: =IF(Data!$D$38="",NA(),IF(Data!K39="",NA(),Data!K39)) ->  | G51: =IF(Data!$D$38="",NA(),IF(Data!L39="",NA(),Data!L39)) ->  | H51: =IF(Data!$D$38="",NA(),IF(Data!M39="",NA(),Data!M39)) ->  | I51: =IF(Data!$D$38="",NA(),IF(Data!N39="",NA(),Data!N39)) ->  | J51: =IF(Data!$D$38="",NA(),IF(Data!O39="",NA(),Data!O39)) ->  | K51: =IF(Data!$D$38="",NA(),IF(Data!P39="",NA(),Data!P39)) ->  | L51: =IF(Data!$D$38="",NA(),IF(Data!Q39="",NA(),Data!Q39)) ->  | M51: =IF(Data!$D$38="",NA(),IF(Data!R39="",NA(),Data!R39)) ->  | N51: =IF(Data!$D$38="",NA(),IF(Data!S39="",NA(),Data!S39)) -> 

Sheet List
A1: Month | B1: MonthComp | C1: MonthOrder | D1: MonthOrderComp | E1: Language | F1: Format | G1: Direction | H1: Calculation
A2: =Translations!G34 -> ENE | B2: =Translations!G46 -> Enero | E2: English | F2: 0% | G2: ↑ | H2: =Translations!G67 -> Suma
A3: =Translations!G35 -> FEB | B3: =Translations!G47 -> Febrero | E3: Français | F3: 0,0% | G3: ↓ | H3: =Translations!G68 -> Promedio
A4: =Translations!G36 -> MAR | B4: =Translations!G48 -> Marzo | E4: Português | F4: 0 | H4: =Translations!G69 -> Último valor
A5: =Translations!G37 -> ABR | B5: =Translations!G49 -> Abril | E5: Español | F5: 0,0
A6: =Translations!G38 -> MAY | B6: =Translations!G50 -> Mayo | F6: 0 $
A7: =Translations!G39 -> JUN | B7: =Translations!G51 -> Junio | F7: 0 €
A8: =Translations!G40 -> JUL | B8: =Translations!G52 -> Julio | F8: £ 0
A9: =Translations!G41 -> AGO | B9: =Translations!G53 -> Agosto | F9: R$ 0
A10: =Translations!G42 -> SEP | B10: =Translations!G54 -> Septiembre | F10: 00:00:00
A11: =Translations!G43 -> OCT | B11: =Translations!G55 -> Octubre
A12: =Translations!G44 -> NOV | B12: =Translations!G56 -> Noviembre
A13: =Translations!G45 -> DIC | B13: =Translations!G57 -> Diciembre
A14: =Translations!G31 -> ACUM
A15: =UPPER(Translations!G32) -> TOTAL
